Workbook

Sheet ТКП
D1: Коммерческое предложение к Документации о закупке № ____
A2: Наименование закупки: | C2: Выполнение комплекса работ по строительству здания Ангар ТМЦ на объекте «Терминал по перевалке минеральных удобрений в МТП Усть-Луга. Береговые объекты терминала»
A3: Исх. № ______________ от __.__.2025г.
A5: Наименование Участника:
A6: ИНН Участника
A8: № п/п | B8: Наименование | C8: Требование ООО «ЕТУ» | D8: Предложение Участника, руб без НДС
D9: Материалы | E9: Работы
A10: 1 | B10: Выполнение комплекса работ | C10: Объем и состав работ в соответствии с ТЗ
A11: 2 | B11: Итоговая стоимость строительно-монтажных работ:
A12: 2.1 | B12: 1632-2021-3.4-КЖ | D12: ='1632-2021-3.4-КЖ '!I193 -> 7090085.68 | E12: ='1632-2021-3.4-КЖ '!G193 -> 6800068.6
A13: 2.2 | B13: 1632-2021-3.4-КМ | D13: ='1632-2021-3.4-КМ '!I233 -> 4766621.27 | E13: ='1632-2021-3.4-КМ '!G233 -> 8268087.95
A14: 2.3 | B14: 1632-2021-3.4-АР | D14: ='1632-2021-3.4-АР '!I143 -> 4324323.01 | E14: ='1632-2021-3.4-АР '!G143 -> 3780842.08
D15: =SUM(D10:D14) -> 16181029.96 | E15: =SUM(E10:E14) -> 18848998.63
A16: 3 | B16: НДС | C16: 0.2 | D16: =(D15+E15)*0.2 -> 7006005.72
A17: 4 | B17: Итоговая стоимость СМР, руб с НДС | D17: =D15+E15+D16 -> 42036034.31
A18: 5 | B18: Договорной коэффициент к сметной стоимости* | C18: Кд - договорной коэффициент начисляется для приведения итоговой сметной стоимости к стоимости Договора. Коэффициент применяется при расчете стоимости строительно-монтажных работ, за исключением стоимости материально-технических ресурсов. Коэффициент фиксируется при направлении ТКП и дальнейшей корректировке не подлежит.
A19: 6 | B19: Срок выполнения работ | C19: не более 120 календарных дней с даты заключения договора | D19: Участником указывается согласие или встречные условия
A20: 7 | B20: Порядок оплаты | C20: Допускается авансирование работ в объеме до 50% стоимости договора, с целью мобилизации, закупки/поставки материалов. Авансирование осуществляется при предоставлении Подрядчиком Банковской гарантии возврата авансового платежа в размере аванса. Текст банковской гарантии и банк согласовывается с Заказчиком заранее. Если сумма аванса не превышает 5 000 000 руб. допускается авансирование без предоставления банковской гарантии, при согласовании Заказчика. В случае авансирования Заказчик оплачивает Подрядчику аванс в течении 10 (десяти) рабочих дней от даты подписания Договора при условии предоставления Подрядчиком счета и оригинала, согласованной с Заказчиком безотзывной банковской гарантии возврата авансового платежа. Расчеты за фактически выполненный Подрядчиком и принятый Заказчиком объем Работ по договору осуществляется ежемесячно в установленном порядке в течение 10 (десяти) рабочих дней с момента получения от Подрядчика счета на оплату и подписанных Сторонами без замечаний Актов о приемке выполненных работ (Форма № КС-2), Справок о стоимости выполненных работ и затрат (Форма № КС-3), полного комплекта исполнительной документации и иных необходимых документов, предусмотренных Договором, при условии предоставления счета/счет-фактуры. Оплата выполненных Работ осуществляется Заказчиком с удержанием денежных средств в размере 5% от стоимости выполненных Работ (гарантийное удержание) и за вычетом авансового платежа в размере ___% от стоимости выполненных за месяц Работ. Подрядчик обязан использовать аванс только для оплаты поставок конструкций, материалов и оборудования, а также для оплаты расходов, связанных с мобилизацией и выполнением строительных работ, предусмотренных условиями настоящего Договора. Окончательный расчет за выполненные Работы по Объекту производится Заказчиком после завершения всех предусмотренных Договором Работ и устранения выявленных дефектов, передачи Заказчику по акту полного комплекта исполнительной документации, в срок не позднее 10 (десяти) банковских дней с момента подписания Сторонами акт приема-передачи результата выполненных работ. | D20: Участником указывается % аванса и согласие или встречные условия
A55: 8 | B55: Гарантия на выполненные работы | C55: Гарантийный срок на результат работы Подрядчика устанавливается не менее 36 месяцев предусмотренного Договором. | D55: Участником указывается согласие или встречные условия
A56: 9 | B56: Согласие с условиями договора
A57: 10 | B57: Контактное лицо (ФИО, должность, телефон, e-mail)
A59: Настоящее Предложение имеет правовой статус оферты и действует до " " _____ 202_г.
A60: Итоговая стоимость фиксируется в Договоре и должна включать весь комплекс работ "под ключ", при этом закрытие актов выполненных работ будет производиться по ценообразованию, закрепленному в Договоре
A61: * в случае, если при согласовании сметы будет выявлено, что Кд не соответствует итоговой стоимости СМР, Кд устанавливается по согласованной с Заказчиком смете по описанной в ТЗ и Договоре методике расчета
A65: (Должность уполномоченного представителя Участника) | E65: (Подпись)
A68: Примечание - коммерческое предложение необходимо оформить:
A69: - на фирменном бланке;
A70: - присвоить ему номер;
A71: - указать дату;
A72: - за подписью уполномоченного лица;

Sheet 1632-2021-3.4-КЖ
A2: Терминал по перевалке минеральных удобрений в морском торговом порту Усть-Луга. Береговые объекты терминала
A3: (наименование стройки)
A5: ЛОКАЛЬНАЯ СМЕТА № 1632-2021-3.4-КЖ_01.05.060-П-01-01
A6: (локальная смета)
A7: на Конструкции железобетонные, 07.06.060 Ангар для хранения ТМЦ (код SAP 01.05.019) код ГП 3.4
A8: (наименование работ и затрат, наименование объекта)
B9: Основание: | C9: 1632-2021-3.4-КЖ
A11: № п/п | B11: Обоснование | C11: Наименование работ и затрат | D11: Ед. изм. | E11: Кол-во | F11: Цена за ед.измерения работ, руб. с НДС | G11: Всего, стоимость работ,руб. с НДС | H11: Цена за ед.измерения материалов, руб. с НДС | I11: Всего, стоимость материалов, руб. с НДС | J11: Итого, руб. с НДС
A12: 1 | B12: 2 | C12: 3 | D12: 4 | E12: 5 | F12: 6 | G12: 7 | H12: 8 | I12: 9 | J12: 10
A13: Раздел 1. Земляные работы
A14: 1 | B14: ТЕР01-01-003-08 | C14: Разработка грунта в отвал экскаваторами «драглайн» или «обратная лопата» с ковшом вместимостью: 0,65 (0,5-1) м3, группа грунтов 2 | D14: 1000 м3 грунта | E14: 0.94558 | F14: 115532.04 | G14: 141977.03 | H14: =I14/E14 -> 0 | I14: 0 | J14: =G14+I14 -> 141977.03
A15: 2 | B15: ТЕР01-01-013-08 | C15: Разработка грунта с погрузкой на автомобили-самосвалы экскаваторами с ковшом вместимостью: 0,65 (0,5-1) м3, группа грунтов 2 | D15: 1000 м3 грунта | E15: 0.3424 | F15: 154690.54 | G15: 68835.88 | H15: =I15/E15 -> 134.26 | I15: 45.97 | J15: =G15+I15 -> 68881.85
B16: 408-0015 | C16: Щебень из природного камня для строительных работ марка: 800, фракция 20-40 мм | D16: м3 | E16: 0,04 0,0137 | G16: 0 | J16: 0
A17: 3 | B17: ТЕР01-02-057-02 | C17: Разработка грунта вручную в траншеях глубиной до 2 м без креплений с откосами, группа грунтов: 2//подчистка дна котлована с выкидкой к ковшу экскаватора | D17: 100 м3 грунта | E17: 0.05 | F17: 300873.6 | G17: 19551.11 | H17: 0 | I17: 0 | J17: 19551.11
A18: 4 | B18: ТССЦпг-03-21-01-190 | C18: Перевозка грузов автомобилями-самосвалами грузоподъемностью 10 т, работающих вне карьера, на расстояние: до 190 км I класс груза | D18: 1 т груза | E18: 616.32 | F18: 0 | G18: 0 | H18: 0 | I18: 0 | J18: 0
A19: Обратная засыпка местным грунтом | G19: 0 | J19: 0
A20: 5 | B20: ТЕР01-02-005-01 | C20: Уплотнение грунта пневматическими трамбовками, группа грунтов: 1-2 | D20: 100 м3 уплотненного грунта | E20: 9.5058 | F20: 32803.14 | G20: 405248.57 | H20: 0 | I20: 0 | J20: 405248.57
A21: 6 | B21: ТЕР01-01-033-04 | C21: Засыпка траншей и котлованов с перемещением грунта до 5 м бульдозерами мощностью: 79 кВт (108 л.с.), группа грунтов 1 | D21: 1000 м3 грунта | E21: 0.95058 | F21: 12023.49 | G21: 14853.77 | H21: 0 | I21: 0 | J21: 14853.77
A22: Уплотнение основания по фундамент до к=0,98 (ОП п.12, л.1) | G22: 0 | J22: 0
A23: 7 | B23: ТЕР01-02-001-06 | C23: Уплотнение грунта прицепными катками на пневмоколесном ходу 25 т на первый проход по одному следу при толщине слоя: 60 см СНиП III-8-76 прил. 3: грунт несвязный, К=0,98, 8 проходов ОП п.13, л.3 п.4 | D23: 1000 м3 уплотненного грунта | E23: 0.339 | F23: =G23/E23 -> 19308.76 | G23: 6545.67 | H23: 0 | I23: 0 | J23: 6545.67
A24: К=6 (7 проходов) ПЗ=7 (ОЗП=7; ЭМ=7 к расх.; ЗПМ=7; МАТ=7 к расх.; ТЗ=7; ТЗМ=7) | G24: 0 | J24: 0
A25: 8 | B25: ТЕР01-02-001-12 | C25: На каждый последующий проход по одному следу добавлять: к расценке 01-02-001-06 К=7 | D25: 1000 м3 уплотненного грунта | E25: 0.339 | F25: 17670.97 | G25: 7785.34 | H25: 0 | I25: 0 | J25: 7785.34
A26: Раздел 2. Фундамент ленточный (1632-2021-3.4-КЖ) | G26: 0 | J26: 0
A27: 9 | B27: ТЕР08-01-002-02 | C27: Устройство основания под фундаменты: щебеночного | D27: 1 м3 основания | E27: 63.7 | F27: 7072 | G27: 585463.4 | H27: 4.13 | I27: 262.89 | J27: 585726.29
B28: 411-0001 | C28: Вода | D28: м3 | E28: 0,15 9,555 | G28: 0 | J28: 0
A29: 10 | B29: ТССЦ-408-0015 | C29: Щебень из природного камня для строительных работ марка: 800, фракция 20-40 мм | D29: м3 | E29: 82.81 | F29: 0 | G29: 0 | H29: 3394.18 | I29: 281071.95 | J29: 281071.95
A30: 11 | B30: ТЕР06-01-001-01 | C30: Устройство бетонной подготовки | D30: 100 м3 бетона, бутобетона и железобетона в деле | E30: 0.283 | F30: 401460.67 | G30: 147654.54 | H30: 25913.96 | I30: 7333.65 | J30: 154988.19
B31: 101-1668 | C31: Рогожа | D31: м2 | E31: 250 70,75 | G31: 0 | J31: 0
B32: 411-0001 | C32: Вода | D32: м3 | E32: 0,2 0,0566 | G32: 0 | J32: 0
A33: 12 | B33: ТСЭМ-110053 | C33: Автобетоносмесители: 4 м3 | D33: маш.-ч | E33: 3.516 | F33: 4891.91 | G33: 22353.46 | H33: 0 | I33: 0 | J33: 22353.46
A34: 13 | B34: Прайс | C34: Бетон тяжелый, класс: В7,5 (М100) | D34: м3 | E34: 28.866 | G34: 0 | H34: 8152.46 | I34: 235328.95 | J34: 235328.95
A35: 14 | B35: ТЕР06-01-013-01 | C35: Устройство подливки толщиной 20 мм // подливка толщ. 80мм | D35: 100 м2 подливки под оборудование | E35: 0.04 | F35: 97794 | G35: 5083.81 | H35: 2729.5 | I35: 109.18 | J35: 5192.99
B36: 101-1805 | C36: Гвозди строительные | D36: т | E36: 0,002 0,0001 | G36: 0 | J36: 0
B37: 102-0053 | C37: Доски обрезные хвойных пород длиной: 4-6,5 м, шириной 75-150 мм, толщиной 25 мм, III сорта | D37: м3 | E37: 0,1 0,004 | G37: 0 | J37: 0
B38: 102-0061 | C38: Доски обрезные хвойных пород длиной: 4-6,5 м, шириной 75-150 мм, толщиной 44 мм и более, III сорта | D38: м3 | E38: 0,04 0,0016 | G38: 0 | J38: 0
A39: 15 | B39: Прайс | C39: Бетон тяжелый, класс: В30 (М400) W6 | D39: м3 | E39: 0.0816 | G39: 0 | H39: 9929.17 | I39: 810.22 | J39: 810.22
A40: 16 | B40: ТЕР06-01-013-02 | C40: На каждые 10 мм изменения толщины добавлять или исключать к расценке 06-01-013-01 (до 80 мм) | D40: 100 м2 подливки под оборудование | E40: 0.04 | F40: 168149.5 | G40: 8741.24 | H40: 4022.25 | I40: 160.89 | J40: 8902.13
B41: 101-1805 | C41: Гвозди строительные | D41: т | E41: 0,006 0,0002 | G41: 0 | J41: 0
B42: 102-0053 | C42: Доски обрезные хвойных пород длиной: 4-6,5 м, шириной 75-150 мм, толщиной 25 мм, III сорта | D42: м3 | E42: 0,12 0,0048 | G42: 0 | J42: 0
B43: 102-0061 | C43: Доски обрезные хвойных пород длиной: 4-6,5 м, шириной 75-150 мм, толщиной 44 мм и более, III сорта | D43: м3 | E43: 0,06 0,0024 | G43: 0 | J43: 0
A44: 17 | B44: Прайс | C44: Бетон тяжелый, класс: В30 (М400) W6 | D44: м3 | E44: 0.2448 | G44: 0 | H44: 9936.68 | I44: 2432.5 | J44: 2432.5
A45: 18 | B45: ТЕР06-01-001-22 | C45: Устройство ленточных фундаментов: железобетонных при ширине по верху до 1000 мм | D45: 100 м3 бетона, бутобетона и железобетона в деле | E45: 2.43 | F45: 1069943.6 | G45: 3378971.44 | H45: 61661.02 | I45: 149836.28 | J45: 3528807.72
B46: 101-0797 | C46: Проволока горячекатаная в мотках, диаметром 6,3-6,5 мм | D46: т | E46: 0,0303 0,0736 | G46: 0 | J46: 0
B47: 101-1513 | C47: Электроды диаметром: 4 мм Э42 | D47: т | E47: 0,13 0,3159 | G47: 0 | J47: 0
B48: 101-1668 | C48: Рогожа | D48: м2 | E48: 88,2 214,3 | G48: 0 | J48: 0
B49: 101-1805 | C49: Гвозди строительные | D49: т | E49: 0,013 0,0316 | G49: 0 | J49: 0
B50: 102-0053 | C50: Доски обрезные хвойных пород длиной: 4-6,5 м, шириной 75-150 мм, толщиной 25 мм, III сорта | D50: м3 | E50: 0,14 0,3402 | G50: 0 | J50: 0
B51: 102-0061 | C51: Доски обрезные хвойных пород длиной: 4-6,5 м, шириной 75-150 мм, толщиной 44 мм и более, III сорта | D51: м3 | E51: 0,47 1,142 | G51: 0 | J51: 0
B52: 203-0511 | C52: Щиты: из досок толщиной 25 мм | D52: м2 | E52: 39,2 95,26 | G52: 0 | J52: 0
B53: 405-0253 | C53: Известь строительная: негашеная комовая, сорт I | D53: т | E53: 0,025 0,0608 | G53: 0 | J53: 0
B54: 411-0001 | C54: Вода | D54: м3 | E54: 0,283 0,6877 | G54: 0 | J54: 0
A55: 19 | B55: ТСЭМ-110053 | C55: Автобетоносмесители: 4 м3 | D55: маш.-ч | E55: 34.2675 | F55: 4891.92 | G55: 217860.78 | H55: 0 | I55: 0 | J55: 217860.78
A56: 20 | B56: Прайс | C56: Бетон тяжелый, класс: В30 (М400) W8 | D56: м3 | E56: 246.645 | G56: 0 | H56: 9696.85 | I56: 2391678.73 | J56: 2391678.73
A57: 21 | B57: Прайс | C57: Горячекатанная арматурная сталь класса А500 С, диаметром: 12 мм | D57: т | E57: 7.66924 | G57: 0 | H57: 73024.66 | I57: 560043.65 | J57: 560043.65
A58: 22 | B58: Прайс | C58: Горячекатанная арматурная сталь класса А500 С, диаметром: 25 мм | D58: т | E58: 2.79168 | G58: 0 | H58: 71828.09 | I58: 200521.05 | J58: 200521.05
A59: 23 | B59: Прайс | C59: Горячекатанная арматурная сталь класса А500 С, диаметром: 16 мм | D59: т | E59: 12.80332 | G59: 0 | H59: 71828.09 | I59: 919638.08 | J59: 919638.08
A60: 24 | B60: Прайс | C60: Горячекатанная арматурная сталь класса А500 С, диаметром: 20 мм | D60: т | E60: 1.83486 | G60: 0 | H60: 71828.1 | I60: 131794.5 | J60: 131794.5
A61: 25 | B61: Прайс | C61: Горячекатаная арматурная сталь гладкая класса А-I, диаметром: 10 мм | D61: т | E61: 1.2346 | G61: 0 | H61: 77814.74 | I61: 96070.08 | J61: 96070.08
A62: 26 | B62: Прайс | C62: Горячекатаная арматурная сталь гладкая класса А-I, диаметром: 6 мм | D62: т | E62: 0.2926 | G62: 0 | H62: 80208.85 | I62: 23469.11 | J62: 23469.11
A63: 27 | B63: ТССЦ-204-0041 | C63: Надбавки к ценам заготовок за сборку и сварку каркасов и сеток: плоских, диаметром 25-28 мм | D63: т | E63: 2.79168 | F63: 0 | G63: 0 | H63: 10298.94 | I63: 28751.35 | J63: 28751.35
A64: 28 | B64: ТССЦ-204-0040 | C64: Надбавки к ценам заготовок за сборку и сварку каркасов и сеток: плоских, диаметром 20-22 мм | D64: т | E64: 1.83486 | F64: 0 | G64: 0 | H64: 11065.11 | I64: 20302.93 | J64: 20302.93
A65: 29 | B65: ТССЦ-204-0039 | C65: Надбавки к ценам заготовок за сборку и сварку каркасов и сеток: плоских, диаметром 16-18 мм | D65: т | E65: 3.92688 | F65: 0 | G65: 0 | H65: 12463.39 | I65: 48942.23 | J65: 48942.23
A66: 30 | B66: ТССЦ-204-0037 | C66: Надбавки к ценам заготовок за сборку и сварку каркасов и сеток: плоских, диаметром 12 мм | D66: т | E66: 0.1543 | F66: 0 | G66: 0 | H66: 14914.91 | I66: 2301.37 | J66: 2301.37
A67: 31 | B67: ТССЦ-204-0036 | C67: Надбавки к ценам заготовок за сборку и сварку каркасов и сеток: плоских, диаметром 10 мм | D67: т | E67: 0.32472 | F67: 0 | G67: 0 | H67: 15829.08 | I67: 5140.02 | J67: 5140.02
A68: 32 | B68: ТССЦ-204-0034 | C68: Надбавки к ценам заготовок за сборку и сварку каркасов и сеток: плоских, диаметром 5-6 мм | D68: т | E68: 0.2926 | F68: 0 | G68: 0 | H68: 27626.56 | I68: 8083.53 | J68: 8083.53
A69: 33 | B69: ТССЦ-204-0048 | C69: Надбавки к ценам заготовок за сборку и сварку каркасов и сеток: пространственных, диаметром 10 мм | D69: т | E69: 0.90988 | F69: 0 | G69: 0 | H69: 24726.34 | I69: 22498 | J69: 22498
A70: 34 | B70: ТЕР26-01-041-01 | C70: Изоляция изделиями из пенопласта на битуме холодных поверхностей: стен и колонн прямоугольных | D70: 1 м3 изоляции | E70: 0.4 | F70: 41818.3 | G70: 21739.22 | H70: 3411.83 | I70: 1364.73 | J70: 23103.95
B71: 101-0079 | C71: Битумы нефтяные строительные для кровельных мастик марки: БНМ-55/60 | D71: т | E71: 0,07 0,028 | G71: 0 | J71: 0
B72: 101-1805 | C72: Гвозди строительные | D72: т | E72: 0,0039 0,0016 | G72: 0 | J72: 0
B73: 101-2066 | C73: Болты анкерные оцинкованные | D73: кг | E73: 2 0,8 | G73: 0 | J73: 0
B74: 102-0025 | C74: Бруски обрезные хвойных пород длиной: 4-6,5 м, шириной 75-150 мм, толщиной 40-75 мм, III сорта | D74: м3 | E74: 0,05 0,02 | G74: 0 | J74: 0
A75: 35 | B75: Прайс | C75: Пенополистирол экструдированный ТЕХНОНИКОЛЬ т=50мм (вес 30кг/м3) | D75: м3 | E75: 0.392 | G75: 0 | H75: 12489.29 | I75: 4895.8 | J75: 4895.8
A76: 36 | B76: ТЕР10-01-012-04 | C76: Обшивка каркасных стен: досками под штукатурку// прим. футеровка стен досками | D76: 100 м2 обшивки стен (за вычетом проемов) | E76: 2.788 | F76: 46952.59 | G76: 170125.62 | H76: 28390.65 | I76: 79153.12 | J76: 249278.74
B77: 101-0181 | C77: Гвозди строительные с плоской головкой: 1,8х60 мм | D77: т | E77: 0,006 0,0167 | G77: 0 | J77: 0
B78: 101-0195 | C78: Гвозди толевые круглые: 3,0х40 мм | D78: т | E78: 0,0022 0,0061 | G78: 0 | J78: 0
B79: 101-0851 | C79: Пергамин кровельный марки: П-350 | D79: м2 | E79: 105 292,7 | G79: 0 | J79: =G79+I79 -> 0
B80: 102-0069 | C80: Доски необрезные хвойных пород длиной: 4-6,5 м, все ширины, толщиной 19-22 мм, III сорта | D80: м3 | E80: 2 5,576 | G80: 0 | J80: 0
A81: Анкерные болты | G81: 0 | J81: 0
A82: 37 | B82: ТЕР06-01-015-03 | C82: Установка анкерных болтов: при бетонировании со связями из арматуры | D82: 1 т | E82: 0.264 | F82: 278437.27 | G82: 95531.95 | H82: =I82/E82 -> 7084.85 | I82: 1870.4 | J82: 97402.35
B83: 101-1513 | C83: Электроды диаметром: 4 мм Э42 | D83: т | E83: 0,002 0,0005 | G83: 0 | J83: 0
B84: 201-0798 | C84: Кондуктор инвентарный металлический | D84: шт. | E84: 0,01 0,0026 | G84: 0 | J84: 0
B85: 204-0005 | C85: Горячекатаная арматурная сталь гладкая класса А-I, диаметром: 14 мм | D85: т | E85: 0,09 0,0238 | G85: 0 | J85: 0
A86: 38 | B86: ТЦ_01.7.15.01_78_7734683882 _24.06.2022_2 | C86: Болт 1.1 М24х1000 | D86: шт. | E86: 64 | F86: 0 | G86: 0 | H86: 497.12 | I86: 31815.54 | J86: 31815.54
A87: 39 | B87: ТССЦ-101-2578 | C87: Болты с гайками и шайбами для санитарно-технических работ диаметром: 24 мм | D87: т | E87: 0.009939 | F87: 0 | G87: 0 | H87: 181973.04 | I87: 1808.63 | J87: 1808.63
A88: Закладная деталь | G88: 0 | J88: 0
A89: 40 | B89: ТЕРм38-01-006-08 | C89: Сборка с помощью лебедок ручных (с установкой и снятием их в процессе работы) или вручную (мелких деталей): стремянки, связи, кронштейны, тормозные конструкции и пр. | D89: 1 т конструкций | E89: 0.10128 | F89: 301567.34 | G89: 39694.04 | H89: 3418.35 | I89: 346.21 | J89: 40040.25
B90: 101-0324 | C90: Кислород технический: газообразный | D90: м3 | E90: 0,6 0,0608 | G90: 0 | J90: 0
B91: 101-1521 | C91: Электроды диаметром: 5 мм Э42 | D91: т | E91: 0,019 0,0019 | G91: 0 | J91: 0
B92: 101-2278 | C92: Пропан-бутан, смесь техническая | D92: кг | E92: 0,2 0,0203 | G92: 0 | J92: 0
B93: 999-9950 | C93: Вспомогательные ненормируемые ресурсы (2% от Оплаты труда рабочих) | D93: руб | E93: 46,36 4,695 | G93: 0 | J93: 0
A94: 41 | B94: ТЕР06-01-092-11 | C94: Установка закладных деталей при массе элементов: до 5 кг | D94: 1 т арматуры, закладных деталей | E94: 0.10128 | F94: 175513.63 | G94: 23102.12 | H94: 638.33 | I94: 64.65 | J94: 23166.77
B95: 101-0816 | C95: Проволока светлая диаметром: 1,1 мм | D95: т | E95: 0,006 0,0006 | G95: 0 | J95: 0
A96: 42 | B96: Прайс | C96: Горячекатанная арматурная сталь класса А500 С, диаметром: 12 мм | D96: т | E96: 0.02592 | G96: 0 | H96: 73047.45 | I96: 1893.39 | J96: 1893.39
A97: 43 | B97: Прайс | C97: Прокат листовой 10мм | D97: т | E97: 0.07536 | G97: 0 | H97: 130045.51 | I97: 9800.23 | J97: 9800.23
A98: Антикоррозионная обработка деталей | G98: 0 | J98: 0
A99: 44 | B99: ТЕР13-03-002-04 | C99: Огрунтовка металлических поверхностей за один раз: грунтовкой ГФ-021 | D99: 100 м2 окрашиваемой поверхности | E99: 0.029371 | F99: 12814.68 | G99: 489.15 | H99: 440.23 | I99: 12.93 | J99: 502.08
B100: 113-0077 | C100: Ксилол нефтяной марки А | D100: т | E100: 0,002 0,0001 | G100: 0 | J100: 0
A101: 45 | B101: Прайс | C101: Грунтовка: ГФ-021 красно-коричневая | D101: кг | E101: 0.352452 | G101: 0 | H101: 403.52 | I101: 142.22 | J101: 142.22
A102: За два раза ПЗ=2 (ОЗП=2; ЭМ=2 к расх.; ЗПМ=2; МАТ=2 к расх.; ТЗ=2; ТЗМ=2) | G102: 0 | J102: 0
A103: 46 | B103: ТЕР13-03-004-26 | C103: Окраска металлических огрунтованных поверхностей: эмалью ПФ-115 (за 2 раза) К=2 | D103: 100 м2 окрашиваемой поверхности | E103: 0.029371 | F103: 15798.24 | G103: 603.04 | H103: 244.46 | I103: 7.18 | J103: 610.22
B104: 101-1292 | C104: Уайт-спирит | D104: т | E104: 0,0028 0,0001 | G104: 0 | J104: 0
A105: 47 | B105: Прайс | C105: Эмаль ПФ-115 серая | D105: кг | E105: 1.116098 | G105: 0 | H105: 505.84 | I105: 564.57 | J105: 564.57
A106: Раздел 3. Плита пола | G106: 0 | J106: 0
A107: 48 | B107: ТЕР08-01-002-02 | C107: Устройство основания под фундаменты: щебеночного | D107: 1 м3 основания | E107: 111.4 | F107: 7072 | G107: 1023871.56 | H107: 4.11 | I107: 458.26 | J107: 1024329.82
B108: 411-0001 | C108: Вода | D108: м3 | E108: 0,15 16,71 | G108: 0 | J108: 0
A109: 49 | B109: ТССЦ-408-0015 | C109: Щебень из природного камня для строительных работ марка: 800, фракция 20-40 мм | D109: м3 | E109: 144.82 | F109: 0 | G109: 0 | H109: 3394.17 | I109: 491544.07 | J109: 491544.07
A110: 50 | B110: ТЕР06-01-001-01 | C110: Устройство бетонной подготовки | D110: 100 м3 бетона, бутобетона и железобетона в деле | E110: 0.516 | F110: 401455.02 | G110: 269217.91 | H110: 25911.01 | I110: 13370.08 | J110: 282587.99
B111: 101-1668 | C111: Рогожа | D111: м2 | E111: 250 129 | G111: 0 | J111: 0
B112: 411-0001 | C112: Вода | D112: м3 | E112: 0,2 0,1032 | G112: 0 | J112: 0
A113: 51 | B113: ТСЭМ-110053 | C113: Автобетоносмесители: 4 м3 | D113: маш.-ч | E113: 6.408 | F113: 4891.89 | G113: 40739.57 | H113: 0 | I113: 0 | J113: 40739.57
A114: 52 | B114: Прайс | C114: Бетон тяжелый, класс: В7,5 (М100) | D114: м3 | E114: 52.632 | G114: 0 | H114: 8152.47 | I114: 429080.92 | J114: 429080.92
A115: 53 | B115: ТЕР26-01-041-01 | C115: Изоляция изделиями из пенопласта на битуме холодных поверхностей: стен и колонн прямоугольных | D115: 1 м3 изоляции | E115: 1 | F115: 41815 | G115: 54344.3 | H115: 3413.27 | I115: 3413.27 | J115: 57757.57
B116: 101-0079 | C116: Битумы нефтяные строительные для кровельных мастик марки: БНМ-55/60 | D116: т | E116: 0,07 0,07 | G116: 0 | J116: 0
B117: 101-1805 | C117: Гвозди строительные | D117: т | E117: 0,0039 0,0039 | G117: 0 | J117: 0
B118: 101-2066 | C118: Болты анкерные оцинкованные | D118: кг | E118: 2 2 | G118: 0 | J118: 0
B119: 102-0025 | C119: Бруски обрезные хвойных пород длиной: 4-6,5 м, шириной 75-150 мм, толщиной 40-75 мм, III сорта | D119: м3 | E119: 0,05 0,05 | G119: 0 | J119: 0
A120: 54 | B120: Прайс | C120: Пенополистирол экструдированный ТЕХНОНИКОЛЬ т=50мм (вес 30кг/м3) | D120: м3 | E120: 0.98 | G120: 0 | H120: 12489.3 | I120: 12239.51 | J120: 12239.51
A121: 55 | B121: ТЕР06-01-001-16 | C121: Устройство фундаментных плит железобетонных: плоских | D121: 100 м3 бетона, бутобетона и железобетона в деле | E121: 1.023 | F121: 553907.65 | G121: 736428.12 | H121: 7828.77 | I121: 8008.83 | J121: 744436.95
B122: 101-0797 | C122: Проволока горячекатаная в мотках, диаметром 6,3-6,5 мм | D122: т | E122: 0,0102 0,0104 | G122: 0 | J122: 0
B123: 101-1513 | C123: Электроды диаметром: 4 мм Э42 | D123: т | E123: 0,005 0,0051 | G123: 0 | J123: 0
B124: 101-1668 | C124: Рогожа | D124: м2 | E124: 30 30,69 | G124: 0 | J124: 0
B125: 101-1805 | C125: Гвозди строительные | D125: т | E125: 0,002 0,002 | G125: 0 | J125: 0
B126: 102-0061 | C126: Доски обрезные хвойных пород длиной: 4-6,5 м, шириной 75-150 мм, толщиной 44 мм и более, III сорта | D126: м3 | E126: 0,04 0,0409 | G126: 0 | J126: 0
B127: 203-0512 | C127: Щиты: из досок толщиной 40 мм | D127: м2 | E127: 3,6 3,683 | G127: 0 | J127: 0
B128: 405-0253 | C128: Известь строительная: негашеная комовая, сорт I | D128: т | E128: 0,01 0,0102 | G128: 0 | J128: 0
B129: 411-0001 | C129: Вода | D129: м3 | E129: 0,73 0,7468 | G129: 0 | J129: 0
A130: 56 | B130: ТСЭМ-110053 | C130: Автобетоносмесители: 4 м3 | D130: маш.-ч | E130: 13.797 | F130: 4891.93 | G130: 87716.74 | H130: 0 | I130: 0 | J130: 87716.74
A131: 57 | B131: Прайс | C131: Бетон тяжелый, класс: В30 (М400) W8 | D131: м3 | E131: 103.8345 | G131: 0 | H131: 9696.85 | I131: 1006867.55 | J131: 1006867.55
A132: 58 | B132: Прайс | C132: Горячекатанная арматурная сталь класса А500 С, диаметром: 12 мм | D132: т | E132: 10.30626 | G132: 0 | H132: 73024.73 | I132: 752611.9 | J132: 752611.9
A133: 59 | B133: Прайс | C133: Горячекатаная арматурная сталь гладкая класса А-I, диаметром: 10 мм | D133: т | E133: 0.4368 | G133: 0 | H133: 77813.76 | I133: 33989.05 | J133: 33989.05
A134: 60 | B134: Прайс | C134: Горячекатаная арматурная сталь гладкая класса А-I, диаметром: 20 мм | D134: т | E134: 0.2976 | G134: 0 | H134: 76018.08 | I134: 22622.98 | J134: 22622.98
A135: 61 | B135: ТССЦ-204-0037 | C135: Надбавки к ценам заготовок за сборку и сварку каркасов и сеток: плоских, диаметром 12 мм | D135: т | E135: 1.10544 | F135: 0 | G135: 0 | H135: 14910.9 | I135: 16483.11 | J135: 16483.11
A136: 62 | B136: ТССЦ-204-0048 | C136: Надбавки к ценам заготовок за сборку и сварку каркасов и сеток: пространственных, диаметром 10 мм | D136: т | E136: 0.4368 | F136: 0 | G136: 0 | H136: 24725.43 | I136: 10800.07 | J136: 10800.07
A137: Раздел 4. Пандус и площадка | G137: 0 | J137: 0
A138: Пандус | G138: 0 | J138: 0
A139: 63 | B139: ТЕР06-01-001-01 | C139: Устройство бетонной подготовки | D139: 100 м3 бетона, бутобетона и железобетона в деле | E139: 0.0372 | F139: 401426.34 | G139: 19407.35 | H139: 25950.81 | I139: 965.37 | J139: 20372.72
B140: 101-1668 | C140: Рогожа | D140: м2 | E140: 250 9,3 | G140: 0 | J140: 0
B141: 411-0001 | C141: Вода | D141: м3 | E141: 0,2 0,0074 | G141: 0 | J141: 0
A142: 64 | B142: ТСЭМ-110053 | C142: Автобетоносмесители: 4 м3 | D142: маш.-ч | E142: 0.462 | F142: 4891.15 | G142: 2936.77 | H142: 0 | I142: 0 | J142: 2936.77
A143: 65 | B143: Прайс | C143: Бетон тяжелый, класс: В7,5 (М100) | D143: м3 | E143: 3.7944 | G143: 0 | H143: =I143/E143 -> 8152.41 | I143: 30933.49 | J143: =G143+I143 -> 30933.49
A144: 66 | B144: ТЕР06-01-001-16 | C144: Устройство фундаментных плит железобетонных: плоских | D144: 100 м3 бетона, бутобетона и железобетона в деле | E144: 0.0946 | F144: 553926.74 | G144: 68102.15 | H144: 7820.61 | I144: 739.83 | J144: 68841.98
B145: 101-0797 | C145: Проволока горячекатаная в мотках, диаметром 6,3-6,5 мм | D145: т | E145: 0,0102 0,001 | G145: 0 | J145: 0
B146: 101-1513 | C146: Электроды диаметром: 4 мм Э42 | D146: т | E146: 0,005 0,0005 | G146: 0 | J146: 0
B147: 101-1668 | C147: Рогожа | D147: м2 | E147: 30 2,838 | G147: 0 | J147: 0
B148: 101-1805 | C148: Гвозди строительные | D148: т | E148: 0,002 0,0002 | G148: 0 | J148: 0
B149: 102-0061 | C149: Доски обрезные хвойных пород длиной: 4-6,5 м, шириной 75-150 мм, толщиной 44 мм и более, III сорта | D149: м3 | E149: 0,04 0,0038 | G149: 0 | J149: 0
B150: 203-0512 | C150: Щиты: из досок толщиной 40 мм | D150: м2 | E150: 3,6 0,3406 | G150: 0 | J150: 0
B151: 405-0253 | C151: Известь строительная: негашеная комовая, сорт I | D151: т | E151: 0,01 0,0009 | G151: 0 | J151: 0
B152: 411-0001 | C152: Вода | D152: м3 | E152: 0,73 0,0691 | G152: 0 | J152: 0
A153: 67 | B153: ТСЭМ-110053 | C153: Автобетоносмесители: 4 м3 | D153: маш.-ч | E153: 1.278 | F153: 4890.83 | G153: 8123.27 | H153: 0 | I153: 0 | J153: 8123.27
A154: 68 | B154: Прайс | C154: Бетон тяжелый, класс: В30 (М400) W8 | D154: м3 | E154: 9.6019 | G154: 0 | H154: 9696.82 | I154: 93107.89 | J154: 93107.89
A155: 69 | B155: Прайс | C155: Горячекатанная арматурная сталь класса А500 С, диаметром: 12 мм | D155: т | E155: 1.37272 | G155: 0 | H155: 73024.25 | I155: 100241.85 | J155: 100241.85
A156: Площадка | G156: 0 | J156: 0
A157: 70 | B157: ТЕР06-01-001-01 | C157: Устройство бетонной подготовки | D157: 100 м3 бетона, бутобетона и железобетона в деле | E157: 0.0032 | F157: 401340.63 | G157: 1669.09 | H157: 26037.5 | I157: 83.32 | J157: 1752.41
B158: 101-1668 | C158: Рогожа | D158: м2 | E158: 250 0,8 | G158: 0 | J158: 0
B159: 411-0001 | C159: Вода | D159: м3 | E159: 0,2 0,0006 | G159: 0 | J159: 0
A160: 71 | B160: ТСЭМ-110053 | C160: Автобетоносмесители: 4 м3 | D160: маш.-ч | E160: 0.042 | F160: 4891.19 | G160: 266.98 | H160: 0 | I160: 0 | J160: 266.98
A161: 72 | B161: Прайс | C161: Бетон тяжелый, класс: В7,5 (М100) | D161: м3 | E161: 0.3264 | G161: 0 | H161: 8151.07 | I161: 2660.51 | J161: 2660.51
A162: 73 | B162: ТЕР06-01-001-16 | C162: Устройство фундаментных плит железобетонных: плоских | D162: 100 м3 бетона, бутобетона и железобетона в деле | E162: 0.0946 | F162: 553926.74 | G162: 68102.15 | H162: 7820.61 | I162: 739.83 | J162: 68841.98
B163: 101-0797 | C163: Проволока горячекатаная в мотках, диаметром 6,3-6,5 мм | D163: т | E163: 0,0102 0,001 | G163: 0 | J163: 0
B164: 101-1513 | C164: Электроды диаметром: 4 мм Э42 | D164: т | E164: 0,005 0,0005 | G164: 0 | J164: 0
B165: 101-1668 | C165: Рогожа | D165: м2 | E165: 30 2,838 | G165: 0 | J165: 0
B166: 101-1805 | C166: Гвозди строительные | D166: т | E166: 0,002 0,0002 | G166: 0 | J166: 0
B167: 102-0061 | C167: Доски обрезные хвойных пород длиной: 4-6,5 м, шириной 75-150 мм, толщиной 44 мм и более, III сорта | D167: м3 | E167: 0,04 0,0038 | G167: 0 | J167: 0
B168: 203-0512 | C168: Щиты: из досок толщиной 40 мм | D168: м2 | E168: 3,6 0,3406 | G168: 0 | J168: 0
B169: 405-0253 | C169: Известь строительная: негашеная комовая, сорт I | D169: т | E169: 0,01 0,0009 | G169: 0 | J169: 0
B170: 411-0001 | C170: Вода | D170: м3 | E170: 0,73 0,0691 | G170: 0 | J170: 0
A171: 74 | B171: ТСЭМ-110053 | C171: Автобетоносмесители: 4 м3 | D171: маш.-ч | E171: 1.278 | F171: 4890.83 | G171: 8123.27 | H171: 0 | I171: 0 | J171: 8123.27
A172: 75 | B172: Прайс | C172: Бетон тяжелый, класс: В30 (М400) W8 | D172: м3 | E172: 9.6019 | G172: 0 | H172: 9696.82 | I172: 93107.89 | J172: 93107.89
A173: 76 | B173: Прайс | C173: Горячекатанная арматурная сталь класса А500 С, диаметром: 12 мм | D173: т | E173: 0.10152 | G173: 0 | H173: 73030.93 | I173: 7414.1 | J173: 7414.1
A174: 77 | B174: ТССЦ-204-0037 | C174: Надбавки к ценам заготовок за сборку и сварку каркасов и сеток: плоских, диаметром 12 мм | D174: т | E174: 0.02844 | F174: 0 | G174: 0 | H174: 14901.2 | I174: 423.79 | J174: 423.79
A175: Раздел 5. Гидроизоляционные работы | G175: 0 | J175: 0
A176: 78 | B176: ТЕР08-01-003-07 | C176: Гидроизоляция боковая обмазочная битумная в 2 слоя по выровненной поверхности бутовой кладки, кирпичу, бетону | D176: 100 м2 изолируемой поверхности | E176: 4.848 | F176: 52865.06 | G176: 333080.12 | H176: 13242.56 | I176: 64199.95 | J176: 397280.07
B177: 101-0073 | C177: Битумы нефтяные строительные марки: БН-90/10 | D177: т | E177: 0,016 0,0776 | G177: 0 | J177: 0
B178: 101-0322 | C178: Керосин для технических целей марок КТ-1, КТ-2 | D178: т | E178: 0,024 0,1164 | G178: 0 | J178: 0
B179: 101-0594 | C179: Мастика битумная кровельная горячая | D179: т | E179: 0,24 1,164 | G179: 0 | J179: 0
B180: 101-1757 | C180: Ветошь | D180: кг | E180: 0,1 0,4848 | G180: 0 | J180: 0
A181: 79 | B181: ТЕР13-03-003-14 | C181: Окраска огрунтованных бетонных и оштукатуренных поверхностей: лаком ХП-734 | D181: 100 м2 окрашиваемой поверхности | E181: 1.92 | F181: 15255.24 | G181: 38066.03 | H181: 11736.41 | I181: 22533.91 | J181: 60599.94
B182: 113-0077 | C182: Ксилол нефтяной марки А | D182: т | E182: 0,005 0,0096 | G182: 0 | J182: 0
B183: 113-0086 | C183: Лак ХП-734, марки А, сорт I | D183: т | E183: 0,032 0,0614 | G183: 0 | J183: 0
A184: 80 | B184: ТЕР13-03-003-15 | C184: Окраска огрунтованных бетонных и оштукатуренных поверхностей: эмалью ХП-799 | D184: 100 м2 окрашиваемой поверхности | E184: 1.92 | F184: 6727.15 | G184: 17675.76 | H184: 9834.46 | I184: 18882.17 | J184: 36557.93
B185: 113-0077 | C185: Ксилол нефтяной марки А | D185: т | E185: 0,004 0,0077 | G185: 0 | J185: 0
B186: 113-0249 | C186: Эмаль ХП-799 | D186: т | E186: 0,029 0,0557 | G186: 0 | J186: 0
A187: Раздел 6. Доставка материалов на объект | G187: 0 | J187: 0
A188: Перевозка материалов ( металл 140 км. ОП "МКМ-СПб") | G188: 0 | J188: 0
A189: 81 | C189: Металлопрокат, трубопрокат и металлоконструкции | D189: т | E189: 0.349299 | F189: 0 | G189: 0 | H189: 0 | I189: 0 | J189: 0
A190: 82 | B190: ТССЦпг-03-02-01-140 | C190: Перевозка строительных грузов (кроме массовых навалочных, перевозимых автомобилями-самосвалами, а также бетонных и железобетонных изделий, стеновых и перегородочных материалов, лесоматериалов круглых и пиломатериалов, включенных в таблицу 03-01), бортовым автомобилем грузоподъемностью 5 т, на расстояние до 140 км I класс груза | D190: 1 т груза | E190: 0.349299 | F190: 0 | G190: 0 | H190: 201.52 | I190: 70.39 | J190: 70.39
A191: 84 | B191: ТССЦпг-01-01-02-015 | C191: Разгрузочные работы при автомобильных перевозках: металлических конструкций массой до 1 т | D191: 1 т груза | E191: 0.349299 | F191: 0 | G191: 0 | H191: 407.16 | I191: 142.22 | J191: 142.22
C192: Всего, руб. с НДС | G192: =SUM(G14:G191) -> 8160082.32 | I192: =SUM(I14:I191) -> 8508102.82 | J192: =SUM(J14:J191) -> 16668185.14
C193: Всего, руб. без НДС | G193: =G192/1.2 -> 6800068.6 | I193: =I192/1.2 -> 7090085.68 | J193: =J192/1.2 -> 13890154.28

Sheet 1632-2021-3.4-КМ
A2: Терминал по перевалке минеральных удобрений в морском торговом порту Усть-Луга. Береговые объекты терминала
A3: (наименование стройки)
A5: ЛОКАЛЬНАЯ СМЕТА № 1632-2021-3.4-КМ_01.05.060-П-01-04
A6: (локальная смета)
A7: на Конструкции металлические, 07.06.060 Ангар для хранения ТМЦ (код SAP 01.05.019) код ГП 3.4 | W7: на Конструкции металлические, 07.06.060 Ангар для хранения ТМЦ (код SAP 01.05.019) код ГП 3.4
A8: (наименование работ и затрат, наименование объекта)
B9: Основание: | C9: 1632-2021-3.4-КМ_0_D_RU_IFR | AL9: 1632-2021-3.4-КМ_0_D_RU_IFR
A11: № п/п | B11: Обоснование | C11: Наименование работ и затрат | D11: Ед. изм. | E11: Кол-во | F11: Цена за ед.измерения работ, руб. с НДС | G11: Всего, стоимость работ,руб. с НДС | H11: Цена за ед.измерения материалов, руб. с НДС | I11: Всего, стоимость материалов, руб. с НДС | J11: Итого, руб. с НДС
A12: 1 | B12: 2 | C12: 3 | D12: 4 | E12: 5 | F12: 6 | G12: 7 | H12: 8 | I12: 9 | J12: 10
A13: Раздел 1. Колонны
A14: 1 | B14: ТЕР09-03-002-01 | C14: Монтаж колонн одноэтажных и многоэтажных зданий и крановых эстакад высотой: до 25 м цельного сечения массой до 1,0 т | D14: 1 т конструкций | E14: 4.68135 | F14: 33960.9 | G14: 158982.87 | H14: 653.94 | I14: 3061.31 | J14: =G14+I14 -> 162044.18
B15: 101-0309 | C15: Канаты пеньковые пропитанные | D15: т | E15: 0,0001 0,0005 | J15: 0
B16: 101-0324 | C16: Кислород технический: газообразный | D16: м3 | E16: 0,7 3,277 | J16: 0
B17: 101-0797 | C17: Проволока горячекатаная в мотках, диаметром 6,3-6,5 мм | D17: т | E17: 0,00003 0,0001 | J17: 0
B18: 101-1019 | C18: Швеллеры № 40 из стали марки: Ст0 | D18: т | E18: 0,00194 0,0091 | J18: 0
B19: 101-1513 | C19: Электроды диаметром: 4 мм Э42 | D19: т | E19: 0,0004 0,0019 | J19: 0
B20: 101-1714 | C20: Болты с гайками и шайбами строительные | D20: т | E20: 0,00015 0,0007 | J20: 0
B21: 101-1805 | C21: Гвозди строительные | D21: т | E21: 0,00001 0 | J21: 0
B22: 101-2278 | C22: Пропан-бутан, смесь техническая | D22: кг | E22: 0,21 0,9831 | J22: 0
B23: 101-2467 | C23: Растворитель марки: Р-4 | D23: т | E23: 0,0006 0,0028 | J23: 0
B24: 102-0023 | C24: Бруски обрезные хвойных пород длиной: 4-6,5 м, шириной 75-150 мм, толщиной 40-75 мм, I сорта | D24: м3 | E24: 0,00103 0,0048 | J24: 0
B25: 113-0021 | C25: Грунтовка: ГФ-021 красно-коричневая | D25: т | E25: 0,00031 0,0015 | J25: 0
B26: 201-0756 | C26: Отдельные конструктивные элементы зданий и сооружений с преобладанием: горячекатаных профилей, средняя масса сборочной единицы от 0,1 до 0,5 т | D26: т | E26: 0,0004 0,0019 | J26: 0
B27: 508-0097 | C27: Канат двойной свивки типа ТК, конструкции 6х19(1+6+12)+1 о.с., оцинкованный из проволок марки В, маркировочная группа: 1770 н/мм2, диаметром 5,5 мм | D27: 10 м | E27: 0,0187 0,0875 | J27: 0
A28: 2 | B28: ТЕРм38-01-002-03 | C28: Монорельсы, балки и другие аналогичные конструкции промышленных зданий, сборка с помощью: лебедок электрических (с установкой и снятием их в процессе работы) | D28: 1 т конструкций | E28: 4.68135 | F28: 66109.43 | G28: 309481.4 | H28: 671.12 | I28: 3141.76 | J28: 312623.16
B29: 101-0324 | C29: Кислород технический: газообразный | D29: м3 | E29: 0,6 2,809 | J29: 0
B30: 101-1521 | C30: Электроды диаметром: 5 мм Э42 | D30: т | E30: 0,0032 0,015 | J30: 0
B31: 101-2278 | C31: Пропан-бутан, смесь техническая | D31: кг | E31: 0,2 0,9363 | J31: 0
B32: 999-9950 | C32: Вспомогательные ненормируемые ресурсы (2% от Оплаты труда рабочих) | D32: руб | E32: 10,14 47,47 | J32: 0
A33: 3 | B33: Прайс | C33: Профиль гн. 180*6 | D33: т | E33: 2.49672 | H33: 128402.87 | I33: 320586.02 | J33: 320586.02
A34: 4 | B34: Прайс | C34: Уголок не равнополочный 160*100*12 | D34: т | E34: 0.10403 | H34: 143614.73 | I34: 14940.24 | J34: 14940.24
A35: 5 | B35: Прайс | C35: Уголок не равнополочный 140*90*8 | D35: т | E35: 0.20806 | H35: 139175.14 | I35: 28956.78 | J35: 28956.78
A36: 6 | B36: Прайс | C36: Уголок не равнополочный 100*63*8 (прим. 100*63*6) | D36: т | E36: 0.10403 | H36: 118661.73 | I36: 12344.38 | J36: 12344.38
A37: 7 | B37: Прайс | C37: Прокат листовой 20мм | D37: т | E37: 0.10403 | H37: 106979.14 | I37: 11129.04 | J37: 11129.04
A38: 8 | B38: Прайс | C38: Прокат листовой 16мм | D38: т | E38: 0.41612 | H38: 103816.9 | I38: 43200.29 | J38: 43200.29
A39: 9 | B39: Прайс | C39: Прокат листовой 10мм | D39: т | E39: 0.41612 | H39: 94506.1 | I39: 39325.88 | J39: 39325.88
A40: Перевозка материалов ( металл 140 км. ОП "МКМ-СПб") | J40: 0
A41: 10 | C41: металлопрокат, трубопрокат и металлоконструкции | D41: т | E41: 4.68135 | F41: 0 | G41: 0 | H41: 0 | I41: 0 | J41: 0
A42: 11 | B42: ТССЦпг-03-02-01-140 | C42: Перевозка строительных грузов (кроме массовых навалочных, перевозимых автомобилями-самосвалами, а также бетонных и железобетонных изделий, стеновых и перегородочных материалов, лесоматериалов круглых и пиломатериалов, включенных в таблицу 03-01), бортовым автомобилем грузоподъемностью 5 т, на расстояние до 140 км I класс груза | D42: 1 т груза | E42: 4.68135 | F42: 0 | G42: 0 | H42: 200.08 | I42: 936.64 | J42: 936.64
A43: 12 | B43: ТССЦпг-01-01-02-015 | C43: Разгрузочные работы при автомобильных перевозках: металлических конструкций массой до 1 т | D43: 1 т груза | E43: 4.68135 | F43: 0 | G43: 0 | H43: 405.68 | I43: 1899.13 | J43: 1899.13
A44: Раздел 2. Фермы | J44: 0
A45: 13 | B45: ТЕР09-03-012-01 | C45: Монтаж стропильных и подстропильных ферм на высоте до 25 м пролетом: до 24 м массой до 3,0 т | D45: 1 т конструкций | E45: 6.34583 | F45: 73404.94 | G45: 465815.25 | H45: 1679.05 | I45: 10654.98 | J45: 476470.23
B46: 101-0309 | C46: Канаты пеньковые пропитанные | D46: т | E46: 0,0001 0,0006 | J46: 0
B47: 101-0324 | C47: Кислород технический: газообразный | D47: м3 | E47: 0,72 4,569 | J47: 0
B48: 101-0797 | C48: Проволока горячекатаная в мотках, диаметром 6,3-6,5 мм | D48: т | E48: 0,00003 0,0002 | J48: 0
B49: 101-1019 | C49: Швеллеры № 40 из стали марки: Ст0 | D49: т | E49: 0,00194 0,0123 | J49: 0
B50: 101-1513 | C50: Электроды диаметром: 4 мм Э42 | D50: т | E50: 0,0027 0,0171 | J50: 0
B51: 101-1714 | C51: Болты с гайками и шайбами строительные | D51: т | E51: 0,0019 0,0121 | J51: 0
B52: 101-1805 | C52: Гвозди строительные | D52: т | E52: 0,00001 0,0001 | J52: 0
B53: 101-2278 | C53: Пропан-бутан, смесь техническая | D53: кг | E53: 0,22 1,396 | J53: 0
B54: 101-2467 | C54: Растворитель марки: Р-4 | D54: т | E54: 0,0006 0,0038 | J54: 0
B55: 102-0023 | C55: Бруски обрезные хвойных пород длиной: 4-6,5 м, шириной 75-150 мм, толщиной 40-75 мм, I сорта | D55: м3 | E55: 0,00103 0,0065 | J55: 0
B56: 113-0021 | C56: Грунтовка: ГФ-021 красно-коричневая | D56: т | E56: 0,00031 0,002 | J56: 0
B57: 201-0756 | C57: Отдельные конструктивные элементы зданий и сооружений с преобладанием: горячекатаных профилей, средняя масса сборочной единицы от 0,1 до 0,5 т | D57: т | E57: 0,002 0,0127 | J57: 0
B58: 508-0097 | C58: Канат двойной свивки типа ТК, конструкции 6х19(1+6+12)+1 о.с., оцинкованный из проволок марки В, маркировочная группа: 1770 н/мм2, диаметром 5,5 мм | D58: 10 м | E58: 0,0187 0,1187 | J58: 0
A59: 14 | B59: ТЕРм38-01-003-03 | C59: Решетчатые конструкции (стойки, опоры, фермы и пр.), сборка с помощью: лебедок электрических (с установкой и снятием их в процессе работы) | D59: 1 т конструкций | E59: 6.34583 | F59: 250098.63 | G59: 1587083.4 | H59: 3971.14 | I59: 25200.17 | J59: 1612283.57
B60: 101-0324 | C60: Кислород технический: газообразный | D60: м3 | E60: 2,6 16,5 | J60: 0
B61: 101-1521 | C61: Электроды диаметром: 5 мм Э42 | D61: т | E61: 0,0215 0,1364 | J61: 0
B62: 101-2278 | C62: Пропан-бутан, смесь техническая | D62: кг | E62: 0,5 3,173 | J62: 0
B63: 999-9950 | C63: Вспомогательные ненормируемые ресурсы (2% от Оплаты труда рабочих) | D63: руб | E63: 42,32 268,6 | J63: 0
A64: 2 920,87 = 8 047,73 - 1,032 x 4 967,89 | J64: 0
A65: 15 | B65: Прайс | C65: Профиль гн. 140*6 | D65: т | E65: 3.53702 | H65: 120369.56 | I65: 425749.54 | J65: 425749.54
A66: 16 | B66: Прайс | C66: Профиль гн. 120*5 | D66: т | E66: 0.62418 | H66: 113869.94 | I66: 71075.34 | J66: 71075.34
A67: 17 | B67: Прайс | C67: Профиль гн. 100*5 | D67: т | E67: 1.45642 | H67: 109780.46 | I67: 159886.46 | J67: 159886.46
A68: 18 | B68: Прайс | C68: Уголок не равнополочный 140*90*8 | D68: т | E68: 0.10403 | H68: 139168.22 | I68: 14477.67 | J68: 14477.67
A69: 19 | B69: Прайс | C69: Уголок не равнополочный 100*63*8 (прим. 100*63*6) | D69: т | E69: 0.20806 | H69: 118668.61 | I69: 24690.19 | J69: 24690.19
A70: 20 | B70: Прайс | C70: Прокат листовой 16мм | D70: т | E70: 0.31209 | H70: 103816.91 | I70: 32400.22 | J70: 32400.22
A71: 21 | B71: Прайс | C71: Прокат листовой 10мм | D71: т | E71: 0.10403 | H71: 94509.56 | I71: 9831.83 | J71: 9831.83
A72: 22 | B72: Прайс | C72: Прокат листовой 4мм | D72: т | E72: 0.10403 | H72: 76433.43 | I72: 7951.37 | J72: 7951.37
A73: Перевозка материалов ( металл 140 км. ОП "МКМ-СПб") | J73: 0
A74: 23 | C74: металлопрокат, трубопрокат и металлоконструкции | D74: т | E74: 6.34583 | F74: 0 | G74: 0 | H74: 0 | I74: 0 | J74: 0
A75: 24 | B75: ТССЦпг-03-02-01-140 | C75: Перевозка строительных грузов (кроме массовых навалочных, перевозимых автомобилями-самосвалами, а также бетонных и железобетонных изделий, стеновых и перегородочных материалов, лесоматериалов круглых и пиломатериалов, включенных в таблицу 03-01), бортовым автомобилем грузоподъемностью 5 т, на расстояние до 140 км I класс груза | D75: 1 т груза | E75: 6.34583 | F75: 0 | G75: 0 | H75: 200.12 | I75: 1269.92 | J75: 1269.92
A76: 25 | B76: ТССЦпг-01-01-02-015 | C76: Разгрузочные работы при автомобильных перевозках: металлических конструкций массой до 1 т | D76: 1 т груза | E76: 6.34583 | F76: 0 | G76: 0 | H76: 405.67 | I76: 2574.32 | J76: 2574.32
A77: Раздел 3. Балки и прогоны | J77: =G77+I77 -> 0
A78: 26 | B78: ТЕР09-03-002-12 | C78: Монтаж балок, ригелей перекрытия, покрытия и под установку оборудования многоэтажных зданий при высоте здания: до 25 м | D78: 1 т конструкций | E78: 6.2418 | F78: 59872.17 | G78: 373710.08 | H78: 1828.33 | I78: 11412.05 | J78: 385122.13
B79: 101-0309 | C79: Канаты пеньковые пропитанные | D79: т | E79: 0,0001 0,0006 | J79: 0
B80: 101-0324 | C80: Кислород технический: газообразный | D80: м3 | E80: 1,95 12,17 | J80: 0
B81: 101-0797 | C81: Проволока горячекатаная в мотках, диаметром 6,3-6,5 мм | D81: т | E81: 0,00003 0,0002 | J81: 0
B82: 101-1019 | C82: Швеллеры № 40 из стали марки: Ст0 | D82: т | E82: 0,00194 0,0121 | J82: 0
B83: 101-1513 | C83: Электроды диаметром: 4 мм Э42 | D83: т | E83: 0,0031 0,0193 | J83: 0
B84: 101-1714 | C84: Болты с гайками и шайбами строительные | D84: т | E84: 0,0031 0,0193 | J84: 0
B85: 101-1805 | C85: Гвозди строительные | D85: т | E85: 0,00001 0,0001 | J85: 0
B86: 101-2278 | C86: Пропан-бутан, смесь техническая | D86: кг | E86: 0,59 3,683 | J86: 0
B87: 101-2467 | C87: Растворитель марки: Р-4 | D87: т | E87: 0,0006 0,0037 | J87: 0
B88: 102-0023 | C88: Бруски обрезные хвойных пород длиной: 4-6,5 м, шириной 75-150 мм, толщиной 40-75 мм, I сорта | D88: м3 | E88: 0,00103 0,0064 | J88: 0
B89: 113-0021 | C89: Грунтовка: ГФ-021 красно-коричневая | D89: т | E89: 0,00031 0,0019 | J89: 0
B90: 201-0756 | C90: Отдельные конструктивные элементы зданий и сооружений с преобладанием: горячекатаных профилей, средняя масса сборочной единицы от 0,1 до 0,5 т | D90: т | E90: 0,0005 0,0031 | J90: 0
B91: 508-0097 | C91: Канат двойной свивки типа ТК, конструкции 6х19(1+6+12)+1 о.с., оцинкованный из проволок марки В, маркировочная группа: 1770 н/мм2, диаметром 5,5 мм | D91: 10 м | E91: 0,0187 0,1167 | J91: 0
A92: 27 | B92: ТЕРм38-01-002-03 | C92: Монорельсы, балки и другие аналогичные конструкции промышленных зданий, сборка с помощью: лебедок электрических (с установкой и снятием их в процессе работы) | D92: 1 т конструкций | E92: 6.2418 | F92: 66109.97 | G92: 412645.22 | H92: 671.12 | I92: 4189.01 | J92: 416834.23
B93: 101-0324 | C93: Кислород технический: газообразный | D93: м3 | E93: 0,6 3,745 | J93: 0
B94: 101-1521 | C94: Электроды диаметром: 5 мм Э42 | D94: т | E94: 0,0032 0,02 | J94: 0
B95: 101-2278 | C95: Пропан-бутан, смесь техническая | D95: кг | E95: 0,2 1,248 | J95: 0
B96: 999-9950 | C96: Вспомогательные ненормируемые ресурсы (2% от Оплаты труда рабочих) | D96: руб | E96: 10,14 63,29 | J96: 0
A97: 856,30 = 5 265,27 - 1,02 x 4 322,52 | J97: 0
A98: 28 | B98: Прайс | C98: Швеллер 20П | D98: т | E98: 4.99344 | H98: 107663.03 | I98: 537608.86 | J98: 537608.86
A99: 29 | B99: Прайс | C99: Двутавр 25Б1 | D99: т | E99: 1.0403 | H99: 113715.27 | I99: 118298 | J99: 118298
A100: 30 | B100: Прайс | C100: Уголок не равнополочный 140*90*8 | D100: т | E100: 0.10403 | H100: 139168.22 | I100: 14477.67 | J100: 14477.67
A101: 31 | B101: Прайс | C101: Прокат листовой 8мм | D101: т | E101: 0.10403 | H101: 93156.3 | I101: 9691.05 | J101: 9691.05
A102: Перевозка материалов ( металл 140 км. ОП "МКМ-СПб") | J102: 0
A103: 32 | C103: металлопрокат, трубопрокат и металлоконструкции | D103: т | E103: 6.2418 | F103: 0 | G103: 0 | H103: 0 | I103: 0 | J103: 0
A104: 33 | B104: ТССЦпг-03-02-01-140 | C104: Перевозка строительных грузов (кроме массовых навалочных, перевозимых автомобилями-самосвалами, а также бетонных и железобетонных изделий, стеновых и перегородочных материалов, лесоматериалов круглых и пиломатериалов, включенных в таблицу 03-01), бортовым автомобилем грузоподъемностью 5 т, на расстояние до 140 км I класс груза | D104: 1 т груза | E104: 6.2418 | F104: 0 | G104: 0 | H104: 200.23 | I104: 1249.81 | J104: 1249.81
A105: 34 | B105: ТССЦпг-01-01-02-015 | C105: Разгрузочные работы при автомобильных перевозках: металлических конструкций массой до 1 т | D105: 1 т груза | E105: 6.2418 | F105: 0 | G105: 0 | H105: 405.53 | I105: 2531.22 | J105: 2531.22
A106: Раздел 4. Связи и распорки | J106: 0
A107: 35 | B107: ТЕР09-03-014-01 | C107: Монтаж связей и распорок из одиночных и парных уголков, гнутосварных профилей для пролетов: до 24 м при высоте здания до 25 м | D107: 1 т конструкций | E107: 4.1612 | F107: 149641.75 | G107: 622689.24 | H107: 4739.29 | I107: 19721.12 | J107: 642410.36
B108: 101-0309 | C108: Канаты пеньковые пропитанные | D108: т | E108: 0,0001 0,0004 | J108: 0
B109: 101-0324 | C109: Кислород технический: газообразный | D109: м3 | E109: 1,2 4,993 | J109: 0
B110: 101-0797 | C110: Проволока горячекатаная в мотках, диаметром 6,3-6,5 мм | D110: т | E110: 0,00003 0,0001 | J110: 0
B111: 101-1019 | C111: Швеллеры № 40 из стали марки: Ст0 | D111: т | E111: 0,00194 0,0081 | J111: 0
B112: 101-1513 | C112: Электроды диаметром: 4 мм Э42 | D112: т | E112: 0,00044 0,0018 | J112: 0
B113: 101-1714 | C113: Болты с гайками и шайбами строительные | D113: т | E113: 0,021 0,0874 | J113: 0
B114: 101-1805 | C114: Гвозди строительные | D114: т | E114: 0,00001 0 | J114: 0
B115: 101-2278 | C115: Пропан-бутан, смесь техническая | D115: кг | E115: 0,36 1,498 | J115: 0
B116: 101-2467 | C116: Растворитель марки: Р-4 | D116: т | E116: 0,0006 0,0025 | J116: 0
B117: 102-0023 | C117: Бруски обрезные хвойных пород длиной: 4-6,5 м, шириной 75-150 мм, толщиной 40-75 мм, I сорта | D117: м3 | E117: 0,00103 0,0043 | J117: 0
B118: 113-0021 | C118: Грунтовка: ГФ-021 красно-коричневая | D118: т | E118: 0,00031 0,0013 | J118: 0
B119: 201-0756 | C119: Отдельные конструктивные элементы зданий и сооружений с преобладанием: горячекатаных профилей, средняя масса сборочной единицы от 0,1 до 0,5 т | D119: т | E119: 0,0002 0,0008 | J119: 0
B120: 508-0097 | C120: Канат двойной свивки типа ТК, конструкции 6х19(1+6+12)+1 о.с., оцинкованный из проволок марки В, маркировочная группа: 1770 н/мм2, диаметром 5,5 мм | D120: 10 м | E120: 0,0187 0,0778 | J120: 0
A121: 36 | B121: ТЕРм38-01-003-03 | C121: Решетчатые конструкции (стойки, опоры, фермы и пр.), сборка с помощью: лебедок электрических (с установкой и снятием их в процессе работы) | D121: 1 т конструкций | E121: 4.1612 | F121: 250097.86 | G121: 1040707.2 | H121: 3971.5 | I121: 16526.21 | J121: 1057233.41
B122: 101-0324 | C122: Кислород технический: газообразный | D122: м3 | E122: 2,6 10,82 | J122: 0
B123: 101-1521 | C123: Электроды диаметром: 5 мм Э42 | D123: т | E123: 0,0215 0,0895 | J123: 0
B124: 101-2278 | C124: Пропан-бутан, смесь техническая | D124: кг | E124: 0,5 2,081 | J124: 0
B125: 999-9950 | C125: Вспомогательные ненормируемые ресурсы (2% от Оплаты труда рабочих) | D125: руб | E125: 42,32 176,1 | J125: 0
A126: 37 | B126: Прайс | C126: Профиль гн. 120*5 | D126: т | E126: 0.93627 | H126: 113869.93 | I126: 106613 | J126: 106613
A127: 38 | B127: Прайс | C127: Профиль гн. 100*5 | D127: т | E127: 3.01687 | H127: 109780.53 | I127: 331193.6 | J127: 331193.6
A128: 39 | B128: Прайс | C128: Прокат листовой 8мм | D128: т | E128: 0.10403 | H128: 93156.3 | I128: 9691.05 | J128: 9691.05
A129: 40 | B129: Прайс | C129: Прокат листовой 4мм | D129: т | E129: 0.10403 | H129: 76433.43 | I129: 7951.37 | J129: 7951.37
A130: Перевозка материалов ( металл 140 км. ОП "МКМ-СПб") | J130: 0
A131: 41 | C131: металлопрокат, трубопрокат и металлоконструкции | D131: т | E131: 4.1612 | F131: 0 | G131: 0 | H131: 0 | I131: 0 | J131: 0
A132: 42 | B132: ТССЦпг-03-02-01-140 | C132: Перевозка строительных грузов (кроме массовых навалочных, перевозимых автомобилями-самосвалами, а также бетонных и железобетонных изделий, стеновых и перегородочных материалов, лесоматериалов круглых и пиломатериалов, включенных в таблицу 03-01), бортовым автомобилем грузоподъемностью 5 т, на расстояние до 140 км I класс груза | D132: 1 т груза | E132: 4.1612 | F132: 0 | G132: 0 | H132: 200.23 | I132: 833.21 | J132: 833.21
A133: 43 | B133: ТССЦпг-01-01-02-015 | C133: Разгрузочные работы при автомобильных перевозках: металлических конструкций массой до 1 т | D133: 1 т груза | E133: 4.1612 | F133: 0 | G133: 0 | H133: 405.64 | I133: 1687.96 | J133: 1687.96
A134: Итого по разделу 4 Связи и распорки | J134: 0
A135: Раздел 5. Фахверк | J135: 0
A136: Таб.9-43. Монтаж фахверка – 10 кг/т м/к | J136: 0
A137: 44 | B137: ТЕР09-04-006-01 | C137: Монтаж фахверка | D137: 1 т конструкций | E137: 8.42643 | F137: 83547.85 | G137: 704010.14 | H137: 2960.26 | I137: 24944.46 | J137: 728954.6
B138: 101-0309 | C138: Канаты пеньковые пропитанные | D138: т | E138: 0,0001 0,0008 | J138: 0
B139: 101-0324 | C139: Кислород технический: газообразный | D139: м3 | E139: 2,6 21,91 | J139: 0
B140: 101-0797 | C140: Проволока горячекатаная в мотках, диаметром 6,3-6,5 мм | D140: т | E140: 0,00003 0,0003 | J140: 0
B141: 101-1019 | C141: Швеллеры № 40 из стали марки: Ст0 | D141: т | E141: 0,00194 0,0163 | J141: =G141+I141 -> 0
B142: 101-1515 | C142: Электроды диаметром: 4 мм Э46 | D142: т | E142: 0,016 0,1348 | J142: 0
B143: 101-1805 | C143: Гвозди строительные | D143: т | E143: 0,00001 0,0001 | J143: 0
B144: 101-2278 | C144: Пропан-бутан, смесь техническая | D144: кг | E144: 0,78 6,573 | J144: 0
B145: 101-2467 | C145: Растворитель марки: Р-4 | D145: т | E145: 0,0006 0,0051 | J145: 0
B146: 113-0021 | C146: Грунтовка: ГФ-021 красно-коричневая | D146: т | E146: 0,00031 0,0026 | J146: 0
B147: 201-0756 | C147: Отдельные конструктивные элементы зданий и сооружений с преобладанием: горячекатаных профилей, средняя масса сборочной единицы от 0,1 до 0,5 т | D147: т | E147: 0,001 0,0084 | J147: 0
B148: 508-0097 | C148: Канат двойной свивки типа ТК, конструкции 6х19(1+6+12)+1 о.с., оцинкованный из проволок марки В, маркировочная группа: 1770 н/мм2, диаметром 5,5 мм | D148: 10 м | E148: 0,0187 0,1576 | J148: 0
A149: 45 | B149: ТССЦ-110-0009 | C149: Болты сборочные с гайками и шайбами по классу прочности: 10.9 | D149: т | E149: 0.084264 | F149: 0 | G149: 0 | H149: 266840.76 | I149: 22485.07 | J149: 22485.07
A150: 46 | B150: ТЕРм38-01-003-03 | C150: Решетчатые конструкции (стойки, опоры, фермы и пр.), сборка с помощью: лебедок электрических (с установкой и снятием их в процессе работы) | D150: 1 т конструкций | E150: 8.42643 | F150: 250098.7 | G150: 2107439.16 | H150: 3971.23 | I150: 33463.27 | J150: 2140902.43
B151: 101-0324 | C151: Кислород технический: газообразный | D151: м3 | E151: 2,6 21,91 | J151: 0
B152: 101-1521 | C152: Электроды диаметром: 5 мм Э42 | D152: т | E152: 0,0215 0,1812 | J152: 0
B153: 101-2278 | C153: Пропан-бутан, смесь техническая | D153: кг | E153: 0,5 4,213 | J153: 0
B154: 999-9950 | C154: Вспомогательные ненормируемые ресурсы (2% от Оплаты труда рабочих) | D154: руб | E154: 42,32 356,6 | J154: 0
A155: 47 | B155: Прайс | C155: Профиль гн. 140*6 | D155: т | E155: 6.44986 | H155: 120369.57 | I155: 776366.89 | J155: 776366.89
A156: 48 | B156: Прайс | C156: Швеллер 14П | D156: т | E156: 0.52015 | H156: 100093.97 | I156: 52063.88 | J156: 52063.88
A157: 49 | B157: Прайс | C157: Уголок не равнополочный 140*90*8 | D157: т | E157: 1.24836 | H157: 139173.98 | I157: 173739.23 | J157: 173739.23
A158: 50 | B158: Прайс | C158: Прокат листовой 6мм | D158: т | E158: 0.10403 | H158: 91043.45 | I158: 9471.25 | J158: 9471.25
A159: 51 | B159: Прайс | C159: Прокат листовой 4мм | D159: т | E159: 0.10403 | H159: 76433.43 | I159: 7951.37 | J159: 7951.37
A160: Перевозка материалов ( металл 140 км. ОП "МКМ-СПб") | J160: 0
A161: 52 | C161: металлопрокат, трубопрокат и металлоконструкции | D161: т | E161: 8.42643 | F161: 0 | G161: 0 | H161: 0 | I161: 0 | J161: 0
A162: 53 | B162: ТССЦпг-03-02-01-140 | C162: Перевозка строительных грузов (кроме массовых навалочных, перевозимых автомобилями-самосвалами, а также бетонных и железобетонных изделий, стеновых и перегородочных материалов, лесоматериалов круглых и пиломатериалов, включенных в таблицу 03-01), бортовым автомобилем грузоподъемностью 5 т, на расстояние до 140 км I класс груза | D162: 1 т груза | E162: 8.42643 | F162: 0 | G162: 0 | H162: 200.15 | I162: 1686.52 | J162: 1686.52
A163: 54 | B163: ТССЦпг-01-01-02-015 | C163: Разгрузочные работы при автомобильных перевозках: металлических конструкций массой до 1 т | D163: 1 т груза | E163: 8.42643 | F163: 0 | G163: 0 | H163: 405.58 | I163: 3417.58 | J163: 3417.58
A164: Итого по разделу 5 Фахверк | J164: 0
A165: Раздел 6. Профилированный настил | J165: 0
A166: 55 | B166: ТЕР09-04-006-02 | C166: Монтаж ограждающих конструкций стен: из профилированного листа при высоте здания до 30 м | D166: 100 м2 | E166: 4.5 | F166: 304593.9 | G166: 1370672.54 | H166: 6600.52 | I166: 29702.35 | J166: 1400374.89
B167: 101-0309 | C167: Канаты пеньковые пропитанные | D167: т | E167: 0,00015 0,0007 | J167: 0
B168: 101-0324 | C168: Кислород технический: газообразный | D168: м3 | E168: 2,98 13,41 | J168: 0
B169: 101-0797 | C169: Проволока горячекатаная в мотках, диаметром 6,3-6,5 мм | D169: т | E169: 0,00004 0,0002 | J169: 0
B170: 101-1019 | C170: Швеллеры № 40 из стали марки: Ст0 | D170: т | E170: 0,00297 0,0134 | J170: 0
B171: 101-1513 | C171: Электроды диаметром: 4 мм Э42 | D171: т | E171: 0,0034 0,0153 | J171: 0
B172: 101-1714 | C172: Болты с гайками и шайбами строительные | D172: т | E172: 0,007 0,0315 | J172: 0
B173: 101-1805 | C173: Гвозди строительные | D173: т | E173: 0,00002 0,0001 | J173: 0
B174: 101-2278 | C174: Пропан-бутан, смесь техническая | D174: кг | E174: 0,903 4,064 | J174: 0
B175: 101-2467 | C175: Растворитель марки: Р-4 | D175: т | E175: 0,00009 0,0004 | J175: 0
B176: 102-0023 | C176: Бруски обрезные хвойных пород длиной: 4-6,5 м, шириной 75-150 мм, толщиной 40-75 мм, I сорта | D176: м3 | E176: 0,0013 0,0059 | J176: 0
B177: 113-0021 | C177: Грунтовка: ГФ-021 красно-коричневая | D177: т | E177: 0,00047 0,0021 | J177: 0
B178: 201-0756 | C178: Отдельные конструктивные элементы зданий и сооружений с преобладанием: горячекатаных профилей, средняя масса сборочной единицы от 0,1 до 0,5 т | D178: т | E178: 0,019 0,0855 | J178: 0
B179: 508-0097 | C179: Канат двойной свивки типа ТК, конструкции 6х19(1+6+12)+1 о.с., оцинкованный из проволок марки В, маркировочная группа: 1770 н/мм2, диаметром 5,5 мм | D179: 10 м | E179: 0,016 0,072 | J179: 0
A180: 56 | B180: ТССЦ-201-0382 | C180: Конструкции: стальные нащельников и деталей обрамления | D180: т | E180: 0.2601 | F180: 0 | G180: 0 | H180: 200544.25 | I180: 52161.56 | J180: 52161.56
A181: 57 | B181: ТССЦ-101-1810 | C181: Винты самонарезающие: для крепления профилированного настила и панелей к несущим конструкциям | D181: т | E181: 0.162 | F181: 0 | G181: 0 | H181: 285866.98 | I181: 46310.45 | J181: 46310.45
A182: 58 | B182: Прайс | C182: Профиль HC35-1000-0,7 | D182: т | E182: 3.774 | H182: 190108.83 | I182: 717470.72 | J182: 717470.72
A183: 59 | B183: ТЕР09-04-002-01 | C183: Монтаж кровельного покрытия: из профилированного листа при высоте здания до 25 м | D183: 100 м2 покрытия | E183: 5.4 | F183: 87296.7 | G183: 424261.84 | H183: 3381.24 | I183: 18258.7 | J183: 442520.54
B184: 101-0309 | C184: Канаты пеньковые пропитанные | D184: т | E184: 0,00015 0,0008 | J184: 0
B185: 101-0324 | C185: Кислород технический: газообразный | D185: м3 | E185: 1,4 7,56 | J185: 0
B186: 101-0797 | C186: Проволока горячекатаная в мотках, диаметром 6,3-6,5 мм | D186: т | E186: 0,00004 0,0002 | J186: 0
B187: 101-1019 | C187: Швеллеры № 40 из стали марки: Ст0 | D187: т | E187: 0,00297 0,016 | J187: 0
B188: 101-1513 | C188: Электроды диаметром: 4 мм Э42 | D188: т | E188: 0,00061 0,0033 | J188: 0
B189: 101-1714 | C189: Болты с гайками и шайбами строительные | D189: т | E189: 0,0022 0,0119 | J189: 0
B190: 101-2278 | C190: Пропан-бутан, смесь техническая | D190: кг | E190: 0,42 2,268 | J190: 0
B191: 101-2467 | C191: Растворитель марки: Р-4 | D191: т | E191: 0,00009 0,0005 | J191: 0
B192: 102-0023 | C192: Бруски обрезные хвойных пород длиной: 4-6,5 м, шириной 75-150 мм, толщиной 40-75 мм, I сорта | D192: м3 | E192: 0,0013 0,007 | J192: 0
B193: 113-0021 | C193: Грунтовка: ГФ-021 красно-коричневая | D193: т | E193: 0,00047 0,0025 | J193: 0
B194: 201-0756 | C194: Отдельные конструктивные элементы зданий и сооружений с преобладанием: горячекатаных профилей, средняя масса сборочной единицы от 0,1 до 0,5 т | D194: т | E194: 0,011 0,0594 | J194: 0
B195: 508-0097 | C195: Канат двойной свивки типа ТК, конструкции 6х19(1+6+12)+1 о.с., оцинкованный из проволок марки В, маркировочная группа: 1770 н/мм2, диаметром 5,5 мм | D195: 10 м | E195: 0,016 0,0864 | J195: 0
A196: 60 | B196: Прайс | C196: Профиль H57-750-0,8 | D196: т | E196: 6.528 | H196: 153670.53 | I196: 1003161.22 | J196: 1003161.22
A197: 61 | B197: ТССЦ-101-1810 | C197: Винты самонарезающие: для крепления профилированного настила и панелей к несущим конструкциям | D197: т | E197: 0.1944 | F197: 0 | G197: 0 | H197: 285863.99 | I197: 55571.96 | J197: 55571.96
A198: Перевозка материалов ( металл 140 км. ОП "МКМ-СПб") | J198: 0
A199: 62 | C199: металлопрокат, трубопрокат и металлоконструкции | D199: т | E199: 10.6584 | F199: 0 | G199: 0 | H199: 0 | I199: 0 | J199: 0
A200: 63 | B200: ТССЦпг-03-02-01-140 | C200: Перевозка строительных грузов (кроме массовых навалочных, перевозимых автомобилями-самосвалами, а также бетонных и железобетонных изделий, стеновых и перегородочных материалов, лесоматериалов круглых и пиломатериалов, включенных в таблицу 03-01), бортовым автомобилем грузоподъемностью 5 т, на расстояние до 140 км I класс груза | D200: 1 т груза | E200: 10.6584 | F200: 0 | G200: 0 | H200: 200.29 | I200: 2134.73 | J200: 2134.73
A201: 64 | B201: ТССЦпг-01-01-02-015 | C201: Разгрузочные работы при автомобильных перевозках: металлических конструкций массой до 1 т | D201: 1 т груза | E201: 10.6584 | F201: 0 | G201: 0 | H201: 405.56 | I201: 4322.61 | J201: 4322.61
A202: Итого по разделу 6 Профилированный настил | J202: 0
A203: Раздел 7. Конструкции под вент. оборудование | J203: 0
... 30 more rows

Sheet 1632-2021-3.4-АР
A2: Терминал по перевалке минеральных удобрений в морском торговом порту Усть-Луга. Береговые объекты терминала
A3: (наименование стройки)
A5: ЛОКАЛЬНАЯ СМЕТА № 1632-2021-3.4-АР_01.05.060-П-00-00
A6: (локальная смета)
A7: на Архитектурные решения, 07.06.060 Ангар для хранения ТМЦ (код SAP 01.05.019) код ГП 3.4 | AE7: на Архитектурные решения, 07.06.060 Ангар для хранения ТМЦ (код SAP 01.05.019) код ГП 3.4
A8: (наименование работ и затрат, наименование объекта)
B9: Основание: | C9: 1632-2021-3.4-АР_0_0_RU_IFС | AT9: 1632-2021-3.4-АР_0_0_RU_IFС
A11: № п/п | B11: Обоснование | C11: Наименование работ и затрат | D11: Ед. изм. | E11: Кол-во | F11: Цена за ед.измерения работ, руб. с НДС | G11: Всего, стоимость работ,руб. с НДС | H11: Цена за ед.измерения материалов, руб. с НДС | I11: Всего, стоимость материалов, руб. с НДС | J11: Итого, руб. с НДС
A12: 1 | B12: 2 | C12: 3 | D12: 4 | E12: 5 | F12: 6 | G12: 7 | H12: 8 | I12: 9 | J12: 10
A13: Раздел 1. Кровля
A14: Устройство кровли из профлиста см. в разделе КМ
A15: 1 | B15: ТЕР12-01-009-02 | C15: Устройство желобов: подвесных | D15: 100 м желобов | E15: 0.611 | F15: 65795 | G15: 40200.75 | H15: 21889.35 | I15: 13374.39 | J15: =G15+I15 -> 53575.14
B16: 101-0173 | C16: Гвозди проволочные оцинкованные для асбестоцементной кровли: 4,5х120 мм | D16: т | E16: 0,0038 0,0023 | J16: =G16+I16 -> 0
B17: 101-0788 | C17: Поковки оцинкованные, масса: 2,825 кг | D17: т | E17: 0,169 0,1033 | J17: 0
A18: 2 | B18: ТЦ_12.1.01.00_78_7804606806_25.01.2024_02 | C18: Желоб водосточный D185х3000 | D18: шт | E18: 20 | F18: 0 | G18: 0 | H18: 0 | I18: 34873.98 | J18: 34873.98
A19: 3 | B19: ТЕР12-01-008-01 | C19: Устройство обделок на фасадах (наружные подоконники, пояски, балконы и др.): включая водосточные трубы, с изготовлением элементов труб// прим. | D19: 100 м2фасада (без вычета проемов) | E19: 6.9984 | F19: 27777.55 | G19: 194398.43 | H19: 2212.61 | I19: 15484.7 | J19: 209883.13
B20: 101-0195 | C20: Гвозди толевые круглые: 3,0х40 мм | D20: т | E20: 0,0014 0,0098 | J20: 0
B21: 101-0788 | C21: Поковки оцинкованные, масса: 2,825 кг | D21: т | E21: 0,0112 0,0784 | J21: 0
B22: 101-0795 | C22: Проволока канатная оцинкованная, диаметром: 3 мм | D22: т | E22: 0,0039 0,0273 | J22: 0
A23: 4 | B23: ТЕР12-01-008-02 | C23: Устройство обделок на фасадах (наружные подоконники, пояски, балконы и др.): без водосточных труб | D23: 100 м2фасада (без вычета проемов) | E23: -6.9984 | F23: 10154.91 | G23: -71068.15 | H23: 164.63 | I23: -1152.12 | J23: -72220.27
B24: 101-0195 | C24: Гвозди толевые круглые: 3,0х40 мм | D24: т | E24: 0,0014 -0,0098 | J24: 0
A25: 5 | B25: ТЦ_12.1.01.00_78_7804606806_25.01.2024_02 | C25: Труба водосточная D150х3000мм | D25: шт | E25: 15 | F25: 0 | G25: 0 | H25: 0 | I25: 31887.36 | J25: 31887.36
A26: 6 | B26: ТЦ_12.1.01.00_78_7804606806_25.01.2024_02 | C26: Воронки выпускные D185/150 | D26: шт | E26: 4 | F26: 0 | G26: 0 | H26: 0 | I26: 3296.91 | J26: 3296.91
A27: 7 | B27: ТЕР12-01-012-01 | C27: Ограждение кровель перилами // прим. | D27: 100 м ограждения | E27: 0.611 | F27: 16110.18 | G27: 9843.32 | H27: 402.05 | I27: 245.65 | J27: 10088.97
B28: 101-1529 | C28: Электроды диаметром: 6 мм Э42 | D28: т | E28: 0,0005 0,0003 | J28: 0
B29: 101-1851 | C29: Резина прессованная | D29: кг | E29: 0,52 0,3177 | J29: 0
A30: 8 | B30: ТЦ_12.1.01.00_78_7804606806_25.01.2024_02 | C30: Снегозадержатель трубчатый (L=3 м. в комплекте с креплением) | D30: шт | E30: 20 | F30: 0 | G30: 0 | H30: 0 | I30: 49110.3 | J30: 49110.3
A31: Раздел 2. Окна | J31: 0
A32: 9 | B32: ТЕР09-04-010-02 | C32: Монтаж витражей, витрин: с одинарным остеклением в одноэтажных зданиях | D32: 1 т конструкций | E32: 0.209 | F32: 951388.88 | G32: 198840.28 | H32: 2831.88 | I32: 591.86 | J32: 199432.14
B33: 101-0309 | C33: Канаты пеньковые пропитанные | D33: т | E33: 0,0001 0 | J33: 0
B34: 101-0324 | C34: Кислород технический: газообразный | D34: м3 | E34: 1,95 0,4076 | J34: 0
B35: 101-0797 | C35: Проволока горячекатаная в мотках, диаметром 6,3-6,5 мм | D35: т | E35: 0,00003 0 | J35: 0
B36: 101-1019 | C36: Швеллеры № 40 из стали марки: Ст0 | D36: т | E36: 0,00194 0,0004 | J36: 0
B37: 101-1515 | C37: Электроды диаметром: 4 мм Э46 | D37: т | E37: 0,017 0,0036 | J37: 0
B38: 101-1805 | C38: Гвозди строительные | D38: т | E38: 0,00001 0 | J38: 0
B39: 101-2278 | C39: Пропан-бутан, смесь техническая | D39: кг | E39: 0,6 0,1254 | J39: 0
B40: 101-2467 | C40: Растворитель марки: Р-4 | D40: т | E40: 0,0006 0,0001 | J40: 0
B41: 102-0023 | C41: Бруски обрезные хвойных пород длиной: 4-6,5 м, шириной 75-150 мм, толщиной 40-75 мм, I сорта | D41: м3 | E41: 0,00103 0,0002 | J41: 0
B42: 113-0021 | C42: Грунтовка: ГФ-021 красно-коричневая | D42: т | E42: 0,00031 0,0001 | J42: 0
B43: 508-0097 | C43: Канат двойной свивки типа ТК, конструкции 6х19(1+6+12)+1 о.с., оцинкованный из проволок марки В, маркировочная группа: 1770 н/мм2, диаметром 5,5 мм | D43: 10 м | E43: 0,0187 0,0039 | J43: 0
A44: 10 | B44: ТЦ_09.1.01.01_78_7820318146_25.01.2024_02 | C44: Витражи из алюминиевого комбинированного профиля | D44: м2 | E44: 38 | F44: 0 | G44: 0 | H44: 0 | I44: 441264.4 | J44: 441264.4
A45: Раздел 3. Дверные проемы и ворота | J45: 0
A46: 11 | B46: ТЕР09-04-012-01 | C46: Установка металлических дверных блоков в готовые проемы | D46: 1 м2 проема | E46: 3.69 | F46: 6003.58 | G46: 22153.22 | H46: 327.41 | I46: 1208.15 | J46: 23361.37
B47: 101-1513 | C47: Электроды диаметром: 4 мм Э42 | D47: т | E47: 0,0001 0,0004 | J47: 0
B48: 101-1921 | C48: Пена монтажная: для герметизации стыков в баллончике емкостью 0,85 л | D48: шт. | E48: 0,1 0,369 | J48: 0
B49: 204-0062 | C49: Детали закладные и накладные изготовленные: без применения сварки, гнутья, сверления (пробивки) отверстий поставляемые отдельно | D49: т | E49: 0,003 0,0111 | J49: 0
A50: 12 | B50: ТЦ_07.1.01.03_66_665801467545_25.01.2024_02 | C50: ДСН, Оп, Прг, Пр, Н, М2 (дверь стальная, наружная, однопольная, с порогом 50мм(h), правого открывания наружу, класс прочности - 2) 900х2050 | D50: шт | E50: 2 | F50: 0 | G50: 0 | H50: 0 | I50: 81363.99 | J50: 81363.99
A51: Ворота | J51: 0
A52: 13 | B52: ТЕР09-04-011-01 | C52: Монтаж каркасов ворот большепролетных зданий, ангаров и др. без механизмов открывания | D52: 1 т конструкций | E52: 0.73 | F52: 174276.6 | G52: 127221.92 | H52: 8951.95 | I52: 6534.92 | J52: 133756.84
B53: 101-0309 | C53: Канаты пеньковые пропитанные | D53: т | E53: 0,0001 0,0001 | J53: 0
B54: 101-0324 | C54: Кислород технический: газообразный | D54: м3 | E54: 1,95 1,424 | J54: 0
B55: 101-0797 | C55: Проволока горячекатаная в мотках, диаметром 6,3-6,5 мм | D55: т | E55: 0,00003 0 | J55: 0
B56: 101-1019 | C56: Швеллеры № 40 из стали марки: Ст0 | D56: т | E56: 0,00194 0,0014 | J56: 0
B57: 101-1515 | C57: Электроды диаметром: 4 мм Э46 | D57: т | E57: 0,023 0,0168 | J57: 0
B58: 101-1805 | C58: Гвозди строительные | D58: т | E58: 0,00001 0 | J58: 0
B59: 101-2278 | C59: Пропан-бутан, смесь техническая | D59: кг | E59: 0,59 0,4307 | J59: 0
B60: 101-2467 | C60: Растворитель марки: Р-4 | D60: т | E60: 0,0006 0,0004 | J60: 0
B61: 102-0023 | C61: Бруски обрезные хвойных пород длиной: 4-6,5 м, шириной 75-150 мм, толщиной 40-75 мм, I сорта | D61: м3 | E61: 0,00103 0,0008 | J61: 0
B62: 113-0021 | C62: Грунтовка: ГФ-021 красно-коричневая | D62: т | E62: 0,00031 0,0002 | J62: 0
B63: 201-0756 | C63: Отдельные конструктивные элементы зданий и сооружений с преобладанием: горячекатаных профилей, средняя масса сборочной единицы от 0,1 до 0,5 т | D63: т | E63: 0,026 0,019 | J63: 0
B64: 508-0097 | C64: Канат двойной свивки типа ТК, конструкции 6х19(1+6+12)+1 о.с., оцинкованный из проволок марки В, маркировочная группа: 1770 н/мм2, диаметром 5,5 мм | D64: 10 м | E64: 0,0187 0,0137 | J64: 0
A65: 14 | B65: ТЕРм11-05-001-01 | C65: Механизм исполнительный, масса: до 20 кг | D65: 1 шт. | E65: 2 | F65: 2196.5 | G65: 4393.01 | H65: 107.74 | I65: 215.48 | J65: 4608.49
B66: 101-2039 | C66: Болты с гайками и шайбами оцинкованные, диаметр: 12 мм | D66: кг | E66: 0,32 0,64 | J66: 0
B67: 999-9950 | C67: Вспомогательные ненормируемые ресурсы (2% от Оплаты труда рабочих) | D67: руб | E67: 0,19 0,38 | J67: 0
A68: 15 | B68: ТЦ_08.1.06.01_54_5404314837_28.06.2024_02 | C68: Ворота складчатые, металлические 5000х4500мм (вес 13,5 кг/м2) | D68: шт | E68: 2 | F68: 0 | G68: 0 | H68: 0 | I68: 1444142.62 | J68: 1444142.62
A69: Раздел 4. Полы | J69: 0
A70: 16 | B70: ТЕР11-01-011-03 | C70: Устройство стяжек: бетонных толщиной 20 мм | D70: 100 м2 стяжки | E70: 5.602 | F70: 83767.82 | G70: 469267.31 | H70: 94.11 | I70: 527.22 | J70: 469794.53
B71: 411-0001 | C71: Вода | D71: м3 | E71: 3,5 19,61 | J71: 0
A72: 17 | B72: ТЕР11-01-011-04 | C72: Устройство стяжек: на каждые 5 мм изменения толщины стяжки добавлять или исключать к расценке 11-01-011-03 // до толщ. 30 мм | D72: 100 м2 стяжки | E72: 5.602 | F72: 3227.01 | G72: 18077.69 | H72: 0 | I72: 0 | J72: 18077.69
A73: 18 | B73: ТЦ_59.1.04.01_78_4707009037_08.02.2024_02 | C73: Бетон В30 | D73: м3 | E73: 17.142 | F73: 0 | G73: 0 | H73: 0 | I73: 170334.58 | J73: 170334.58
A74: 19 | B74: ТЕР11-01-020-03 | C74: Устройство покрытий поливинилацетатных: толщиной 3 мм // прим. покрытие полимерное | D74: 100 м2 покрытия | E74: 5.602 | F74: 180032.34 | G74: 1008541.14 | H74: 147311.96 | I74: 825241.59 | J74: 1833782.73
B75: 101-0430 | C75: Краски масляные и алкидные земляные, готовые к применению: сурик железный МА-15, ПФ-14 | D75: т | E75: 0,0002 0,0011 | J75: 0
B76: 101-0433 | C76: Краски масляные и алкидные земляные, готовые к применению: охра МА-15 | D76: т | E76: 0,0068 0,0381 | J76: 0
B77: 101-1305 | C77: Портландцемент общестроительного назначения бездобавочный, марки: 400 | D77: т | E77: 0,013 0,0728 | J77: 0
B78: 101-1591 | C78: Смола каменноугольная для дорожного строительства | D78: т | E78: 0,036 0,2017 | J78: 0
B79: 101-2293 | C79: Кислота ортофосфорная: техническая, сорт I | D79: т | E79: 0,0078 0,0437 | J79: 0
B80: 101-2358 | C80: Дисперсия поливинилацетатная непластифицированная марки Д50Н | D80: кг | E80: 219 1227 | J80: =G80+I80 -> 0
B81: 113-0306 | C81: Маршалит | D81: т | E81: 0,272 1,524 | J81: 0
B82: 408-0122 | C82: Песок природный для строительных: работ средний | D82: м3 | E82: 0,0173 0,0969 | J82: 0
B83: 411-0001 | C83: Вода | D83: м3 | E83: 0,135 0,7563 | J83: 0
A84: 20 | B84: ТЕР11-01-020-04 | C84: Устройство покрытий поливинилацетатных: на каждый 1 мм изменения толщины добавлять или исключать к расценке 11-01-020-03 | D84: 100 м2 покрытия | E84: 5.602 | F84: 248039.26 | G84: 1389515.92 | H84: 303391.25 | I84: 1699597.8 | J84: 3089113.72
B85: 101-0433 | C85: Краски масляные и алкидные земляные, готовые к применению: охра МА-15 | D85: т | E85: 0,0161 0,0902 | J85: 0
B86: 101-1591 | C86: Смола каменноугольная для дорожного строительства | D86: т | E86: 0,084 0,4706 | J86: 0
B87: 101-2293 | C87: Кислота ортофосфорная: техническая, сорт I | D87: т | E87: 0,0182 0,102 | J87: 0
B88: 101-2358 | C88: Дисперсия поливинилацетатная непластифицированная марки Д50Н | D88: кг | E88: 448 2510 | J88: 0
B89: 113-0306 | C89: Маршалит | D89: т | E89: 0,616 3,451 | J89: 0
B90: 411-0001 | C90: Вода | D90: м3 | E90: 0,189 1,059 | J90: 0
A91: Раздел 5. Отделка | J91: 0
A92: Цоколь | J92: 0
A93: 21 | B93: ТЕР13-06-003-01 | C93: Очистка поверхности щетками | D93: 1 м2 очищаемой поверхности | E93: 57.6 | F93: 1713.7 | G93: 98709.04 | H93: 0 | I93: 0 | J93: 98709.04
A94: 22 | B94: ТЕР13-06-004-01 | C94: Обеспыливание поверхности | D94: 1 м2 обеспыливаемой поверхности | E94: 57.6 | F94: 195.98 | G94: 11288.5 | H94: 0 | I94: 0 | J94: 11288.5
A95: 23 | B95: ТЕР13-03-003-14 | C95: Окраска огрунтованных бетонных и оштукатуренных поверхностей: лаком ХП-734 | D95: 100 м2 окрашиваемой поверхности | E95: 0.576 | F95: 15253.49 | G95: 8786.01 | H95: 11736.91 | I95: 6760.46 | J95: 15546.47
B96: 113-0077 | C96: Ксилол нефтяной марки А | D96: т | E96: 0,005 0,0029 | J96: 0
B97: 113-0086 | C97: Лак ХП-734, марки А, сорт I | D97: т | E97: 0,032 0,0184 | J97: 0
A98: 24 | B98: ТЕР13-03-003-15 | C98: Окраска огрунтованных бетонных и оштукатуренных поверхностей: эмалью ХП-799 | D98: 100 м2 окрашиваемой поверхности | E98: 0.576 | F98: 6721.41 | G98: 3871.53 | H98: 9836.46 | I98: 5665.8 | J98: 9537.33
B99: 113-0077 | C99: Ксилол нефтяной марки А | D99: т | E99: 0,004 0,0023 | J99: 0
B100: 113-0249 | C100: Эмаль ХП-799 | D100: т | E100: 0,029 0,0167 | J100: 0
A101: Окраска конструкций стен и потолков из профлиста, учтена в сметах к разделу КМ | J101: 0
A102: Раздел 6. Отмостка | J102: 0
A103: 25 | B103: ТЕР27-04-001-04 | C103: Устройство подстилающих и выравнивающих слоев оснований: из щебня | D103: 100 м3 материала основания (в плотном теле) | E103: 0.0864 | F103: 206206.49 | G103: 17816.24 | H103: 199.52 | I103: 17.24 | J103: 17833.48
B104: 411-0001 | C104: Вода | D104: м3 | E104: 7 0,6048 | J104: 0
A105: 26 | B105: ТЦ_02.2.05.00_78_7811628889_18.07.2024_02 | C105: Щебень из природного камня для строительных работ марка: 800, фракция 20-40 мм | D105: м3 | E105: 10.8864 | F105: 0 | G105: 0 | H105: 0 | I105: 41703.39 | J105: 41703.39
A106: 27 | B106: ТЕР27-04-001-01 | C106: Устройство подстилающих и выравнивающих слоев оснований: из песка | D106: 100 м3 материала основания (в плотном теле) | E106: 0.144 | F106: 132343.26 | G106: 19057.43 | H106: 139.67 | I106: 20.11 | J106: 19077.54
B107: 411-0001 | C107: Вода | D107: м3 | E107: 5 0,72 | J107: 0
A108: 28 | B108: ТЦ_02.3.01.00_77_7734465669_15.02.2024_02 | C108: Песок средний для строительных работ | D108: м3 | E108: 15.84 | F108: 0 | G108: 0 | H108: 0 | I108: 10239.81 | J108: 10239.81
A109: 29 | B109: ТЕР06-01-013-01 | C109: Устройство подливки толщиной 20 мм // прим. бетонное основание | D109: 100 м2 подливки под оборудование | E109: 0.96 | F109: 97759.53 | G109: 93849.15 | H109: 2742.94 | I109: 2633.22 | J109: 96482.37
B110: 101-1805 | C110: Гвозди строительные | D110: т | E110: 0,002 0,0019 | J110: 0
B111: 102-0053 | C111: Доски обрезные хвойных пород длиной: 4-6,5 м, шириной 75-150 мм, толщиной 25 мм, III сорта | D111: м3 | E111: 0,1 0,096 | J111: 0
B112: 102-0061 | C112: Доски обрезные хвойных пород длиной: 4-6,5 м, шириной 75-150 мм, толщиной 44 мм и более, III сорта | D112: м3 | E112: 0,04 0,0384 | J112: 0
A113: 30 | B113: ТЕР06-01-013-02 | C113: На каждые 10 мм изменения толщины добавлять или исключать к расценке 06-01-013-01 // до 100 мм | D113: 100 м2 подливки под оборудование | E113: 0.96 | F113: 224142.56 | G113: 215176.86 | H113: 5361.67 | I113: 5147.2 | J113: 220324.06
B114: 101-1805 | C114: Гвозди строительные | D114: т | E114: 0,008 0,0077 | J114: 0
B115: 102-0053 | C115: Доски обрезные хвойных пород длиной: 4-6,5 м, шириной 75-150 мм, толщиной 25 мм, III сорта | D115: м3 | E115: 0,16 0,1536 | J115: 0
B116: 102-0061 | C116: Доски обрезные хвойных пород длиной: 4-6,5 м, шириной 75-150 мм, толщиной 44 мм и более, III сорта | D116: м3 | E116: 0,08 0,0768 | J116: 0
A117: 31 | B117: ТЦ_59.1.04.01_78_4707009037_08.02.2024_02 | C117: Бетон В15 | D117: м3 | E117: 9.792 | F117: 0 | G117: 0 | H117: 0 | I117: 86103.21 | J117: 86103.21
A118: 32 | B118: ТЕР06-01-015-10 | C118: Армирование подстилающих слоев и набетонок | D118: 1 т | E118: 0.3331 | F118: 27722.06 | G118: 9234.22 | H118: 3005.96 | I118: 1001.28 | J118: 10235.5
B119: 101-0816 | C119: Проволока светлая диаметром: 1,1 мм | D119: т | E119: 0,028 0,0093 | J119: 0
A120: 33 | B120: ТЦ_08.4.02.05_78_7816723705_16.02.2024_02 | C120: Сетка арм. 100х100 6Вр1 | D120: м2 | E120: 96 | F120: 0 | G120: 0 | H120: 0 | I120: 57147.87 | J120: 57147.87
A121: 34 | B121: ТЕР06-01-013-01 | C121: Устройство подливки толщиной 20 мм // прим. бетонное покрытие отмостки | D121: 100 м2 подливки под оборудование | E121: 0.96 | F121: 97759.53 | G121: 93849.15 | H121: 2742.94 | I121: 2633.22 | J121: 96482.37
B122: 101-1805 | C122: Гвозди строительные | D122: т | E122: 0,002 0,0019 | J122: 0
B123: 102-0053 | C123: Доски обрезные хвойных пород длиной: 4-6,5 м, шириной 75-150 мм, толщиной 25 мм, III сорта | D123: м3 | E123: 0,1 0,096 | J123: 0
B124: 102-0061 | C124: Доски обрезные хвойных пород длиной: 4-6,5 м, шириной 75-150 мм, толщиной 44 мм и более, III сорта | D124: м3 | E124: 0,04 0,0384 | J124: 0
A125: 35 | B125: ТЕР06-01-013-02 | C125: На каждые 10 мм изменения толщины добавлять или исключать к расценке 06-01-013-01 // до 50-110 мм | D125: 100 м2 подливки под оборудование | E125: 0.96 | F125: 168107.67 | G125: 161383.36 | H125: 4020.88 | I125: 3860.04 | J125: 165243.4
B126: 101-1805 | C126: Гвозди строительные | D126: т | E126: 0,006 0,0058 | J126: 0
B127: 102-0053 | C127: Доски обрезные хвойных пород длиной: 4-6,5 м, шириной 75-150 мм, толщиной 25 мм, III сорта | D127: м3 | E127: 0,12 0,1152 | J127: 0
B128: 102-0061 | C128: Доски обрезные хвойных пород длиной: 4-6,5 м, шириной 75-150 мм, толщиной 44 мм и более, III сорта | D128: м3 | E128: 0,06 0,0576 | J128: 0
A129: 36 | B129: ТЦ_59.1.04.01_78_4707009037_08.02.2024_02 | C129: Бетон В15 | D129: м3 | E129: 7.834 | F129: 0 | G129: 0 | H129: 0 | I129: 68886.02 | J129: 68886.02
A130: 37 | B130: ТЕР11-01-015-07 | C130: Шлифовка бетонных или металлоцементных покрытий | D130: 100 м2 покрытия | E130: 0.96 | F130: =G130/E130 -> 178082.19 | G130: 170958.9 | H130: 179.57 | I130: 172.39 | J130: 171131.29
B131: 101-2109 | C131: Карборунд | D131: кг | E131: 2 1,92 | J131: 0
B132: 411-0001 | C132: Вода | D132: м3 | E132: 2 1,92 | J132: 0
A133: 38 | B133: ТЕР11-01-015-08 | C133: Железнение цементных покрытий | D133: 100 м2 покрытия | E133: 0.96 | F133: 26260.65 | G133: 25210.22 | H133: 537.21 | I133: 515.73 | J133: 25725.95
B134: 101-1305 | C134: Портландцемент общестроительного назначения бездобавочный, марки: 400 | D134: т | E134: 0,06 0,0576 | J134: 0
B135: 411-0001 | C135: Вода | D135: м3 | E135: 0,2 0,192 | J135: 0
A136: 39 | B136: ТЕР27-02-010-02 | C136: Установка бортовых камней бетонных: при других видах покрытий | D136: 100 м бортового камня | E136: 0.96 | F136: =G136/E136 -> 204619.83 | G136: 196435.04 | H136: 50918.64 | I136: 48881.89 | J136: 245316.93
B137: 101-1805 | C137: Гвозди строительные | D137: т | E137: 0,001 0,001 | J137: 0
B138: 102-0038 | C138: Брусья необрезные хвойных пород длиной: 4-6,5 м, все ширины, толщиной 100, 125 мм, IV сорта | D138: м3 | E138: 0,17 0,1632 | J138: 0
B139: 401-0006 | C139: Бетон тяжелый, класс: В15 (М200) | D139: м3 | E139: 5,9 5,664 | J139: 0
B140: 402-0004 | C140: Раствор готовый кладочный цементный марки: 100 | D140: м3 | E140: 0,06 0,0576 | J140: 0
A141: 40 | B141: ТЦ_04.13.00.00_78_7842083836_15.02.2024_02 | C141: Камни бортовые БР100.20.8 | D141: шт | E141: 96 | F141: 0 | G141: 0 | H141: 0 | I141: 29654.95 | J141: 29654.95
C142: Всего, руб. с НДС | G142: =SUM(G13:G141) -> 4537010.49 | I142: =SUM(I13:I141) -> 5189187.61 | J142: =SUM(J13:J141) -> 9726198.1
C143: Всего, руб. без НДС | G143: =G142/1.2 -> 3780842.08 | I143: =I142/1.2 -> 4324323.01 | J143: =J142/1.2 -> 8105165.08

Sheet Смета_1632-2021-3.4-КЖ
A2: Терминал по перевалке минеральных удобрений в морском торговом порту Усть-Луга. Береговые объекты терминала | S2: Терминал по перевалке минеральных удобрений в морском торговом порту Усть-Луга. Береговые объекты терминала
A3: (наименование стройки)
A5: ЛОКАЛЬНАЯ СМЕТА № 1632-2021-3.4-КЖ_01.05.060-П-01-01
A6: (локальная смета)
A7: на Конструкции железобетонные, 07.06.060 Ангар для хранения ТМЦ (код SAP 01.05.019) код ГП 3.4 | AH7: на Конструкции железобетонные, 07.06.060 Ангар для хранения ТМЦ (код SAP 01.05.019) код ГП 3.4
A8: (наименование работ и затрат, наименование объекта)
B9: Основание: | C9: 1632-2021-3.4-КЖ | AW9: 1632-2021-3.4-КЖ
B10: Сметная стоимость | E10: 16667295.49 | F10: руб.
B11: строительных работ | E11: 11620926.92 | F11: руб.
B12: монтажных работ | E12: 21502.27 | F12: руб.
B13: Средства на оплату труда | E13: 1536066.61 | F13: руб.
B14: Сметная трудоемкость | E14: 2694.13 | F14: чел.час
B15: Трудозатраты механизаторов | E15: 323 | F15: чел.час
B16: Составлен(а) в текущих (прогнозных) ценах по состоянию на
A19: № п/п | B19: Обоснование | C19: Наименование работ и затрат | F19: Единица измерения | G19: Кол-во | H19: Стоимость единицы, руб. | L19: Общая стоимость, руб.
H20: Всего | I20: В том числе | L20: Всего | M20: В том числе
I21: Осн.З/п | J21: Эк.Маш | K21: З/пМех | M21: Осн.З/п | N21: Эк.Маш | O21: З/пМех
A22: 1 | B22: 2 | C22: 3 | F22: 4 | G22: 5 | H22: 6 | I22: 7 | J22: 8 | K22: 9 | L22: 10 | M22: 11 | N22: 12 | O22: 13
A23: Раздел 1. Земляные работы | BL23: Раздел 1. Земляные работы
A24: 1 | B24: ТЕР01-01-003-08 Приказ Администрации ЛО от 20.10.15 №28 | C24: Разработка грунта в отвал экскаваторами «драглайн» или «обратная лопата» с ковшом вместимостью: 0,65 (0,5-1) м3, группа грунтов 2 | F24: 1000 м3 грунта | G24: 0.94558 | H24: 47468.59 | I24: 5187.08 | J24: 42281.51 | K24: 18691.88 | L24: 44885.35 | M24: 4904.8 | N24: 39980.55 | O24: 17674.67 | BM24: Разработка грунта в отвал экскаваторами «драглайн» или «обратная лопата» с ковшом вместимостью: 0,65 (0,5-1) м3, группа грунтов 2
B25: 421/пр_2020_прил.10_т.1_п.2_гр.3 | C25: Производство работ осуществляется на территории действующего предприятия с наличием в зоне производства работ одного или нескольких из следующих факторов: - разветвленной сети транспортных и инженерных коммуникаций; - стесненных условий для складирования материалов; - действующего технологического оборудования; - движения технологического транспорта ОЗП=1,15; ЭМ=1,15 к расх.; ЗПМ=1,15; ТЗ=1,15; ТЗМ=1,15 | BN25: Производство работ осуществляется на территории действующего предприятия с наличием в зоне производства работ одного или нескольких из следующих факторов: - разветвленной сети транспортных и инженерных коммуникаций; - стесненных условий для складирования материалов; - действующего технологического оборудования; - движения технологического транспорта ОЗП=1,15; ЭМ=1,15 к расх.; ЗПМ=1,15; ТЗ=1,15; ТЗМ=1,15
B26: 1 | C26: ИНДЕКС К ПОЗИЦИИ: II кв. 2025 г. Минстрой письмо №29761-ИФ/09 от 23.05.2025 г. (ПРОЧИЕ, ТЕР-2001) ОЗП=29,1; ЭМ=11,55; ЗПМ=29,1; МАТ=8,66 | BO26: ИНДЕКС К ПОЗИЦИИ: II кв. 2025 г. Минстрой письмо №29761-ИФ/09 от 23.05.2025 г. (ПРОЧИЕ, ТЕР-2001) ОЗП=29,1; ЭМ=11,55; ЗПМ=29,1; МАТ=8,66
E27: Накладные расходы 92% ФОТ (от 22 579,47) | L27: 20773.11
E28: Сметная прибыль 46% ФОТ (от 22 579,47) | L28: 10386.56
A29: 2 | B29: ТЕР01-01-013-08 Приказ Администрации ЛО от 20.10.15 №28 | C29: Разработка грунта с погрузкой на автомобили-самосвалы экскаваторами с ковшом вместимостью: 0,65 (0,5-1) м3, группа грунтов 2 | F29: 1000 м3 грунта | G29: 0.3424 | H29: 62493.97 | I29: 5647.22 | J29: 56752.27 | K29: 27163.54 | L29: 21397.94 | M29: 1933.61 | N29: 19431.98 | O29: 9300.8 | BM29: Разработка грунта с погрузкой на автомобили-самосвалы экскаваторами с ковшом вместимостью: 0,65 (0,5-1) м3, группа грунтов 2
B30: 421/пр_2020_прил.10_т.1_п.2_гр.3 | C30: Производство работ осуществляется на территории действующего предприятия с наличием в зоне производства работ одного или нескольких из следующих факторов: - разветвленной сети транспортных и инженерных коммуникаций; - стесненных условий для складирования материалов; - действующего технологического оборудования; - движения технологического транспорта ОЗП=1,15; ЭМ=1,15 к расх.; ЗПМ=1,15; ТЗ=1,15; ТЗМ=1,15 | BN30: Производство работ осуществляется на территории действующего предприятия с наличием в зоне производства работ одного или нескольких из следующих факторов: - разветвленной сети транспортных и инженерных коммуникаций; - стесненных условий для складирования материалов; - действующего технологического оборудования; - движения технологического транспорта ОЗП=1,15; ЭМ=1,15 к расх.; ЗПМ=1,15; ТЗ=1,15; ТЗМ=1,15
B31: 1 | C31: ИНДЕКС К ПОЗИЦИИ: II кв. 2025 г. Минстрой письмо №29761-ИФ/09 от 23.05.2025 г. (ПРОЧИЕ, ТЕР-2001) ОЗП=29,1; ЭМ=11,55; ЗПМ=29,1; МАТ=8,66 | BO31: ИНДЕКС К ПОЗИЦИИ: II кв. 2025 г. Минстрой письмо №29761-ИФ/09 от 23.05.2025 г. (ПРОЧИЕ, ТЕР-2001) ОЗП=29,1; ЭМ=11,55; ЗПМ=29,1; МАТ=8,66
E32: Накладные расходы 92% ФОТ (от 11 234,41) | L32: 10335.66
E33: Сметная прибыль 46% ФОТ (от 11 234,41) | L33: 5167.83
A34: 3 | B34: ТЕР01-02-057-02 Приказ Администрации ЛО от 20.10.15 №28 | C34: Разработка грунта вручную в траншеях глубиной до 2 м без креплений с откосами, группа грунтов: 2//подчистка дна котлована с выкидкой к ковшу экскаватора | F34: 100 м3 грунта | G34: 0.05 | H34: 91466.27 | I34: 91466.27 | L34: 4573.31 | M34: 4573.31 | BM34: Разработка грунта вручную в траншеях глубиной до 2 м без креплений с откосами, группа грунтов: 2//подчистка дна котлована с выкидкой к ковшу экскаватора
B35: Прил.1.12 п.3.187 | C35: Доработка вручную, зачистка дна и стенок с выкидкой грунта в котлованах и траншеях, разработанных механизированным способом ОЗП=1,2; ТЗ=1,2 | BN35: Доработка вручную, зачистка дна и стенок с выкидкой грунта в котлованах и траншеях, разработанных механизированным способом ОЗП=1,2; ТЗ=1,2
B36: 421/пр_2020_прил.10_т.1_п.2_гр.3 | C36: Производство работ осуществляется на территории действующего предприятия с наличием в зоне производства работ одного или нескольких из следующих факторов: - разветвленной сети транспортных и инженерных коммуникаций; - стесненных условий для складирования материалов; - действующего технологического оборудования; - движения технологического транспорта ОЗП=1,15; ЭМ=1,15 к расх.; ЗПМ=1,15; ТЗ=1,15; ТЗМ=1,15 | BN36: Производство работ осуществляется на территории действующего предприятия с наличием в зоне производства работ одного или нескольких из следующих факторов: - разветвленной сети транспортных и инженерных коммуникаций; - стесненных условий для складирования материалов; - действующего технологического оборудования; - движения технологического транспорта ОЗП=1,15; ЭМ=1,15 к расх.; ЗПМ=1,15; ТЗ=1,15; ТЗМ=1,15
B37: 1 | C37: ИНДЕКС К ПОЗИЦИИ: II кв. 2025 г. Минстрой письмо №29761-ИФ/09 от 23.05.2025 г. (ПРОЧИЕ, ТЕР-2001) ОЗП=29,1; ЭМ=11,55; ЗПМ=29,1; МАТ=8,66 | BO37: ИНДЕКС К ПОЗИЦИИ: II кв. 2025 г. Минстрой письмо №29761-ИФ/09 от 23.05.2025 г. (ПРОЧИЕ, ТЕР-2001) ОЗП=29,1; ЭМ=11,55; ЗПМ=29,1; МАТ=8,66
E38: Накладные расходы 89% ФОТ (от 4 573,31) | L38: 4070.25
E39: Сметная прибыль 40% ФОТ (от 4 573,31) | L39: 1829.32
A40: 4 | B40: ТССЦпг-03-21-01-190 Приказ Администрации ЛО от 20.10.15 №28 | C40: Перевозка грузов автомобилями-самосвалами грузоподъемностью 10 т, работающих вне карьера, на расстояние: до 190 км I класс груза | F40: 1 т груза | G40: 616.32 | H40: 2189.85 | J40: 2189.85 | L40: 1349648.35 | N40: 1349648.35 | BM40: Перевозка грузов автомобилями-самосвалами грузоподъемностью 10 т, работающих вне карьера, на расстояние: до 190 км I класс груза
B41: 421/пр_2020_прил.10_т.1_п.2_гр.3 | C41: Производство работ осуществляется на территории действующего предприятия с наличием в зоне производства работ одного или нескольких из следующих факторов: - разветвленной сети транспортных и инженерных коммуникаций; - стесненных условий для складирования материалов; - действующего технологического оборудования; - движения технологического транспорта ОЗП=1,15; ЭМ=1,15 к расх.; ЗПМ=1,15; ТЗ=1,15; ТЗМ=1,15 | BN41: Производство работ осуществляется на территории действующего предприятия с наличием в зоне производства работ одного или нескольких из следующих факторов: - разветвленной сети транспортных и инженерных коммуникаций; - стесненных условий для складирования материалов; - действующего технологического оборудования; - движения технологического транспорта ОЗП=1,15; ЭМ=1,15 к расх.; ЗПМ=1,15; ТЗ=1,15; ТЗМ=1,15
B42: 3 | C42: ИНДЕКС К ПОЗИЦИИ: II кв. 2025 г. Минстрой письмо №29761-ИФ/09 от 23.05.2025 г. (авт_САМОСВ) ЭМ=17,63 | BO42: ИНДЕКС К ПОЗИЦИИ: II кв. 2025 г. Минстрой письмо №29761-ИФ/09 от 23.05.2025 г. (авт_САМОСВ) ЭМ=17,63
A43: Обратная засыпка местным грунтом | BP43: Обратная засыпка местным грунтом
A44: 5 | B44: ТЕР01-02-005-01 Приказ Администрации ЛО от 20.10.15 №28 | C44: Уплотнение грунта пневматическими трамбовками, группа грунтов: 1-2 | F44: 100 м3 уплотненного грунта | G44: 9.5058 | H44: 10914.12 | I44: 6780.34 | J44: 4133.78 | K44: 1857.64 | L44: 103747.44 | M44: 64452.56 | N44: 39294.88 | O44: 17658.35 | BM44: Уплотнение грунта пневматическими трамбовками, группа грунтов: 1-2
B45: 421/пр_2020_прил.10_т.1_п.2_гр.3 | C45: Производство работ осуществляется на территории действующего предприятия с наличием в зоне производства работ одного или нескольких из следующих факторов: - разветвленной сети транспортных и инженерных коммуникаций; - стесненных условий для складирования материалов; - действующего технологического оборудования; - движения технологического транспорта ОЗП=1,15; ЭМ=1,15 к расх.; ЗПМ=1,15; ТЗ=1,15; ТЗМ=1,15 | BN45: Производство работ осуществляется на территории действующего предприятия с наличием в зоне производства работ одного или нескольких из следующих факторов: - разветвленной сети транспортных и инженерных коммуникаций; - стесненных условий для складирования материалов; - действующего технологического оборудования; - движения технологического транспорта ОЗП=1,15; ЭМ=1,15 к расх.; ЗПМ=1,15; ТЗ=1,15; ТЗМ=1,15
B46: 1 | C46: ИНДЕКС К ПОЗИЦИИ: II кв. 2025 г. Минстрой письмо №29761-ИФ/09 от 23.05.2025 г. (ПРОЧИЕ, ТЕР-2001) ОЗП=29,1; ЭМ=11,55; ЗПМ=29,1; МАТ=8,66 | BO46: ИНДЕКС К ПОЗИЦИИ: II кв. 2025 г. Минстрой письмо №29761-ИФ/09 от 23.05.2025 г. (ПРОЧИЕ, ТЕР-2001) ОЗП=29,1; ЭМ=11,55; ЗПМ=29,1; МАТ=8,66
E47: Накладные расходы 92% ФОТ (от 82 110,91) | L47: 75542.04
E48: Сметная прибыль 46% ФОТ (от 82 110,91) | L48: 37771.02
A49: 6 | B49: ТЕР01-01-033-04 Приказ Администрации ЛО от 20.10.15 №28 | C49: Засыпка траншей и котлованов с перемещением грунта до 5 м бульдозерами мощностью: 79 кВт (108 л.с.), группа грунтов 1 | F49: 1000 м3 грунта | G49: 0.95058 | H49: 4404.34 | J49: 4404.34 | K49: 2873.3 | L49: 4186.68 | N49: 4186.68 | O49: 2731.3 | BM49: Засыпка траншей и котлованов с перемещением грунта до 5 м бульдозерами мощностью: 79 кВт (108 л.с.), группа грунтов 1
B50: 421/пр_2020_прил.10_т.1_п.2_гр.3 | C50: Производство работ осуществляется на территории действующего предприятия с наличием в зоне производства работ одного или нескольких из следующих факторов: - разветвленной сети транспортных и инженерных коммуникаций; - стесненных условий для складирования материалов; - действующего технологического оборудования; - движения технологического транспорта ОЗП=1,15; ЭМ=1,15 к расх.; ЗПМ=1,15; ТЗ=1,15; ТЗМ=1,15 | BN50: Производство работ осуществляется на территории действующего предприятия с наличием в зоне производства работ одного или нескольких из следующих факторов: - разветвленной сети транспортных и инженерных коммуникаций; - стесненных условий для складирования материалов; - действующего технологического оборудования; - движения технологического транспорта ОЗП=1,15; ЭМ=1,15 к расх.; ЗПМ=1,15; ТЗ=1,15; ТЗМ=1,15
B51: 1 | C51: ИНДЕКС К ПОЗИЦИИ: II кв. 2025 г. Минстрой письмо №29761-ИФ/09 от 23.05.2025 г. (ПРОЧИЕ, ТЕР-2001) ОЗП=29,1; ЭМ=11,55; ЗПМ=29,1; МАТ=8,66 | BO51: ИНДЕКС К ПОЗИЦИИ: II кв. 2025 г. Минстрой письмо №29761-ИФ/09 от 23.05.2025 г. (ПРОЧИЕ, ТЕР-2001) ОЗП=29,1; ЭМ=11,55; ЗПМ=29,1; МАТ=8,66
E52: Накладные расходы 92% ФОТ (от 2 731,30) | L52: 2512.8
E53: Сметная прибыль 46% ФОТ (от 2 731,30) | L53: 1256.4
A54: Уплотнение основания по фундамент до к=0,98 (ОП п.12, л.1) | BP54: Уплотнение основания по фундамент до к=0,98 (ОП п.12, л.1)
A55: 7 | B55: ТЕР01-02-001-06 Приказ Администрации ЛО от 20.10.15 №28 | C55: Уплотнение грунта прицепными катками на пневмоколесном ходу 25 т на первый проход по одному следу при толщине слоя: 60 см СНиП III-8-76 прил. 3: грунт несвязный, К=0,98, 8 проходов ОП п.13, л.3 п.4 | F55: 1000 м3 уплотненного грунта | G55: 0.339 | H55: 5574 | J55: 5574 | K55: 3455.26 | L55: 1889.59 | N55: 1889.59 | O55: 1171.33 | BM55: Уплотнение грунта прицепными катками на пневмоколесном ходу 25 т на первый проход по одному следу при толщине слоя: 60 см СНиП III-8-76 прил. 3: грунт несвязный, К=0,98, 8 проходов ОП п.13, л.3 п.4
B56: 421/пр_2020_прил.10_т.1_п.2_гр.3 | C56: Производство работ осуществляется на территории действующего предприятия с наличием в зоне производства работ одного или нескольких из следующих факторов: - разветвленной сети транспортных и инженерных коммуникаций; - стесненных условий для складирования материалов; - действующего технологического оборудования; - движения технологического транспорта ОЗП=1,15; ЭМ=1,15 к расх.; ЗПМ=1,15; ТЗ=1,15; ТЗМ=1,15 | BN56: Производство работ осуществляется на территории действующего предприятия с наличием в зоне производства работ одного или нескольких из следующих факторов: - разветвленной сети транспортных и инженерных коммуникаций; - стесненных условий для складирования материалов; - действующего технологического оборудования; - движения технологического транспорта ОЗП=1,15; ЭМ=1,15 к расх.; ЗПМ=1,15; ТЗ=1,15; ТЗМ=1,15
B57: 1 | C57: ИНДЕКС К ПОЗИЦИИ: II кв. 2025 г. Минстрой письмо №29761-ИФ/09 от 23.05.2025 г. (ПРОЧИЕ, ТЕР-2001) ОЗП=29,1; ЭМ=11,55; ЗПМ=29,1; МАТ=8,66 | BO57: ИНДЕКС К ПОЗИЦИИ: II кв. 2025 г. Минстрой письмо №29761-ИФ/09 от 23.05.2025 г. (ПРОЧИЕ, ТЕР-2001) ОЗП=29,1; ЭМ=11,55; ЗПМ=29,1; МАТ=8,66
E58: Накладные расходы 92% ФОТ (от 1 171,33) | L58: 1077.62
E59: Сметная прибыль 46% ФОТ (от 1 171,33) | L59: 538.81
A60: 8 | B60: ТЕР01-02-001-12 Приказ Администрации ЛО от 20.10.15 №28 | C60: На каждый последующий проход по одному следу добавлять: к расценке 01-02-001-06 К=7 | F60: 1000 м3 уплотненного грунта | G60: 0.339 | H60: 7394.5 | J60: 7394.5 | K60: 3555.99 | L60: 2506.74 | N60: 2506.74 | O60: 1205.48 | BM60: На каждый последующий проход по одному следу добавлять: к расценке 01-02-001-06 К=7
C61: К=6 (7 проходов) ПЗ=7 (ОЗП=7; ЭМ=7 к расх.; ЗПМ=7; МАТ=7 к расх.; ТЗ=7; ТЗМ=7) | BN61: К=6 (7 проходов) ПЗ=7 (ОЗП=7; ЭМ=7 к расх.; ЗПМ=7; МАТ=7 к расх.; ТЗ=7; ТЗМ=7)
B62: 421/пр_2020_прил.10_т.1_п.2_гр.3 | C62: Производство работ осуществляется на территории действующего предприятия с наличием в зоне производства работ одного или нескольких из следующих факторов: - разветвленной сети транспортных и инженерных коммуникаций; - стесненных условий для складирования материалов; - действующего технологического оборудования; - движения технологического транспорта ОЗП=1,15; ЭМ=1,15 к расх.; ЗПМ=1,15; ТЗ=1,15; ТЗМ=1,15 | BN62: Производство работ осуществляется на территории действующего предприятия с наличием в зоне производства работ одного или нескольких из следующих факторов: - разветвленной сети транспортных и инженерных коммуникаций; - стесненных условий для складирования материалов; - действующего технологического оборудования; - движения технологического транспорта ОЗП=1,15; ЭМ=1,15 к расх.; ЗПМ=1,15; ТЗ=1,15; ТЗМ=1,15
B63: 1 | C63: ИНДЕКС К ПОЗИЦИИ: II кв. 2025 г. Минстрой письмо №29761-ИФ/09 от 23.05.2025 г. (ПРОЧИЕ, ТЕР-2001) ОЗП=29,1; ЭМ=11,55; ЗПМ=29,1; МАТ=8,66 | BO63: ИНДЕКС К ПОЗИЦИИ: II кв. 2025 г. Минстрой письмо №29761-ИФ/09 от 23.05.2025 г. (ПРОЧИЕ, ТЕР-2001) ОЗП=29,1; ЭМ=11,55; ЗПМ=29,1; МАТ=8,66
E64: Накладные расходы 92% ФОТ (от 1 205,48) | L64: 1109.04
E65: Сметная прибыль 46% ФОТ (от 1 205,48) | L65: 554.52
A66: Итого по разделу 1 Земляные работы | L66: 1705760.37 | BQ66: Итого по разделу 1 Земляные работы
A67: Раздел 2. Фундамент ленточный (1632-2021-3.4-КЖ) | BL67: Раздел 2. Фундамент ленточный (1632-2021-3.4-КЖ)
A68: 9 | B68: ТЕР08-01-002-02 Приказ Администрации ЛО от 20.10.15 №28 | C68: Устройство основания под фундаменты: щебеночного | F68: 1 м3 основания | G68: 63.7 | H68: 2096.56 | I68: 1243.22 | J68: 850.48 | K68: 337.33 | L68: 133550.87 | M68: 79193.11 | N68: 54175.58 | O68: 21487.92 | BM68: Устройство основания под фундаменты: щебеночного
C69: 101,51 = 436,36 - 1,3 x 257,58 | BR69: 101,51 = 436,36 - 1,3 x 257,58
B70: 421/пр_2020_прил.10_т.1_п.2_гр.3 | C70: Производство работ осуществляется на территории действующего предприятия с наличием в зоне производства работ одного или нескольких из следующих факторов: - разветвленной сети транспортных и инженерных коммуникаций; - стесненных условий для складирования материалов; - действующего технологического оборудования; - движения технологического транспорта ОЗП=1,15; ЭМ=1,15 к расх.; ЗПМ=1,15; ТЗ=1,15; ТЗМ=1,15 | BN70: Производство работ осуществляется на территории действующего предприятия с наличием в зоне производства работ одного или нескольких из следующих факторов: - разветвленной сети транспортных и инженерных коммуникаций; - стесненных условий для складирования материалов; - действующего технологического оборудования; - движения технологического транспорта ОЗП=1,15; ЭМ=1,15 к расх.; ЗПМ=1,15; ТЗ=1,15; ТЗМ=1,15
B71: 1 | C71: ИНДЕКС К ПОЗИЦИИ: II кв. 2025 г. Минстрой письмо №29761-ИФ/09 от 23.05.2025 г. (ПРОЧИЕ, ТЕР-2001) ОЗП=29,1; ЭМ=11,55; ЗПМ=29,1; МАТ=8,66 | BO71: ИНДЕКС К ПОЗИЦИИ: II кв. 2025 г. Минстрой письмо №29761-ИФ/09 от 23.05.2025 г. (ПРОЧИЕ, ТЕР-2001) ОЗП=29,1; ЭМ=11,55; ЗПМ=29,1; МАТ=8,66
E72: Накладные расходы 110% ФОТ (от 100 681,03) | L72: 110749.13
E73: Сметная прибыль 69% ФОТ (от 100 681,03) | L73: 69469.91
A74: 10 | B74: ТССЦ-408-0015 Приказ Администрации ЛО от 20.10.15 №28 | C74: Щебень из природного камня для строительных работ марка: 800, фракция 20-40 мм | F74: м3 | G74: 82.81 | H74: 2362.71 | L74: 195656.02 | BM74: Щебень из природного камня для строительных работ марка: 800, фракция 20-40 мм
B75: 1 | C75: ИНДЕКС К ПОЗИЦИИ: II кв. 2025 г. Минстрой письмо №29761-ИФ/09 от 23.05.2025 г. (ПРОЧИЕ, ТЕР-2001) ОЗП=29,1; ЭМ=11,55; ЗПМ=29,1; МАТ=8,66 | BO75: ИНДЕКС К ПОЗИЦИИ: II кв. 2025 г. Минстрой письмо №29761-ИФ/09 от 23.05.2025 г. (ПРОЧИЕ, ТЕР-2001) ОЗП=29,1; ЭМ=11,55; ЗПМ=29,1; МАТ=8,66
A76: 11 | B76: ТЕР06-01-001-01 Приказ Администрации ЛО от 20.10.15 №28 | C76: Устройство бетонной подготовки | F76: 100 м3 бетона, бутобетона и железобетона в деле | G76: 0.283 | H76: 131306.43 | I76: 89090.52 | J76: 24177.74 | K76: 14776.14 | L76: 37159.72 | M76: 25212.62 | N76: 6842.3 | O76: 4181.65 | BM76: Устройство бетонной подготовки
C77: 6 565,40 = 40 889,42 - 102 x 336,51 | BR77: 6 565,40 = 40 889,42 - 102 x 336,51
B78: 421/пр_2020_прил.10_т.1_п.2_гр.3 | C78: Производство работ осуществляется на территории действующего предприятия с наличием в зоне производства работ одного или нескольких из следующих факторов: - разветвленной сети транспортных и инженерных коммуникаций; - стесненных условий для складирования материалов; - действующего технологического оборудования; - движения технологического транспорта ОЗП=1,15; ЭМ=1,15 к расх.; ЗПМ=1,15; ТЗ=1,15; ТЗМ=1,15 | BN78: Производство работ осуществляется на территории действующего предприятия с наличием в зоне производства работ одного или нескольких из следующих факторов: - разветвленной сети транспортных и инженерных коммуникаций; - стесненных условий для складирования материалов; - действующего технологического оборудования; - движения технологического транспорта ОЗП=1,15; ЭМ=1,15 к расх.; ЗПМ=1,15; ТЗ=1,15; ТЗМ=1,15
B79: 1 | C79: ИНДЕКС К ПОЗИЦИИ: II кв. 2025 г. Минстрой письмо №29761-ИФ/09 от 23.05.2025 г. (ПРОЧИЕ, ТЕР-2001) ОЗП=29,1; ЭМ=11,55; ЗПМ=29,1; МАТ=8,66 | BO79: ИНДЕКС К ПОЗИЦИИ: II кв. 2025 г. Минстрой письмо №29761-ИФ/09 от 23.05.2025 г. (ПРОЧИЕ, ТЕР-2001) ОЗП=29,1; ЭМ=11,55; ЗПМ=29,1; МАТ=8,66
E80: Накладные расходы 102% ФОТ (от 29 394,27) | L80: 29982.16
E81: Сметная прибыль 58% ФОТ (от 29 394,27) | L81: 17048.68
A82: 12 | B82: ТСЭМ-110053 Приказ Администрации ЛО от 20.10.15 №28 | C82: Автобетоносмесители: 4 м3 | F82: маш.-ч | G82: 3.516 | H82: 2091.86 | J82: 2091.86 | K82: 820.9 | L82: 7354.98 | N82: 7354.98 | O82: 2886.28 | BM82: Автобетоносмесители: 4 м3
B83: 421/пр_2020_прил.10_т.1_п.2_гр.3 | C83: Производство работ осуществляется на территории действующего предприятия с наличием в зоне производства работ одного или нескольких из следующих факторов: - разветвленной сети транспортных и инженерных коммуникаций; - стесненных условий для складирования материалов; - действующего технологического оборудования; - движения технологического транспорта ОЗП=1,15; ЭМ=1,15 к расх.; ЗПМ=1,15; ТЗ=1,15; ТЗМ=1,15 | BN83: Производство работ осуществляется на территории действующего предприятия с наличием в зоне производства работ одного или нескольких из следующих факторов: - разветвленной сети транспортных и инженерных коммуникаций; - стесненных условий для складирования материалов; - действующего технологического оборудования; - движения технологического транспорта ОЗП=1,15; ЭМ=1,15 к расх.; ЗПМ=1,15; ТЗ=1,15; ТЗМ=1,15
B84: 1 | C84: ИНДЕКС К ПОЗИЦИИ: II кв. 2025 г. Минстрой письмо №29761-ИФ/09 от 23.05.2025 г. (ПРОЧИЕ, ТЕР-2001) ОЗП=29,1; ЭМ=11,55; ЗПМ=29,1; МАТ=8,66 | BO84: ИНДЕКС К ПОЗИЦИИ: II кв. 2025 г. Минстрой письмо №29761-ИФ/09 от 23.05.2025 г. (ПРОЧИЕ, ТЕР-2001) ОЗП=29,1; ЭМ=11,55; ЗПМ=29,1; МАТ=8,66
E85: Накладные расходы 102% ФОТ (от 2 886,28) | L85: 2944.01
E86: Сметная прибыль 58% ФОТ (от 2 886,28) | L86: 1674.04
A87: 13 | B87: Прайс | C87: Бетон тяжелый, класс: В7,5 (М100) | F87: м3 | G87: 28.866 | H87: 5 674,98 (4050+1625)/ИндМ225 | L87: 163813.97 | BM87: Бетон тяжелый, класс: В7,5 (М100)
C88: Цена МАТ=(4050+1625)/ИндМ225 | BS88: Цена МАТ=(4050+1625)/ИндМ225
B89: 1 | C89: ИНДЕКС К ПОЗИЦИИ: II кв. 2025 г. Минстрой письмо №29761-ИФ/09 от 23.05.2025 г. (ПРОЧИЕ, ТЕР-2001) ОЗП=29,1; ЭМ=11,55; ЗПМ=29,1; МАТ=8,66 | BO89: ИНДЕКС К ПОЗИЦИИ: II кв. 2025 г. Минстрой письмо №29761-ИФ/09 от 23.05.2025 г. (ПРОЧИЕ, ТЕР-2001) ОЗП=29,1; ЭМ=11,55; ЗПМ=29,1; МАТ=8,66
A90: 14 | B90: ТЕР06-01-013-01 Приказ Администрации ЛО от 20.10.15 №28 | C90: Устройство подливки толщиной 20 мм // подливка толщ. 80мм | F90: 100 м2 подливки под оборудование | G90: 0.04 | H90: 28183.87 | I90: 26044.47 | J90: 229.79 | K90: 65.59 | L90: 1127.35 | M90: 1041.78 | N90: 9.19 | O90: 2.62 | BM90: Устройство подливки толщиной 20 мм // подливка толщ. 80мм
C91: 1 016,07 = 1 940,48 - 2,04 x 453,14 | BR91: 1 016,07 = 1 940,48 - 2,04 x 453,14
B92: 421/пр_2020_прил.10_т.1_п.2_гр.3 | C92: Производство работ осуществляется на территории действующего предприятия с наличием в зоне производства работ одного или нескольких из следующих факторов: - разветвленной сети транспортных и инженерных коммуникаций; - стесненных условий для складирования материалов; - действующего технологического оборудования; - движения технологического транспорта ОЗП=1,15; ЭМ=1,15 к расх.; ЗПМ=1,15; ТЗ=1,15; ТЗМ=1,15 | BN92: Производство работ осуществляется на территории действующего предприятия с наличием в зоне производства работ одного или нескольких из следующих факторов: - разветвленной сети транспортных и инженерных коммуникаций; - стесненных условий для складирования материалов; - действующего технологического оборудования; - движения технологического транспорта ОЗП=1,15; ЭМ=1,15 к расх.; ЗПМ=1,15; ТЗ=1,15; ТЗМ=1,15
B93: 1 | C93: ИНДЕКС К ПОЗИЦИИ: II кв. 2025 г. Минстрой письмо №29761-ИФ/09 от 23.05.2025 г. (ПРОЧИЕ, ТЕР-2001) ОЗП=29,1; ЭМ=11,55; ЗПМ=29,1; МАТ=8,66 | BO93: ИНДЕКС К ПОЗИЦИИ: II кв. 2025 г. Минстрой письмо №29761-ИФ/09 от 23.05.2025 г. (ПРОЧИЕ, ТЕР-2001) ОЗП=29,1; ЭМ=11,55; ЗПМ=29,1; МАТ=8,66
E94: Накладные расходы 102% ФОТ (от 1 044,40) | L94: 1065.29
E95: Сметная прибыль 58% ФОТ (от 1 044,40) | L95: 605.75
A96: 15 | B96: Прайс | C96: Бетон тяжелый, класс: В30 (М400) W6 | F96: м3 | G96: 0.0816 | H96: 6 917,00 (5292+1625)/ИндМ225 | L96: 564.43 | BM96: Бетон тяжелый, класс: В30 (М400) W6
C97: Цена МАТ=(5292+1625)/ИндМ225 | BS97: Цена МАТ=(5292+1625)/ИндМ225
B98: 1 | C98: ИНДЕКС К ПОЗИЦИИ: II кв. 2025 г. Минстрой письмо №29761-ИФ/09 от 23.05.2025 г. (ПРОЧИЕ, ТЕР-2001) ОЗП=29,1; ЭМ=11,55; ЗПМ=29,1; МАТ=8,66 | BO98: ИНДЕКС К ПОЗИЦИИ: II кв. 2025 г. Минстрой письмо №29761-ИФ/09 от 23.05.2025 г. (ПРОЧИЕ, ТЕР-2001) ОЗП=29,1; ЭМ=11,55; ЗПМ=29,1; МАТ=8,66
A99: 16 | B99: ТЕР06-01-013-02 Приказ Администрации ЛО от 20.10.15 №28 | C99: На каждые 10 мм изменения толщины добавлять или исключать к расценке 06-01-013-01 (до 80 мм) | F99: 100 м2 подливки под оборудование | G99: 0.04 | H99: 48068.09 | I99: 44647.66 | J99: 620.82 | K99: 196.77 | L99: 1922.72 | M99: 1785.91 | N99: 24.83 | O99: 7.87 | BM99: На каждые 10 мм изменения толщины добавлять или исключать к расценке 06-01-013-01 (до 80 мм)
C100: 284,03 = 746,23 - 1,02 x 453,14 | BR100: 284,03 = 746,23 - 1,02 x 453,14
C101: Кпз=(80-20)/10=6 ПЗ=6 (ОЗП=6; ЭМ=6 к расх.; ЗПМ=6; МАТ=6 к расх.; ТЗ=6; ТЗМ=6) | BN101: Кпз=(80-20)/10=6 ПЗ=6 (ОЗП=6; ЭМ=6 к расх.; ЗПМ=6; МАТ=6 к расх.; ТЗ=6; ТЗМ=6)
B102: 421/пр_2020_прил.10_т.1_п.2_гр.3 | C102: Производство работ осуществляется на территории действующего предприятия с наличием в зоне производства работ одного или нескольких из следующих факторов: - разветвленной сети транспортных и инженерных коммуникаций; - стесненных условий для складирования материалов; - действующего технологического оборудования; - движения технологического транспорта ОЗП=1,15; ЭМ=1,15 к расх.; ЗПМ=1,15; ТЗ=1,15; ТЗМ=1,15 | BN102: Производство работ осуществляется на территории действующего предприятия с наличием в зоне производства работ одного или нескольких из следующих факторов: - разветвленной сети транспортных и инженерных коммуникаций; - стесненных условий для складирования материалов; - действующего технологического оборудования; - движения технологического транспорта ОЗП=1,15; ЭМ=1,15 к расх.; ЗПМ=1,15; ТЗ=1,15; ТЗМ=1,15
B103: 1 | C103: ИНДЕКС К ПОЗИЦИИ: II кв. 2025 г. Минстрой письмо №29761-ИФ/09 от 23.05.2025 г. (ПРОЧИЕ, ТЕР-2001) ОЗП=29,1; ЭМ=11,55; ЗПМ=29,1; МАТ=8,66 | BO103: ИНДЕКС К ПОЗИЦИИ: II кв. 2025 г. Минстрой письмо №29761-ИФ/09 от 23.05.2025 г. (ПРОЧИЕ, ТЕР-2001) ОЗП=29,1; ЭМ=11,55; ЗПМ=29,1; МАТ=8,66
E104: Накладные расходы 102% ФОТ (от 1 793,78) | L104: 1829.66
E105: Сметная прибыль 58% ФОТ (от 1 793,78) | L105: 1040.39
A106: 17 | B106: Прайс | C106: Бетон тяжелый, класс: В30 (М400) W6 | F106: м3 | G106: 0.2448 | H106: 6 917,00 (5292+1625)/ИндМ225 | L106: 1693.28 | BM106: Бетон тяжелый, класс: В30 (М400) W6
C107: Цена МАТ=(5292+1625)/ИндМ225 | BS107: Цена МАТ=(5292+1625)/ИндМ225
B108: 1 | C108: ИНДЕКС К ПОЗИЦИИ: II кв. 2025 г. Минстрой письмо №29761-ИФ/09 от 23.05.2025 г. (ПРОЧИЕ, ТЕР-2001) ОЗП=29,1; ЭМ=11,55; ЗПМ=29,1; МАТ=8,66 | BO108: ИНДЕКС К ПОЗИЦИИ: II кв. 2025 г. Минстрой письмо №29761-ИФ/09 от 23.05.2025 г. (ПРОЧИЕ, ТЕР-2001) ОЗП=29,1; ЭМ=11,55; ЗПМ=29,1; МАТ=8,66
A109: 18 | B109: ТЕР06-01-001-22 Приказ Администрации ЛО от 20.10.15 №28 | C109: Устройство ленточных фундаментов: железобетонных при ширине по верху до 1000 мм | F109: 100 м3 бетона, бутобетона и железобетона в деле | G109: 2.43 | H109: 349031.02 | I109: 250619.72 | J109: 55488.44 | K109: 23559.36 | L109: 848145.38 | M109: 609005.92 | N109: 134836.91 | O109: 57249.24 | BM109: Устройство ленточных фундаментов: железобетонных при ширине по верху до 1000 мм
C110: 16 623,02 = 105 250,48 - 6,6 x 5 079,72 - 101,5 x 542,87 | BR110: 16 623,02 = 105 250,48 - 6,6 x 5 079,72 - 101,5 x 542,87
B111: 421/пр_2020_прил.10_т.1_п.2_гр.3 | C111: Производство работ осуществляется на территории действующего предприятия с наличием в зоне производства работ одного или нескольких из следующих факторов: - разветвленной сети транспортных и инженерных коммуникаций; - стесненных условий для складирования материалов; - действующего технологического оборудования; - движения технологического транспорта ОЗП=1,15; ЭМ=1,15 к расх.; ЗПМ=1,15; ТЗ=1,15; ТЗМ=1,15 | BN111: Производство работ осуществляется на территории действующего предприятия с наличием в зоне производства работ одного или нескольких из следующих факторов: - разветвленной сети транспортных и инженерных коммуникаций; - стесненных условий для складирования материалов; - действующего технологического оборудования; - движения технологического транспорта ОЗП=1,15; ЭМ=1,15 к расх.; ЗПМ=1,15; ТЗ=1,15; ТЗМ=1,15
B112: 1 | C112: ИНДЕКС К ПОЗИЦИИ: II кв. 2025 г. Минстрой письмо №29761-ИФ/09 от 23.05.2025 г. (ПРОЧИЕ, ТЕР-2001) ОЗП=29,1; ЭМ=11,55; ЗПМ=29,1; МАТ=8,66 | BO112: ИНДЕКС К ПОЗИЦИИ: II кв. 2025 г. Минстрой письмо №29761-ИФ/09 от 23.05.2025 г. (ПРОЧИЕ, ТЕР-2001) ОЗП=29,1; ЭМ=11,55; ЗПМ=29,1; МАТ=8,66
E113: Накладные расходы 102% ФОТ (от 666 255,16) | L113: 679580.26
E114: Сметная прибыль 58% ФОТ (от 666 255,16) | L114: 386427.99
A115: 19 | B115: ТСЭМ-110053 Приказ Администрации ЛО от 20.10.15 №28 | C115: Автобетоносмесители: 4 м3 | F115: маш.-ч | G115: 34.2675 | H115: 2091.86 | J115: 2091.86 | K115: 820.9 | L115: 71682.81 | N115: 71682.81 | O115: 28130.19 | BM115: Автобетоносмесители: 4 м3
B116: 421/пр_2020_прил.10_т.1_п.2_гр.3 | C116: Производство работ осуществляется на территории действующего предприятия с наличием в зоне производства работ одного или нескольких из следующих факторов: - разветвленной сети транспортных и инженерных коммуникаций; - стесненных условий для складирования материалов; - действующего технологического оборудования; - движения технологического транспорта ОЗП=1,15; ЭМ=1,15 к расх.; ЗПМ=1,15; ТЗ=1,15; ТЗМ=1,15 | BN116: Производство работ осуществляется на территории действующего предприятия с наличием в зоне производства работ одного или нескольких из следующих факторов: - разветвленной сети транспортных и инженерных коммуникаций; - стесненных условий для складирования материалов; - действующего технологического оборудования; - движения технологического транспорта ОЗП=1,15; ЭМ=1,15 к расх.; ЗПМ=1,15; ТЗ=1,15; ТЗМ=1,15
B117: 1 | C117: ИНДЕКС К ПОЗИЦИИ: II кв. 2025 г. Минстрой письмо №29761-ИФ/09 от 23.05.2025 г. (ПРОЧИЕ, ТЕР-2001) ОЗП=29,1; ЭМ=11,55; ЗПМ=29,1; МАТ=8,66 | BO117: ИНДЕКС К ПОЗИЦИИ: II кв. 2025 г. Минстрой письмо №29761-ИФ/09 от 23.05.2025 г. (ПРОЧИЕ, ТЕР-2001) ОЗП=29,1; ЭМ=11,55; ЗПМ=29,1; МАТ=8,66
E118: Накладные расходы 102% ФОТ (от 28 130,19) | L118: 28692.79
E119: Сметная прибыль 58% ФОТ (от 28 130,19) | L119: 16315.51
A120: 20 | B120: Прайс | C120: Бетон тяжелый, класс: В30 (М400) W8 | F120: м3 | G120: 246.645 | H120: 6 750,04 (5125+1625)/ИндМ225 | L120: 1664863.62 | BM120: Бетон тяжелый, класс: В30 (М400) W8
C121: Цена МАТ=(5125+1625)/ИндМ225 | BS121: Цена МАТ=(5125+1625)/ИндМ225
B122: 1 | C122: ИНДЕКС К ПОЗИЦИИ: II кв. 2025 г. Минстрой письмо №29761-ИФ/09 от 23.05.2025 г. (ПРОЧИЕ, ТЕР-2001) ОЗП=29,1; ЭМ=11,55; ЗПМ=29,1; МАТ=8,66 | BO122: ИНДЕКС К ПОЗИЦИИ: II кв. 2025 г. Минстрой письмо №29761-ИФ/09 от 23.05.2025 г. (ПРОЧИЕ, ТЕР-2001) ОЗП=29,1; ЭМ=11,55; ЗПМ=29,1; МАТ=8,66
A123: 21 | B123: Прайс | C123: Горячекатанная арматурная сталь класса А500 С, диаметром: 12 мм | F123: т | G123: 7.66924 | H123: 50 832,99 50833,00/ИндМ225 | L123: 389850.4 | BM123: Горячекатанная арматурная сталь класса А500 С, диаметром: 12 мм
C124: Цена МАТ=50833,00/ИндМ225 | BS124: Цена МАТ=50833,00/ИндМ225
B125: 1 | C125: ИНДЕКС К ПОЗИЦИИ: II кв. 2025 г. Минстрой письмо №29761-ИФ/09 от 23.05.2025 г. (ПРОЧИЕ, ТЕР-2001) ОЗП=29,1; ЭМ=11,55; ЗПМ=29,1; МАТ=8,66 | BO125: ИНДЕКС К ПОЗИЦИИ: II кв. 2025 г. Минстрой письмо №29761-ИФ/09 от 23.05.2025 г. (ПРОЧИЕ, ТЕР-2001) ОЗП=29,1; ЭМ=11,55; ЗПМ=29,1; МАТ=8,66
A126: 22 | B126: Прайс | C126: Горячекатанная арматурная сталь класса А500 С, диаметром: 25 мм | F126: т | G126: 2.79168 | H126: 49 999,98 50000,00/ИндМ225 | L126: 139583.94 | BM126: Горячекатанная арматурная сталь класса А500 С, диаметром: 25 мм
C127: Цена МАТ=50000,00/ИндМ225 | BS127: Цена МАТ=50000,00/ИндМ225
B128: 1 | C128: ИНДЕКС К ПОЗИЦИИ: II кв. 2025 г. Минстрой письмо №29761-ИФ/09 от 23.05.2025 г. (ПРОЧИЕ, ТЕР-2001) ОЗП=29,1; ЭМ=11,55; ЗПМ=29,1; МАТ=8,66 | BO128: ИНДЕКС К ПОЗИЦИИ: II кв. 2025 г. Минстрой письмо №29761-ИФ/09 от 23.05.2025 г. (ПРОЧИЕ, ТЕР-2001) ОЗП=29,1; ЭМ=11,55; ЗПМ=29,1; МАТ=8,66
A129: 23 | B129: Прайс | C129: Горячекатанная арматурная сталь класса А500 С, диаметром: 16 мм | F129: т | G129: 12.80332 | H129: 49 999,98 50000,00/ИндМ225 | L129: 640165.74 | BM129: Горячекатанная арматурная сталь класса А500 С, диаметром: 16 мм
C130: Цена МАТ=50000,00/ИндМ225 | BS130: Цена МАТ=50000,00/ИндМ225
B131: 1 | C131: ИНДЕКС К ПОЗИЦИИ: II кв. 2025 г. Минстрой письмо №29761-ИФ/09 от 23.05.2025 г. (ПРОЧИЕ, ТЕР-2001) ОЗП=29,1; ЭМ=11,55; ЗПМ=29,1; МАТ=8,66 | BO131: ИНДЕКС К ПОЗИЦИИ: II кв. 2025 г. Минстрой письмо №29761-ИФ/09 от 23.05.2025 г. (ПРОЧИЕ, ТЕР-2001) ОЗП=29,1; ЭМ=11,55; ЗПМ=29,1; МАТ=8,66
A132: 24 | B132: Прайс | C132: Горячекатанная арматурная сталь класса А500 С, диаметром: 20 мм | F132: т | G132: 1.83486 | H132: 49 999,98 50000,00/ИндМ225 | L132: 91742.96 | BM132: Горячекатанная арматурная сталь класса А500 С, диаметром: 20 мм
C133: Цена МАТ=50000,00/ИндМ225 | BS133: Цена МАТ=50000,00/ИндМ225
B134: 1 | C134: ИНДЕКС К ПОЗИЦИИ: II кв. 2025 г. Минстрой письмо №29761-ИФ/09 от 23.05.2025 г. (ПРОЧИЕ, ТЕР-2001) ОЗП=29,1; ЭМ=11,55; ЗПМ=29,1; МАТ=8,66 | BO134: ИНДЕКС К ПОЗИЦИИ: II кв. 2025 г. Минстрой письмо №29761-ИФ/09 от 23.05.2025 г. (ПРОЧИЕ, ТЕР-2001) ОЗП=29,1; ЭМ=11,55; ЗПМ=29,1; МАТ=8,66
A135: 25 | B135: Прайс | C135: Горячекатаная арматурная сталь гладкая класса А-I, диаметром: 10 мм | F135: т | G135: 1.2346 | H135: 54 167,00 54167,00/ИндМ225 | L135: 66874.58 | BM135: Горячекатаная арматурная сталь гладкая класса А-I, диаметром: 10 мм
C136: Цена МАТ=54167,00/ИндМ225 | BS136: Цена МАТ=54167,00/ИндМ225
B137: 1 | C137: ИНДЕКС К ПОЗИЦИИ: II кв. 2025 г. Минстрой письмо №29761-ИФ/09 от 23.05.2025 г. (ПРОЧИЕ, ТЕР-2001) ОЗП=29,1; ЭМ=11,55; ЗПМ=29,1; МАТ=8,66 | BO137: ИНДЕКС К ПОЗИЦИИ: II кв. 2025 г. Минстрой письмо №29761-ИФ/09 от 23.05.2025 г. (ПРОЧИЕ, ТЕР-2001) ОЗП=29,1; ЭМ=11,55; ЗПМ=29,1; МАТ=8,66
A138: 26 | B138: Прайс | C138: Горячекатаная арматурная сталь гладкая класса А-I, диаметром: 6 мм | F138: т | G138: 0.2926 | H138: 55 833,01 55833,00/ИндМ225 | L138: 16336.74 | BM138: Горячекатаная арматурная сталь гладкая класса А-I, диаметром: 6 мм
C139: Цена МАТ=55833,00/ИндМ225 | BS139: Цена МАТ=55833,00/ИндМ225
B140: 1 | C140: ИНДЕКС К ПОЗИЦИИ: II кв. 2025 г. Минстрой письмо №29761-ИФ/09 от 23.05.2025 г. (ПРОЧИЕ, ТЕР-2001) ОЗП=29,1; ЭМ=11,55; ЗПМ=29,1; МАТ=8,66 | BO140: ИНДЕКС К ПОЗИЦИИ: II кв. 2025 г. Минстрой письмо №29761-ИФ/09 от 23.05.2025 г. (ПРОЧИЕ, ТЕР-2001) ОЗП=29,1; ЭМ=11,55; ЗПМ=29,1; МАТ=8,66
A141: 27 | B141: ТССЦ-204-0041 Приказ Администрации ЛО от 20.10.15 №28 | C141: Надбавки к ценам заготовок за сборку и сварку каркасов и сеток: плоских, диаметром 25-28 мм | F141: т | G141: 2.79168 | H141: 7169.27 | L141: 20014.31 | BM141: Надбавки к ценам заготовок за сборку и сварку каркасов и сеток: плоских, диаметром 25-28 мм
B142: 1 | C142: ИНДЕКС К ПОЗИЦИИ: II кв. 2025 г. Минстрой письмо №29761-ИФ/09 от 23.05.2025 г. (ПРОЧИЕ, ТЕР-2001) ОЗП=29,1; ЭМ=11,55; ЗПМ=29,1; МАТ=8,66 | BO142: ИНДЕКС К ПОЗИЦИИ: II кв. 2025 г. Минстрой письмо №29761-ИФ/09 от 23.05.2025 г. (ПРОЧИЕ, ТЕР-2001) ОЗП=29,1; ЭМ=11,55; ЗПМ=29,1; МАТ=8,66
A143: 28 | B143: ТССЦ-204-0040 Приказ Администрации ЛО от 20.10.15 №28 | C143: Надбавки к ценам заготовок за сборку и сварку каркасов и сеток: плоских, диаметром 20-22 мм | F143: т | G143: 1.83486 | H143: 7702.64 | L143: 14133.27 | BM143: Надбавки к ценам заготовок за сборку и сварку каркасов и сеток: плоских, диаметром 20-22 мм
B144: 1 | C144: ИНДЕКС К ПОЗИЦИИ: II кв. 2025 г. Минстрой письмо №29761-ИФ/09 от 23.05.2025 г. (ПРОЧИЕ, ТЕР-2001) ОЗП=29,1; ЭМ=11,55; ЗПМ=29,1; МАТ=8,66 | BO144: ИНДЕКС К ПОЗИЦИИ: II кв. 2025 г. Минстрой письмо №29761-ИФ/09 от 23.05.2025 г. (ПРОЧИЕ, ТЕР-2001) ОЗП=29,1; ЭМ=11,55; ЗПМ=29,1; МАТ=8,66
A145: 29 | B145: ТССЦ-204-0039 Приказ Администрации ЛО от 20.10.15 №28 | C145: Надбавки к ценам заготовок за сборку и сварку каркасов и сеток: плоских, диаметром 16-18 мм | F145: т | G145: 3.92688 | H145: 8675.93 | L145: 34069.34 | BM145: Надбавки к ценам заготовок за сборку и сварку каркасов и сеток: плоских, диаметром 16-18 мм
B146: 1 | C146: ИНДЕКС К ПОЗИЦИИ: II кв. 2025 г. Минстрой письмо №29761-ИФ/09 от 23.05.2025 г. (ПРОЧИЕ, ТЕР-2001) ОЗП=29,1; ЭМ=11,55; ЗПМ=29,1; МАТ=8,66 | BO146: ИНДЕКС К ПОЗИЦИИ: II кв. 2025 г. Минстрой письмо №29761-ИФ/09 от 23.05.2025 г. (ПРОЧИЕ, ТЕР-2001) ОЗП=29,1; ЭМ=11,55; ЗПМ=29,1; МАТ=8,66
A147: 30 | B147: ТССЦ-204-0037 Приказ Администрации ЛО от 20.10.15 №28 | C147: Надбавки к ценам заготовок за сборку и сварку каркасов и сеток: плоских, диаметром 12 мм | F147: т | G147: 0.1543 | H147: 10379.18 | L147: 1601.51 | BM147: Надбавки к ценам заготовок за сборку и сварку каркасов и сеток: плоских, диаметром 12 мм
B148: 1 | C148: ИНДЕКС К ПОЗИЦИИ: II кв. 2025 г. Минстрой письмо №29761-ИФ/09 от 23.05.2025 г. (ПРОЧИЕ, ТЕР-2001) ОЗП=29,1; ЭМ=11,55; ЗПМ=29,1; МАТ=8,66 | BO148: ИНДЕКС К ПОЗИЦИИ: II кв. 2025 г. Минстрой письмо №29761-ИФ/09 от 23.05.2025 г. (ПРОЧИЕ, ТЕР-2001) ОЗП=29,1; ЭМ=11,55; ЗПМ=29,1; МАТ=8,66
A149: 31 | B149: ТССЦ-204-0036 Приказ Администрации ЛО от 20.10.15 №28 | C149: Надбавки к ценам заготовок за сборку и сварку каркасов и сеток: плоских, диаметром 10 мм | F149: т | G149: 0.32472 | H149: 11017.86 | L149: 3577.72 | BM149: Надбавки к ценам заготовок за сборку и сварку каркасов и сеток: плоских, диаметром 10 мм
B150: 1 | C150: ИНДЕКС К ПОЗИЦИИ: II кв. 2025 г. Минстрой письмо №29761-ИФ/09 от 23.05.2025 г. (ПРОЧИЕ, ТЕР-2001) ОЗП=29,1; ЭМ=11,55; ЗПМ=29,1; МАТ=8,66 | BO150: ИНДЕКС К ПОЗИЦИИ: II кв. 2025 г. Минстрой письмо №29761-ИФ/09 от 23.05.2025 г. (ПРОЧИЕ, ТЕР-2001) ОЗП=29,1; ЭМ=11,55; ЗПМ=29,1; МАТ=8,66
A151: 32 | B151: ТССЦ-204-0034 Приказ Администрации ЛО от 20.10.15 №28 | C151: Надбавки к ценам заготовок за сборку и сварку каркасов и сеток: плоских, диаметром 5-6 мм | F151: т | G151: 0.2926 | H151: 19229.36 | L151: 5626.51 | BM151: Надбавки к ценам заготовок за сборку и сварку каркасов и сеток: плоских, диаметром 5-6 мм
B152: 1 | C152: ИНДЕКС К ПОЗИЦИИ: II кв. 2025 г. Минстрой письмо №29761-ИФ/09 от 23.05.2025 г. (ПРОЧИЕ, ТЕР-2001) ОЗП=29,1; ЭМ=11,55; ЗПМ=29,1; МАТ=8,66 | BO152: ИНДЕКС К ПОЗИЦИИ: II кв. 2025 г. Минстрой письмо №29761-ИФ/09 от 23.05.2025 г. (ПРОЧИЕ, ТЕР-2001) ОЗП=29,1; ЭМ=11,55; ЗПМ=29,1; МАТ=8,66
A153: 33 | B153: ТССЦ-204-0048 Приказ Администрации ЛО от 20.10.15 №28 | C153: Надбавки к ценам заготовок за сборку и сварку каркасов и сеток: пространственных, диаметром 10 мм | F153: т | G153: 0.90988 | H153: 17211.92 | L153: 15660.78 | BM153: Надбавки к ценам заготовок за сборку и сварку каркасов и сеток: пространственных, диаметром 10 мм
B154: 1 | C154: ИНДЕКС К ПОЗИЦИИ: II кв. 2025 г. Минстрой письмо №29761-ИФ/09 от 23.05.2025 г. (ПРОЧИЕ, ТЕР-2001) ОЗП=29,1; ЭМ=11,55; ЗПМ=29,1; МАТ=8,66 | BO154: ИНДЕКС К ПОЗИЦИИ: II кв. 2025 г. Минстрой письмо №29761-ИФ/09 от 23.05.2025 г. (ПРОЧИЕ, ТЕР-2001) ОЗП=29,1; ЭМ=11,55; ЗПМ=29,1; МАТ=8,66
A155: 34 | B155: ТЕР26-01-041-01 Приказ Администрации ЛО от 20.10.15 №28 | C155: Изоляция изделиями из пенопласта на битуме холодных поверхностей: стен и колонн прямоугольных | F155: 1 м3 изоляции | G155: 0.4 | H155: 14376.59 | I155: 11255.28 | J155: 746.48 | L155: 5750.64 | M155: 4502.11 | N155: 298.59 | BM155: Изоляция изделиями из пенопласта на битуме холодных поверхностей: стен и колонн прямоугольных
C156: 666,76 = 1 559,17 - 0,98 x 910,62 | BR156: 666,76 = 1 559,17 - 0,98 x 910,62
B157: 421/пр_2020_прил.10_т.1_п.2_гр.3 | C157: Производство работ осуществляется на территории действующего предприятия с наличием в зоне производства работ одного или нескольких из следующих факторов: - разветвленной сети транспортных и инженерных коммуникаций; - стесненных условий для складирования материалов; - действующего технологического оборудования; - движения технологического транспорта ОЗП=1,15; ЭМ=1,15 к расх.; ЗПМ=1,15; ТЗ=1,15; ТЗМ=1,15 | BN157: Производство работ осуществляется на территории действующего предприятия с наличием в зоне производства работ одного или нескольких из следующих факторов: - разветвленной сети транспортных и инженерных коммуникаций; - стесненных условий для складирования материалов; - действующего технологического оборудования; - движения технологического транспорта ОЗП=1,15; ЭМ=1,15 к расх.; ЗПМ=1,15; ТЗ=1,15; ТЗМ=1,15
B158: 1 | C158: ИНДЕКС К ПОЗИЦИИ: II кв. 2025 г. Минстрой письмо №29761-ИФ/09 от 23.05.2025 г. (ПРОЧИЕ, ТЕР-2001) ОЗП=29,1; ЭМ=11,55; ЗПМ=29,1; МАТ=8,66 | BO158: ИНДЕКС К ПОЗИЦИИ: II кв. 2025 г. Минстрой письмо №29761-ИФ/09 от 23.05.2025 г. (ПРОЧИЕ, ТЕР-2001) ОЗП=29,1; ЭМ=11,55; ЗПМ=29,1; МАТ=8,66
E159: Накладные расходы 97% ФОТ (от 4 502,11) | L159: 4367.05
E160: Сметная прибыль 55% ФОТ (от 4 502,11) | L160: 2476.16
A161: 35 | B161: Прайс | C161: Пенополистирол экструдированный ТЕХНОНИКОЛЬ т=50мм (вес 30кг/м3) | F161: м3 | G161: 0.392 | H161: 8 694,03 8694,00/ИндМ225 | L161: 3408.06 | BM161: Пенополистирол экструдированный ТЕХНОНИКОЛЬ т=50мм (вес 30кг/м3)
C162: Цена МАТ=8694,00/ИндМ225 | BS162: Цена МАТ=8694,00/ИндМ225
B163: 1 | C163: ИНДЕКС К ПОЗИЦИИ: II кв. 2025 г. Минстрой письмо №29761-ИФ/09 от 23.05.2025 г. (ПРОЧИЕ, ТЕР-2001) ОЗП=29,1; ЭМ=11,55; ЗПМ=29,1; МАТ=8,66 | BO163: ИНДЕКС К ПОЗИЦИИ: II кв. 2025 г. Минстрой письмо №29761-ИФ/09 от 23.05.2025 г. (ПРОЧИЕ, ТЕР-2001) ОЗП=29,1; ЭМ=11,55; ЗПМ=29,1; МАТ=8,66
A164: 36 | B164: ТЕР10-01-012-04 Приказ Администрации ЛО от 20.10.15 №28 ОУ. п.14 тома 1632-2021-3.4-КЖ | C164: Обшивка каркасных стен: досками под штукатурку// прим. футеровка стен досками | F164: 100 м2 обшивки стен (за вычетом проемов) | G164: 2.788 | H164: 32923.01 | I164: 11977.79 | J164: 1182.14 | L164: 91789.35 | M164: 33394.08 | N164: 3295.81 | BM164: Обшивка каркасных стен: досками под штукатурку// прим. футеровка стен досками
B165: 421/пр_2020_прил.10_т.1_п.2_гр.3 | C165: Производство работ осуществляется на территории действующего предприятия с наличием в зоне производства работ одного или нескольких из следующих факторов: - разветвленной сети транспортных и инженерных коммуникаций; - стесненных условий для складирования материалов; - действующего технологического оборудования; - движения технологического транспорта ОЗП=1,15; ЭМ=1,15 к расх.; ЗПМ=1,15; ТЗ=1,15; ТЗМ=1,15 | BN165: Производство работ осуществляется на территории действующего предприятия с наличием в зоне производства работ одного или нескольких из следующих факторов: - разветвленной сети транспортных и инженерных коммуникаций; - стесненных условий для складирования материалов; - действующего технологического оборудования; - движения технологического транспорта ОЗП=1,15; ЭМ=1,15 к расх.; ЗПМ=1,15; ТЗ=1,15; ТЗМ=1,15
B166: 1 | C166: ИНДЕКС К ПОЗИЦИИ: II кв. 2025 г. Минстрой письмо №29761-ИФ/09 от 23.05.2025 г. (ПРОЧИЕ, ТЕР-2001) ОЗП=29,1; ЭМ=11,55; ЗПМ=29,1; МАТ=8,66 | BO166: ИНДЕКС К ПОЗИЦИИ: II кв. 2025 г. Минстрой письмо №29761-ИФ/09 от 23.05.2025 г. (ПРОЧИЕ, ТЕР-2001) ОЗП=29,1; ЭМ=11,55; ЗПМ=29,1; МАТ=8,66
E167: Накладные расходы 108% ФОТ (от 33 394,08) | L167: 36065.61
E168: Сметная прибыль 55% ФОТ (от 33 394,08) | L168: 18366.74
A169: Анкерные болты | BP169: Анкерные болты
A170: 37 | B170: ТЕР06-01-015-03 Приказ Администрации ЛО от 20.10.15 №28 | C170: Установка анкерных болтов: при бетонировании со связями из арматуры | F170: 1 т | G170: 0.264 | H170: 80009.2 | I170: 74033.28 | J170: 1040.15 | K170: 180.71 | L170: 21122.43 | M170: 19544.79 | N170: 274.6 | O170: 47.71 | BM170: Установка анкерных болтов: при бетонировании со связями из арматуры
C171: 2 860,52 = 12 035,11 - 1 x 9 174,59 | BR171: 2 860,52 = 12 035,11 - 1 x 9 174,59
B172: 421/пр_2020_прил.10_т.1_п.2_гр.3 | C172: Производство работ осуществляется на территории действующего предприятия с наличием в зоне производства работ одного или нескольких из следующих факторов: - разветвленной сети транспортных и инженерных коммуникаций; - стесненных условий для складирования материалов; - действующего технологического оборудования; - движения технологического транспорта ОЗП=1,15; ЭМ=1,15 к расх.; ЗПМ=1,15; ТЗ=1,15; ТЗМ=1,15 | BN172: Производство работ осуществляется на территории действующего предприятия с наличием в зоне производства работ одного или нескольких из следующих факторов: - разветвленной сети транспортных и инженерных коммуникаций; - стесненных условий для складирования материалов; - действующего технологического оборудования; - движения технологического транспорта ОЗП=1,15; ЭМ=1,15 к расх.; ЗПМ=1,15; ТЗ=1,15; ТЗМ=1,15
B173: 1 | C173: ИНДЕКС К ПОЗИЦИИ: II кв. 2025 г. Минстрой письмо №29761-ИФ/09 от 23.05.2025 г. (ПРОЧИЕ, ТЕР-2001) ОЗП=29,1; ЭМ=11,55; ЗПМ=29,1; МАТ=8,66 | BO173: ИНДЕКС К ПОЗИЦИИ: II кв. 2025 г. Минстрой письмо №29761-ИФ/09 от 23.05.2025 г. (ПРОЧИЕ, ТЕР-2001) ОЗП=29,1; ЭМ=11,55; ЗПМ=29,1; МАТ=8,66
E174: Накладные расходы 102% ФОТ (от 19 592,50) | L174: 19984.35
E175: Сметная прибыль 58% ФОТ (от 19 592,50) | L175: 11363.65
A176: 38 | B176: ТЦ_01.7.15.01_78_7734683882 _24.06.2022_2 | C176: Болт 1.1 М24х1000 | F176: шт. | G176: 64 | H176: 345,97 346,00/ИндМ225 | L176: 22142.08 | BM176: Болт 1.1 М24х1000
C177: Цена МАТ=346,00/ИндМ225 | BS177: Цена МАТ=346,00/ИндМ225
B178: 1 | C178: ИНДЕКС К ПОЗИЦИИ: II кв. 2025 г. Минстрой письмо №29761-ИФ/09 от 23.05.2025 г. (ПРОЧИЕ, ТЕР-2001) ОЗП=29,1; ЭМ=11,55; ЗПМ=29,1; МАТ=8,66 | BO178: ИНДЕКС К ПОЗИЦИИ: II кв. 2025 г. Минстрой письмо №29761-ИФ/09 от 23.05.2025 г. (ПРОЧИЕ, ТЕР-2001) ОЗП=29,1; ЭМ=11,55; ЗПМ=29,1; МАТ=8,66
A179: 39 | B179: ТССЦ-101-2578 Приказ Администрации ЛО от 20.10.15 №28 | C179: Болты с гайками и шайбами для санитарно-технических работ диаметром: 24 мм | F179: т | G179: 0.009939 | H179: 126622.97 | L179: 1258.51 | BM179: Болты с гайками и шайбами для санитарно-технических работ диаметром: 24 мм
B180: 1 | C180: ИНДЕКС К ПОЗИЦИИ: II кв. 2025 г. Минстрой письмо №29761-ИФ/09 от 23.05.2025 г. (ПРОЧИЕ, ТЕР-2001) ОЗП=29,1; ЭМ=11,55; ЗПМ=29,1; МАТ=8,66 | BO180: ИНДЕКС К ПОЗИЦИИ: II кв. 2025 г. Минстрой письмо №29761-ИФ/09 от 23.05.2025 г. (ПРОЧИЕ, ТЕР-2001) ОЗП=29,1; ЭМ=11,55; ЗПМ=29,1; МАТ=8,66
A181: Закладная деталь | BP181: Закладная деталь
A182: 40 | B182: ТЕРм38-01-006-08 Приказ Администрации ЛО от 20.10.15 №28 | C182: Сборка с помощью лебедок ручных (с установкой и снятием их в процессе работы) или вручную (мелких деталей): стремянки, связи, кронштейны, тормозные конструкции и пр. | F182: 1 т конструкций | G182: 0.10128 | H182: 106373.81 | I182: 77568.52 | J182: 26428.99 | K182: 899.2 | L182: 10773.54 | M182: 7856.14 | N182: 2676.73 | O182: 91.07 | BM182: Сборка с помощью лебедок ручных (с установкой и снятием их в процессе работы) или вручную (мелких деталей): стремянки, связи, кронштейны, тормозные конструкции и пр.
C183: 4 582,06 = 10 394,42 - 1,06 x 5 483,36 | BR183: 4 582,06 = 10 394,42 - 1,06 x 5 483,36
B184: 421/пр_2020_прил.10_т.1_п.2_гр.3 | C184: Производство работ осуществляется на территории действующего предприятия с наличием в зоне производства работ одного или нескольких из следующих факторов: - разветвленной сети транспортных и инженерных коммуникаций; - стесненных условий для складирования материалов; - действующего технологического оборудования; - движения технологического транспорта ОЗП=1,15; ЭМ=1,15 к расх.; ЗПМ=1,15; ТЗ=1,15; ТЗМ=1,15 | BN184: Производство работ осуществляется на территории действующего предприятия с наличием в зоне производства работ одного или нескольких из следующих факторов: - разветвленной сети транспортных и инженерных коммуникаций; - стесненных условий для складирования материалов; - действующего технологического оборудования; - движения технологического транспорта ОЗП=1,15; ЭМ=1,15 к расх.; ЗПМ=1,15; ТЗ=1,15; ТЗМ=1,15
B185: 1 | C185: ИНДЕКС К ПОЗИЦИИ: II кв. 2025 г. Минстрой письмо №29761-ИФ/09 от 23.05.2025 г. (ПРОЧИЕ, ТЕР-2001) ОЗП=29,1; ЭМ=11,55; ЗПМ=29,1; МАТ=8,66 | BO185: ИНДЕКС К ПОЗИЦИИ: II кв. 2025 г. Минстрой письмо №29761-ИФ/09 от 23.05.2025 г. (ПРОЧИЕ, ТЕР-2001) ОЗП=29,1; ЭМ=11,55; ЗПМ=29,1; МАТ=8,66
E186: Накладные расходы 90% ФОТ (от 7 947,21) | L186: 7152.49
E187: Сметная прибыль 45% ФОТ (от 7 947,21) | L187: 3576.24
A188: 41 | B188: ТЕР06-01-092-11 Приказ Администрации ЛО от 20.10.15 №28 | C188: Установка закладных деталей при массе элементов: до 5 кг | F188: 1 т арматуры, закладных деталей | G188: 0.10128 | H188: 47266.93 | I188: 45666 | J188: 1151.99 | K188: 558.2 | L188: 4787.19 | M188: 4625.05 | N188: 116.67 | O188: 56.53 | BM188: Установка закладных деталей при массе элементов: до 5 кг
C189: 1 503,16 = 7 710,47 - 1 x 6 207,31 | BR189: 1 503,16 = 7 710,47 - 1 x 6 207,31
B190: 421/пр_2020_прил.10_т.1_п.2_гр.3 | C190: Производство работ осуществляется на территории действующего предприятия с наличием в зоне производства работ одного или нескольких из следующих факторов: - разветвленной сети транспортных и инженерных коммуникаций; - стесненных условий для складирования материалов; - действующего технологического оборудования; - движения технологического транспорта ОЗП=1,15; ЭМ=1,15 к расх.; ЗПМ=1,15; ТЗ=1,15; ТЗМ=1,15 | BN190: Производство работ осуществляется на территории действующего предприятия с наличием в зоне производства работ одного или нескольких из следующих факторов: - разветвленной сети транспортных и инженерных коммуникаций; - стесненных условий для складирования материалов; - действующего технологического оборудования; - движения технологического транспорта ОЗП=1,15; ЭМ=1,15 к расх.; ЗПМ=1,15; ТЗ=1,15; ТЗМ=1,15
B191: 1 | C191: ИНДЕКС К ПОЗИЦИИ: II кв. 2025 г. Минстрой письмо №29761-ИФ/09 от 23.05.2025 г. (ПРОЧИЕ, ТЕР-2001) ОЗП=29,1; ЭМ=11,55; ЗПМ=29,1; МАТ=8,66 | BO191: ИНДЕКС К ПОЗИЦИИ: II кв. 2025 г. Минстрой письмо №29761-ИФ/09 от 23.05.2025 г. (ПРОЧИЕ, ТЕР-2001) ОЗП=29,1; ЭМ=11,55; ЗПМ=29,1; МАТ=8,66
E192: Накладные расходы 108% ФОТ (от 4 681,58) | L192: 5056.11
E193: Сметная прибыль 55% ФОТ (от 4 681,58) | L193: 2574.87
A194: 42 | B194: Прайс | C194: Горячекатанная арматурная сталь класса А500 С, диаметром: 12 мм | F194: т | G194: 0.02592 | H194: 50 832,99 50833,00/ИндМ225 | L194: 1317.59 | BM194: Горячекатанная арматурная сталь класса А500 С, диаметром: 12 мм
C195: Цена МАТ=50833,00/ИндМ225 | BS195: Цена МАТ=50833,00/ИндМ225
B196: 1 | C196: ИНДЕКС К ПОЗИЦИИ: II кв. 2025 г. Минстрой письмо №29761-ИФ/09 от 23.05.2025 г. (ПРОЧИЕ, ТЕР-2001) ОЗП=29,1; ЭМ=11,55; ЗПМ=29,1; МАТ=8,66 | BO196: ИНДЕКС К ПОЗИЦИИ: II кв. 2025 г. Минстрой письмо №29761-ИФ/09 от 23.05.2025 г. (ПРОЧИЕ, ТЕР-2001) ОЗП=29,1; ЭМ=11,55; ЗПМ=29,1; МАТ=8,66
A197: 43 | B197: Прайс | C197: Прокат листовой 10мм | F197: т | G197: 0.07536 | H197: 90 520,04 90520,00/ИндМ225 | L197: 6821.59 | BM197: Прокат листовой 10мм
C198: Цена МАТ=90520,00/ИндМ225 | BS198: Цена МАТ=90520,00/ИндМ225
B199: 1 | C199: ИНДЕКС К ПОЗИЦИИ: II кв. 2025 г. Минстрой письмо №29761-ИФ/09 от 23.05.2025 г. (ПРОЧИЕ, ТЕР-2001) ОЗП=29,1; ЭМ=11,55; ЗПМ=29,1; МАТ=8,66 | BO199: ИНДЕКС К ПОЗИЦИИ: II кв. 2025 г. Минстрой письмо №29761-ИФ/09 от 23.05.2025 г. (ПРОЧИЕ, ТЕР-2001) ОЗП=29,1; ЭМ=11,55; ЗПМ=29,1; МАТ=8,66
A200: Антикоррозионная обработка деталей | BT200: Антикоррозионная обработка деталей
A201: 44 | B201: ТЕР13-03-002-04 Приказ Администрации ЛО от 20.10.15 №28 | C201: Огрунтовка металлических поверхностей за один раз: грунтовкой ГФ-021 | F201: 100 м2 окрашиваемой поверхности | G201: 0.029371 | H201: 4018.14 | I201: 3587.78 | J201: 131.76 | K201: 6.02 | L201: 118.02 | M201: 105.38 | N201: 3.87 | O201: 0.18 | BM201: Огрунтовка металлических поверхностей за один раз: грунтовкой ГФ-021
C202: 151,61 = 371,85 - 0,012 x 18 353,45 | BR202: 151,61 = 371,85 - 0,012 x 18 353,45
B203: 421/пр_2020_прил.10_т.1_п.2_гр.3 | C203: Производство работ осуществляется на территории действующего предприятия с наличием в зоне производства работ одного или нескольких из следующих факторов: - разветвленной сети транспортных и инженерных коммуникаций; - стесненных условий для складирования материалов; - действующего технологического оборудования; - движения технологического транспорта ОЗП=1,15; ЭМ=1,15 к расх.; ЗПМ=1,15; ТЗ=1,15; ТЗМ=1,15 | BN203: Производство работ осуществляется на территории действующего предприятия с наличием в зоне производства работ одного или нескольких из следующих факторов: - разветвленной сети транспортных и инженерных коммуникаций; - стесненных условий для складирования материалов; - действующего технологического оборудования; - движения технологического транспорта ОЗП=1,15; ЭМ=1,15 к расх.; ЗПМ=1,15; ТЗ=1,15; ТЗМ=1,15
B204: 1 | C204: ИНДЕКС К ПОЗИЦИИ: II кв. 2025 г. Минстрой письмо №29761-ИФ/09 от 23.05.2025 г. (ПРОЧИЕ, ТЕР-2001) ОЗП=29,1; ЭМ=11,55; ЗПМ=29,1; МАТ=8,66 | BO204: ИНДЕКС К ПОЗИЦИИ: II кв. 2025 г. Минстрой письмо №29761-ИФ/09 от 23.05.2025 г. (ПРОЧИЕ, ТЕР-2001) ОЗП=29,1; ЭМ=11,55; ЗПМ=29,1; МАТ=8,66
... 267 more rows

Sheet Смета_1632-2021-3.4-КМ
A2: Терминал по перевалке минеральных удобрений в морском торговом порту Усть-Луга. Береговые объекты терминала | S2: Терминал по перевалке минеральных удобрений в морском торговом порту Усть-Луга. Береговые объекты терминала
A3: (наименование стройки)
A5: ЛОКАЛЬНАЯ СМЕТА № 1632-2021-3.4-КМ_01.05.060-П-01-04
A6: (локальная смета)
A7: на Конструкции металлические, 07.06.060 Ангар для хранения ТМЦ (код SAP 01.05.019) код ГП 3.4 | AH7: на Конструкции металлические, 07.06.060 Ангар для хранения ТМЦ (код SAP 01.05.019) код ГП 3.4
A8: (наименование работ и затрат, наименование объекта)
B9: Основание: | C9: 1632-2021-3.4-КМ_0_D_RU_IFR | AW9: 1632-2021-3.4-КМ_0_D_RU_IFR
B10: Сметная стоимость | E10: 15641574 | F10: руб.
B11: строительных работ | E11: 6977415 | F11: руб.
B12: монтажных работ | E12: 3948528 | F12: руб.
B13: Средства на оплату труда | E13: 2691843 | F13: руб.
B14: Сметная трудоемкость | E14: 4790.63 | F14: чел.час
B15: Трудозатраты механизаторов | E15: 271.72 | F15: чел.час
B16: Составлен(а) в текущих (прогнозных) ценах по состоянию на | F16: 1 кв. 2000г. | BB16: 1 кв. 2000г.
A19: № п/п | B19: Обоснование | C19: Наименование работ и затрат | F19: Единица измерения | G19: Кол-во | H19: Стоимость единицы, руб. | L19: Общая стоимость, руб.
H20: Всего | I20: В том числе | L20: Всего | M20: В том числе
I21: Осн.З/п | J21: Эк.Маш | K21: З/пМех | M21: Осн.З/п | N21: Эк.Маш | O21: З/пМех
A22: 1 | B22: 2 | C22: 3 | F22: 4 | G22: 5 | H22: 6 | I22: 7 | J22: 8 | K22: 9 | L22: 10 | M22: 11 | N22: 12 | O22: 13
A23: Раздел 1. Колонны | BL23: Раздел 1. Колонны
A24: 1 | B24: ТЕР09-03-002-01 Приказ Администрации ЛО от 20.10.15 №28 | C24: Монтаж колонн одноэтажных и многоэтажных зданий и крановых эстакад высотой: до 25 м цельного сечения массой до 1,0 т | F24: 1 т конструкций | G24: 4.68135 | H24: 11246.79 | I24: 6710 | J24: 4081.45 | K24: 1579.55 | L24: 52650 | M24: 31412 | N24: 19107 | O24: 7394 | BM24: Монтаж колонн одноэтажных и многоэтажных зданий и крановых эстакад высотой: до 25 м цельного сечения массой до 1,0 т
B25: Прил.9.3 п.2 | C25: Монтаж конструктивных элементов по железобетонным и каменным опорам ОЗП=1,1; ТЗ=1,1 | BN25: Монтаж конструктивных элементов по железобетонным и каменным опорам ОЗП=1,1; ТЗ=1,1
B26: 421/пр_2020_прил.10_т.1_п.2_гр.3 | C26: Производство работ осуществляется на территории действующего предприятия с наличием в зоне производства работ одного или нескольких из следующих факторов: - разветвленной сети транспортных и инженерных коммуникаций; - стесненных условий для складирования материалов; - действующего технологического оборудования; - движения технологического транспорта ОЗП=1,15; ЭМ=1,15 к расх.; ЗПМ=1,15; ТЗ=1,15; ТЗМ=1,15 | BN26: Производство работ осуществляется на территории действующего предприятия с наличием в зоне производства работ одного или нескольких из следующих факторов: - разветвленной сети транспортных и инженерных коммуникаций; - стесненных условий для складирования материалов; - действующего технологического оборудования; - движения технологического транспорта ОЗП=1,15; ЭМ=1,15 к расх.; ЗПМ=1,15; ТЗ=1,15; ТЗМ=1,15
B27: 1 | C27: ИНДЕКС К ПОЗИЦИИ: II кв. 2025 г. Минстрой письмо №29761-ИФ/09 от 23.05.2025 г. (ПРОЧИЕ, ТЕР-2001) ОЗП=29,1; ЭМ=11,55; ЗПМ=29,1; МАТ=8,66 | BO27: ИНДЕКС К ПОЗИЦИИ: II кв. 2025 г. Минстрой письмо №29761-ИФ/09 от 23.05.2025 г. (ПРОЧИЕ, ТЕР-2001) ОЗП=29,1; ЭМ=11,55; ЗПМ=29,1; МАТ=8,66
E28: Накладные расходы 93% ФОТ (от 38 806) | L28: 36090
E29: Сметная прибыль 62% ФОТ (от 38 806) | L29: 24060
A30: 2 | B30: ТЕРм38-01-002-03 Приказ Администрации ЛО от 20.10.15 №28 | C30: Монорельсы, балки и другие аналогичные конструкции промышленных зданий, сборка с помощью: лебедок электрических (с установкой и снятием их в процессе работы) | F30: 1 т конструкций | G30: 4.68135 | H30: 21358.36 | I30: 16969.1 | J30: 3922.06 | K30: 1644.47 | L30: 99986 | M30: 79438 | N30: 18361 | O30: 7698 | BM30: Монорельсы, балки и другие аналогичные конструкции промышленных зданий, сборка с помощью: лебедок электрических (с установкой и снятием их в процессе работы)
C31: 856,30 = 5 265,27 - 1,02 x 4 322,52 | BP31: 856,30 = 5 265,27 - 1,02 x 4 322,52
B32: 421/пр_2020_прил.10_т.1_п.2_гр.3 | C32: Производство работ осуществляется на территории действующего предприятия с наличием в зоне производства работ одного или нескольких из следующих факторов: - разветвленной сети транспортных и инженерных коммуникаций; - стесненных условий для складирования материалов; - действующего технологического оборудования; - движения технологического транспорта ОЗП=1,15; ЭМ=1,15 к расх.; ЗПМ=1,15; ТЗ=1,15; ТЗМ=1,15 | BN32: Производство работ осуществляется на территории действующего предприятия с наличием в зоне производства работ одного или нескольких из следующих факторов: - разветвленной сети транспортных и инженерных коммуникаций; - стесненных условий для складирования материалов; - действующего технологического оборудования; - движения технологического транспорта ОЗП=1,15; ЭМ=1,15 к расх.; ЗПМ=1,15; ТЗ=1,15; ТЗМ=1,15
B33: 1 | C33: ИНДЕКС К ПОЗИЦИИ: II кв. 2025 г. Минстрой письмо №29761-ИФ/09 от 23.05.2025 г. (ПРОЧИЕ, ТЕР-2001) ОЗП=29,1; ЭМ=11,55; ЗПМ=29,1; МАТ=8,66 | BO33: ИНДЕКС К ПОЗИЦИИ: II кв. 2025 г. Минстрой письмо №29761-ИФ/09 от 23.05.2025 г. (ПРОЧИЕ, ТЕР-2001) ОЗП=29,1; ЭМ=11,55; ЗПМ=29,1; МАТ=8,66
E34: Накладные расходы 90% ФОТ (от 87 136) | L34: 78422
E35: Сметная прибыль 45% ФОТ (от 87 136) | L35: 39211
A36: 3 | B36: Прайс | C36: Профиль гн. 180*6 | F36: т | G36: 2.49672 | H36: 89 382,03 89382,00/ИндМ225 | L36: 223162 | BM36: Профиль гн. 180*6
C37: Цена МАТ=89382,00/ИндМ225 | BQ37: Цена МАТ=89382,00/ИндМ225
B38: 1 | C38: ИНДЕКС К ПОЗИЦИИ: II кв. 2025 г. Минстрой письмо №29761-ИФ/09 от 23.05.2025 г. (ПРОЧИЕ, ТЕР-2001) ОЗП=29,1; ЭМ=11,55; ЗПМ=29,1; МАТ=8,66 | BO38: ИНДЕКС К ПОЗИЦИИ: II кв. 2025 г. Минстрой письмо №29761-ИФ/09 от 23.05.2025 г. (ПРОЧИЕ, ТЕР-2001) ОЗП=29,1; ЭМ=11,55; ЗПМ=29,1; МАТ=8,66
A39: 4 | B39: Прайс | C39: Уголок не равнополочный 160*100*12 | F39: т | G39: 0.10403 | H39: 99 971,99 99972,00/ИндМ225 | L39: 10400 | BM39: Уголок не равнополочный 160*100*12
C40: Цена МАТ=99972,00/ИндМ225 | BQ40: Цена МАТ=99972,00/ИндМ225
B41: 1 | C41: ИНДЕКС К ПОЗИЦИИ: II кв. 2025 г. Минстрой письмо №29761-ИФ/09 от 23.05.2025 г. (ПРОЧИЕ, ТЕР-2001) ОЗП=29,1; ЭМ=11,55; ЗПМ=29,1; МАТ=8,66 | BO41: ИНДЕКС К ПОЗИЦИИ: II кв. 2025 г. Минстрой письмо №29761-ИФ/09 от 23.05.2025 г. (ПРОЧИЕ, ТЕР-2001) ОЗП=29,1; ЭМ=11,55; ЗПМ=29,1; МАТ=8,66
A42: 5 | B42: Прайс | C42: Уголок не равнополочный 140*90*8 | F42: т | G42: 0.20806 | H42: 96 880,03 96880,00/ИндМ225 | L42: 20157 | BM42: Уголок не равнополочный 140*90*8
C43: Цена МАТ=96880,00/ИндМ225 | BQ43: Цена МАТ=96880,00/ИндМ225
B44: 1 | C44: ИНДЕКС К ПОЗИЦИИ: II кв. 2025 г. Минстрой письмо №29761-ИФ/09 от 23.05.2025 г. (ПРОЧИЕ, ТЕР-2001) ОЗП=29,1; ЭМ=11,55; ЗПМ=29,1; МАТ=8,66 | BO44: ИНДЕКС К ПОЗИЦИИ: II кв. 2025 г. Минстрой письмо №29761-ИФ/09 от 23.05.2025 г. (ПРОЧИЕ, ТЕР-2001) ОЗП=29,1; ЭМ=11,55; ЗПМ=29,1; МАТ=8,66
A45: 6 | B45: Прайс | C45: Уголок не равнополочный 100*63*8 (прим. 100*63*6) | F45: т | G45: 0.10403 | H45: 82 604,02 82604,00/ИндМ225 | L45: 8593 | BM45: Уголок не равнополочный 100*63*8 (прим. 100*63*6)
C46: Цена МАТ=82604,00/ИндМ225 | BQ46: Цена МАТ=82604,00/ИндМ225
B47: 1 | C47: ИНДЕКС К ПОЗИЦИИ: II кв. 2025 г. Минстрой письмо №29761-ИФ/09 от 23.05.2025 г. (ПРОЧИЕ, ТЕР-2001) ОЗП=29,1; ЭМ=11,55; ЗПМ=29,1; МАТ=8,66 | BO47: ИНДЕКС К ПОЗИЦИИ: II кв. 2025 г. Минстрой письмо №29761-ИФ/09 от 23.05.2025 г. (ПРОЧИЕ, ТЕР-2001) ОЗП=29,1; ЭМ=11,55; ЗПМ=29,1; МАТ=8,66
A48: 7 | B48: Прайс | C48: Прокат листовой 20мм | F48: т | G48: 0.10403 | H48: 74 470,98 74471,00/ИндМ225 | L48: 7747 | BM48: Прокат листовой 20мм
C49: Цена МАТ=74471,00/ИндМ225 | BQ49: Цена МАТ=74471,00/ИндМ225
B50: 1 | C50: ИНДЕКС К ПОЗИЦИИ: II кв. 2025 г. Минстрой письмо №29761-ИФ/09 от 23.05.2025 г. (ПРОЧИЕ, ТЕР-2001) ОЗП=29,1; ЭМ=11,55; ЗПМ=29,1; МАТ=8,66 | BO50: ИНДЕКС К ПОЗИЦИИ: II кв. 2025 г. Минстрой письмо №29761-ИФ/09 от 23.05.2025 г. (ПРОЧИЕ, ТЕР-2001) ОЗП=29,1; ЭМ=11,55; ЗПМ=29,1; МАТ=8,66
A51: 8 | B51: Прайс | C51: Прокат листовой 16мм | F51: т | G51: 0.41612 | H51: 72 267,96 72268,00/ИндМ225 | L51: 30072 | BM51: Прокат листовой 16мм
C52: Цена МАТ=72268,00/ИндМ225 | BQ52: Цена МАТ=72268,00/ИндМ225
B53: 1 | C53: ИНДЕКС К ПОЗИЦИИ: II кв. 2025 г. Минстрой письмо №29761-ИФ/09 от 23.05.2025 г. (ПРОЧИЕ, ТЕР-2001) ОЗП=29,1; ЭМ=11,55; ЗПМ=29,1; МАТ=8,66 | BO53: ИНДЕКС К ПОЗИЦИИ: II кв. 2025 г. Минстрой письмо №29761-ИФ/09 от 23.05.2025 г. (ПРОЧИЕ, ТЕР-2001) ОЗП=29,1; ЭМ=11,55; ЗПМ=29,1; МАТ=8,66
A54: 9 | B54: Прайс | C54: Прокат листовой 10мм | F54: т | G54: 0.41612 | H54: 65 786,99 65787,00/ИндМ225 | L54: 27375 | BM54: Прокат листовой 10мм
C55: Цена МАТ=65787,00/ИндМ225 | BQ55: Цена МАТ=65787,00/ИндМ225
B56: 1 | C56: ИНДЕКС К ПОЗИЦИИ: II кв. 2025 г. Минстрой письмо №29761-ИФ/09 от 23.05.2025 г. (ПРОЧИЕ, ТЕР-2001) ОЗП=29,1; ЭМ=11,55; ЗПМ=29,1; МАТ=8,66 | BO56: ИНДЕКС К ПОЗИЦИИ: II кв. 2025 г. Минстрой письмо №29761-ИФ/09 от 23.05.2025 г. (ПРОЧИЕ, ТЕР-2001) ОЗП=29,1; ЭМ=11,55; ЗПМ=29,1; МАТ=8,66
A57: Перевозка материалов ( металл 140 км. ОП "МКМ-СПб") | BR57: Перевозка материалов ( металл 140 км. ОП "МКМ-СПб")
A58: 10 | C58: металлопрокат, трубопрокат и металлоконструкции | F58: т | G58: 4.68135 | BM58: металлопрокат, трубопрокат и металлоконструкции
B59: 3 | C59: ИНДЕКС К ПОЗИЦИИ: II кв. 2025 г. Минстрой письмо №29761-ИФ/09 от 23.05.2025 г. (авт_САМОСВ) ЭМ=17,63 | BO59: ИНДЕКС К ПОЗИЦИИ: II кв. 2025 г. Минстрой письмо №29761-ИФ/09 от 23.05.2025 г. (авт_САМОСВ) ЭМ=17,63
A60: 11 | B60: ТССЦпг-03-02-01-140 Приказ Администрации ЛО от 20.10.15 №28 | C60: Перевозка строительных грузов (кроме массовых навалочных, перевозимых автомобилями-самосвалами, а также бетонных и железобетонных изделий, стеновых и перегородочных материалов, лесоматериалов круглых и пиломатериалов, включенных в таблицу 03-01), бортовым автомобилем грузоподъемностью 5 т, на расстояние до 140 км I класс груза | F60: 1 т груза | G60: 4.68135 | H60: 139.38 | L60: 652 | BM60: Перевозка строительных грузов (кроме массовых навалочных, перевозимых автомобилями-самосвалами, а также бетонных и железобетонных изделий, стеновых и перегородочных материалов, лесоматериалов круглых и пиломатериалов, включенных в таблицу 03-01), бортовым автомобилем грузоподъемностью 5 т, на расстояние до 140 км I класс груза
B61: 4 | C61: ИНДЕКС К ПОЗИЦИИ: II кв. 2025 г. Минстрой письмо №29761-ИФ/09 от 23.05.2025 г. (авт_БОРТОВ) ЭМ=19,65 | BO61: ИНДЕКС К ПОЗИЦИИ: II кв. 2025 г. Минстрой письмо №29761-ИФ/09 от 23.05.2025 г. (авт_БОРТОВ) ЭМ=19,65
A62: 12 | B62: ТССЦпг-01-01-02-015 Приказ Администрации ЛО от 20.10.15 №28 | C62: Разгрузочные работы при автомобильных перевозках: металлических конструкций массой до 1 т | F62: 1 т груза | G62: 4.68135 | H62: 282.32 | L62: 1322 | BM62: Разгрузочные работы при автомобильных перевозках: металлических конструкций массой до 1 т
B63: 5 | C63: ИНДЕКС К ПОЗИЦИИ: II кв. 2025 г. Минстрой письмо №29761-ИФ/09 от 23.05.2025 г. (погрузка/разгрузка, ТЕР-2001) ОЗП=29,1; ЭМ=11,55; ЗПМ=29,1; МАТ=8,66 | BO63: ИНДЕКС К ПОЗИЦИИ: II кв. 2025 г. Минстрой письмо №29761-ИФ/09 от 23.05.2025 г. (погрузка/разгрузка, ТЕР-2001) ОЗП=29,1; ЭМ=11,55; ЗПМ=29,1; МАТ=8,66
A64: Итого по разделу 1 Колонны | L64: 659899 | BS64: Итого по разделу 1 Колонны
A65: Раздел 2. Фермы | BL65: Раздел 2. Фермы
A66: 13 | B66: ТЕР09-03-012-01 Приказ Администрации ЛО от 20.10.15 №28 | C66: Монтаж стропильных и подстропильных ферм на высоте до 25 м пролетом: до 24 м массой до 3,0 т | F66: 1 т конструкций | G66: 6.34583 | H66: 24392.62 | I66: 14524.14 | J66: 8699.64 | K66: 3458.94 | L66: 154791 | M66: 92168 | N66: 55206 | O66: 21950 | BM66: Монтаж стропильных и подстропильных ферм на высоте до 25 м пролетом: до 24 м массой до 3,0 т
B67: 421/пр_2020_прил.10_т.1_п.2_гр.3 | C67: Производство работ осуществляется на территории действующего предприятия с наличием в зоне производства работ одного или нескольких из следующих факторов: - разветвленной сети транспортных и инженерных коммуникаций; - стесненных условий для складирования материалов; - действующего технологического оборудования; - движения технологического транспорта ОЗП=1,15; ЭМ=1,15 к расх.; ЗПМ=1,15; ТЗ=1,15; ТЗМ=1,15 | BN67: Производство работ осуществляется на территории действующего предприятия с наличием в зоне производства работ одного или нескольких из следующих факторов: - разветвленной сети транспортных и инженерных коммуникаций; - стесненных условий для складирования материалов; - действующего технологического оборудования; - движения технологического транспорта ОЗП=1,15; ЭМ=1,15 к расх.; ЗПМ=1,15; ТЗ=1,15; ТЗМ=1,15
B68: 1 | C68: ИНДЕКС К ПОЗИЦИИ: II кв. 2025 г. Минстрой письмо №29761-ИФ/09 от 23.05.2025 г. (ПРОЧИЕ, ТЕР-2001) ОЗП=29,1; ЭМ=11,55; ЗПМ=29,1; МАТ=8,66 | BO68: ИНДЕКС К ПОЗИЦИИ: II кв. 2025 г. Минстрой письмо №29761-ИФ/09 от 23.05.2025 г. (ПРОЧИЕ, ТЕР-2001) ОЗП=29,1; ЭМ=11,55; ЗПМ=29,1; МАТ=8,66
E69: Накладные расходы 93% ФОТ (от 114 118) | L69: 106130
E70: Сметная прибыль 62% ФОТ (от 114 118) | L70: 70753
A71: 14 | B71: ТЕРм38-01-003-03 Приказ Администрации ЛО от 20.10.15 №28 | C71: Решетчатые конструкции (стойки, опоры, фермы и пр.), сборка с помощью: лебедок электрических (с установкой и снятием их в процессе работы) | F71: 1 т конструкций | G71: 6.34583 | H71: 80023.8 | I71: 70806.59 | J71: 6452.77 | K71: 923.63 | L71: 507817 | M71: 449327 | N71: 40948 | O71: 5861 | BM71: Решетчатые конструкции (стойки, опоры, фермы и пр.), сборка с помощью: лебедок электрических (с установкой и снятием их в процессе работы)
C72: 2 920,87 = 8 047,73 - 1,032 x 4 967,89 | BP72: 2 920,87 = 8 047,73 - 1,032 x 4 967,89
B73: 421/пр_2020_прил.10_т.1_п.2_гр.3 | C73: Производство работ осуществляется на территории действующего предприятия с наличием в зоне производства работ одного или нескольких из следующих факторов: - разветвленной сети транспортных и инженерных коммуникаций; - стесненных условий для складирования материалов; - действующего технологического оборудования; - движения технологического транспорта ОЗП=1,15; ЭМ=1,15 к расх.; ЗПМ=1,15; ТЗ=1,15; ТЗМ=1,15 | BN73: Производство работ осуществляется на территории действующего предприятия с наличием в зоне производства работ одного или нескольких из следующих факторов: - разветвленной сети транспортных и инженерных коммуникаций; - стесненных условий для складирования материалов; - действующего технологического оборудования; - движения технологического транспорта ОЗП=1,15; ЭМ=1,15 к расх.; ЗПМ=1,15; ТЗ=1,15; ТЗМ=1,15
B74: 1 | C74: ИНДЕКС К ПОЗИЦИИ: II кв. 2025 г. Минстрой письмо №29761-ИФ/09 от 23.05.2025 г. (ПРОЧИЕ, ТЕР-2001) ОЗП=29,1; ЭМ=11,55; ЗПМ=29,1; МАТ=8,66 | BO74: ИНДЕКС К ПОЗИЦИИ: II кв. 2025 г. Минстрой письмо №29761-ИФ/09 от 23.05.2025 г. (ПРОЧИЕ, ТЕР-2001) ОЗП=29,1; ЭМ=11,55; ЗПМ=29,1; МАТ=8,66
E75: Накладные расходы 90% ФОТ (от 455 188) | L75: 409669
E76: Сметная прибыль 45% ФОТ (от 455 188) | L76: 204835
A77: 15 | B77: Прайс | C77: Профиль гн. 140*6 | F77: т | G77: 3.53702 | H77: 83 790,00 83790,00/ИндМ225 | L77: 296367 | BM77: Профиль гн. 140*6
C78: Цена МАТ=83790,00/ИндМ225 | BQ78: Цена МАТ=83790,00/ИндМ225
B79: 1 | C79: ИНДЕКС К ПОЗИЦИИ: II кв. 2025 г. Минстрой письмо №29761-ИФ/09 от 23.05.2025 г. (ПРОЧИЕ, ТЕР-2001) ОЗП=29,1; ЭМ=11,55; ЗПМ=29,1; МАТ=8,66 | BO79: ИНДЕКС К ПОЗИЦИИ: II кв. 2025 г. Минстрой письмо №29761-ИФ/09 от 23.05.2025 г. (ПРОЧИЕ, ТЕР-2001) ОЗП=29,1; ЭМ=11,55; ЗПМ=29,1; МАТ=8,66
A80: 16 | B80: Прайс | C80: Профиль гн. 120*5 | F80: т | G80: 0.62418 | H80: 79 266,02 79266,00/ИндМ225 | L80: 49476 | BM80: Профиль гн. 120*5
C81: Цена МАТ=79266,00/ИндМ225 | BQ81: Цена МАТ=79266,00/ИндМ225
B82: 1 | C82: ИНДЕКС К ПОЗИЦИИ: II кв. 2025 г. Минстрой письмо №29761-ИФ/09 от 23.05.2025 г. (ПРОЧИЕ, ТЕР-2001) ОЗП=29,1; ЭМ=11,55; ЗПМ=29,1; МАТ=8,66 | BO82: ИНДЕКС К ПОЗИЦИИ: II кв. 2025 г. Минстрой письмо №29761-ИФ/09 от 23.05.2025 г. (ПРОЧИЕ, ТЕР-2001) ОЗП=29,1; ЭМ=11,55; ЗПМ=29,1; МАТ=8,66
A83: 17 | B83: Прайс | C83: Профиль гн. 100*5 | F83: т | G83: 1.45642 | H83: 76 418,96 76419,00/ИндМ225 | L83: 111298 | BM83: Профиль гн. 100*5
C84: Цена МАТ=76419,00/ИндМ225 | BQ84: Цена МАТ=76419,00/ИндМ225
B85: 1 | C85: ИНДЕКС К ПОЗИЦИИ: II кв. 2025 г. Минстрой письмо №29761-ИФ/09 от 23.05.2025 г. (ПРОЧИЕ, ТЕР-2001) ОЗП=29,1; ЭМ=11,55; ЗПМ=29,1; МАТ=8,66 | BO85: ИНДЕКС К ПОЗИЦИИ: II кв. 2025 г. Минстрой письмо №29761-ИФ/09 от 23.05.2025 г. (ПРОЧИЕ, ТЕР-2001) ОЗП=29,1; ЭМ=11,55; ЗПМ=29,1; МАТ=8,66
A86: 18 | B86: Прайс | C86: Уголок не равнополочный 140*90*8 | F86: т | G86: 0.10403 | H86: 96 880,03 96880,00/ИндМ225 | L86: 10078 | BM86: Уголок не равнополочный 140*90*8
C87: Цена МАТ=96880,00/ИндМ225 | BQ87: Цена МАТ=96880,00/ИндМ225
B88: 1 | C88: ИНДЕКС К ПОЗИЦИИ: II кв. 2025 г. Минстрой письмо №29761-ИФ/09 от 23.05.2025 г. (ПРОЧИЕ, ТЕР-2001) ОЗП=29,1; ЭМ=11,55; ЗПМ=29,1; МАТ=8,66 | BO88: ИНДЕКС К ПОЗИЦИИ: II кв. 2025 г. Минстрой письмо №29761-ИФ/09 от 23.05.2025 г. (ПРОЧИЕ, ТЕР-2001) ОЗП=29,1; ЭМ=11,55; ЗПМ=29,1; МАТ=8,66
A89: 19 | B89: Прайс | C89: Уголок не равнополочный 100*63*8 (прим. 100*63*6) | F89: т | G89: 0.20806 | H89: 82 604,02 82604,00/ИндМ225 | L89: 17187 | BM89: Уголок не равнополочный 100*63*8 (прим. 100*63*6)
C90: Цена МАТ=82604,00/ИндМ225 | BQ90: Цена МАТ=82604,00/ИндМ225
B91: 1 | C91: ИНДЕКС К ПОЗИЦИИ: II кв. 2025 г. Минстрой письмо №29761-ИФ/09 от 23.05.2025 г. (ПРОЧИЕ, ТЕР-2001) ОЗП=29,1; ЭМ=11,55; ЗПМ=29,1; МАТ=8,66 | BO91: ИНДЕКС К ПОЗИЦИИ: II кв. 2025 г. Минстрой письмо №29761-ИФ/09 от 23.05.2025 г. (ПРОЧИЕ, ТЕР-2001) ОЗП=29,1; ЭМ=11,55; ЗПМ=29,1; МАТ=8,66
A92: 20 | B92: Прайс | C92: Прокат листовой 16мм | F92: т | G92: 0.31209 | H92: 72 267,96 72268,00/ИндМ225 | L92: 22554 | BM92: Прокат листовой 16мм
C93: Цена МАТ=72268,00/ИндМ225 | BQ93: Цена МАТ=72268,00/ИндМ225
B94: 1 | C94: ИНДЕКС К ПОЗИЦИИ: II кв. 2025 г. Минстрой письмо №29761-ИФ/09 от 23.05.2025 г. (ПРОЧИЕ, ТЕР-2001) ОЗП=29,1; ЭМ=11,55; ЗПМ=29,1; МАТ=8,66 | BO94: ИНДЕКС К ПОЗИЦИИ: II кв. 2025 г. Минстрой письмо №29761-ИФ/09 от 23.05.2025 г. (ПРОЧИЕ, ТЕР-2001) ОЗП=29,1; ЭМ=11,55; ЗПМ=29,1; МАТ=8,66
A95: 21 | B95: Прайс | C95: Прокат листовой 10мм | F95: т | G95: 0.10403 | H95: 65 786,99 65787,00/ИндМ225 | L95: 6844 | BM95: Прокат листовой 10мм
C96: Цена МАТ=65787,00/ИндМ225 | BQ96: Цена МАТ=65787,00/ИндМ225
B97: 1 | C97: ИНДЕКС К ПОЗИЦИИ: II кв. 2025 г. Минстрой письмо №29761-ИФ/09 от 23.05.2025 г. (ПРОЧИЕ, ТЕР-2001) ОЗП=29,1; ЭМ=11,55; ЗПМ=29,1; МАТ=8,66 | BO97: ИНДЕКС К ПОЗИЦИИ: II кв. 2025 г. Минстрой письмо №29761-ИФ/09 от 23.05.2025 г. (ПРОЧИЕ, ТЕР-2001) ОЗП=29,1; ЭМ=11,55; ЗПМ=29,1; МАТ=8,66
A98: 22 | B98: Прайс | C98: Прокат листовой 4мм | F98: т | G98: 0.10403 | H98: 53 206,00 53206,00/ИндМ225 | L98: 5535 | BM98: Прокат листовой 4мм
C99: Цена МАТ=53206,00/ИндМ225 | BQ99: Цена МАТ=53206,00/ИндМ225
B100: 1 | C100: ИНДЕКС К ПОЗИЦИИ: II кв. 2025 г. Минстрой письмо №29761-ИФ/09 от 23.05.2025 г. (ПРОЧИЕ, ТЕР-2001) ОЗП=29,1; ЭМ=11,55; ЗПМ=29,1; МАТ=8,66 | BO100: ИНДЕКС К ПОЗИЦИИ: II кв. 2025 г. Минстрой письмо №29761-ИФ/09 от 23.05.2025 г. (ПРОЧИЕ, ТЕР-2001) ОЗП=29,1; ЭМ=11,55; ЗПМ=29,1; МАТ=8,66
A101: Перевозка материалов ( металл 140 км. ОП "МКМ-СПб") | BR101: Перевозка материалов ( металл 140 км. ОП "МКМ-СПб")
A102: 23 | C102: металлопрокат, трубопрокат и металлоконструкции | F102: т | G102: 6.34583 | BM102: металлопрокат, трубопрокат и металлоконструкции
B103: 3 | C103: ИНДЕКС К ПОЗИЦИИ: II кв. 2025 г. Минстрой письмо №29761-ИФ/09 от 23.05.2025 г. (авт_САМОСВ) ЭМ=17,63 | BO103: ИНДЕКС К ПОЗИЦИИ: II кв. 2025 г. Минстрой письмо №29761-ИФ/09 от 23.05.2025 г. (авт_САМОСВ) ЭМ=17,63
A104: 24 | B104: ТССЦпг-03-02-01-140 Приказ Администрации ЛО от 20.10.15 №28 | C104: Перевозка строительных грузов (кроме массовых навалочных, перевозимых автомобилями-самосвалами, а также бетонных и железобетонных изделий, стеновых и перегородочных материалов, лесоматериалов круглых и пиломатериалов, включенных в таблицу 03-01), бортовым автомобилем грузоподъемностью 5 т, на расстояние до 140 км I класс груза | F104: 1 т груза | G104: 6.34583 | H104: 139.38 | L104: 884 | BM104: Перевозка строительных грузов (кроме массовых навалочных, перевозимых автомобилями-самосвалами, а также бетонных и железобетонных изделий, стеновых и перегородочных материалов, лесоматериалов круглых и пиломатериалов, включенных в таблицу 03-01), бортовым автомобилем грузоподъемностью 5 т, на расстояние до 140 км I класс груза
B105: 4 | C105: ИНДЕКС К ПОЗИЦИИ: II кв. 2025 г. Минстрой письмо №29761-ИФ/09 от 23.05.2025 г. (авт_БОРТОВ) ЭМ=19,65 | BO105: ИНДЕКС К ПОЗИЦИИ: II кв. 2025 г. Минстрой письмо №29761-ИФ/09 от 23.05.2025 г. (авт_БОРТОВ) ЭМ=19,65
A106: 25 | B106: ТССЦпг-01-01-02-015 Приказ Администрации ЛО от 20.10.15 №28 | C106: Разгрузочные работы при автомобильных перевозках: металлических конструкций массой до 1 т | F106: 1 т груза | G106: 6.34583 | H106: 282.32 | L106: 1792 | BM106: Разгрузочные работы при автомобильных перевозках: металлических конструкций массой до 1 т
B107: 5 | C107: ИНДЕКС К ПОЗИЦИИ: II кв. 2025 г. Минстрой письмо №29761-ИФ/09 от 23.05.2025 г. (погрузка/разгрузка, ТЕР-2001) ОЗП=29,1; ЭМ=11,55; ЗПМ=29,1; МАТ=8,66 | BO107: ИНДЕКС К ПОЗИЦИИ: II кв. 2025 г. Минстрой письмо №29761-ИФ/09 от 23.05.2025 г. (погрузка/разгрузка, ТЕР-2001) ОЗП=29,1; ЭМ=11,55; ЗПМ=29,1; МАТ=8,66
A108: Итого по разделу 2 Фермы | L108: 1976010 | BS108: Итого по разделу 2 Фермы
A109: Раздел 3. Балки и прогоны | BL109: Раздел 3. Балки и прогоны
A110: 26 | B110: ТЕР09-03-002-12 Приказ Администрации ЛО от 20.10.15 №28 | C110: Монтаж балок, ригелей перекрытия, покрытия и под установку оборудования многоэтажных зданий при высоте здания: до 25 м | F110: 1 т конструкций | G110: 6.2418 | H110: 20395.68 | I110: 12172.36 | J110: 6950.73 | K110: 2379.03 | L110: 127306 | M110: 75977 | N110: 43385 | O110: 14849 | BM110: Монтаж балок, ригелей перекрытия, покрытия и под установку оборудования многоэтажных зданий при высоте здания: до 25 м
B111: Прил.9.3 п.6 | C111: Монтаж конструкций, окрашенных в заводских условиях или неокрашенных, поставляемых в пакетах ОЗП=1,03; ТЗ=1,03 | BN111: Монтаж конструкций, окрашенных в заводских условиях или неокрашенных, поставляемых в пакетах ОЗП=1,03; ТЗ=1,03
B112: 421/пр_2020_прил.10_т.1_п.2_гр.3 | C112: Производство работ осуществляется на территории действующего предприятия с наличием в зоне производства работ одного или нескольких из следующих факторов: - разветвленной сети транспортных и инженерных коммуникаций; - стесненных условий для складирования материалов; - действующего технологического оборудования; - движения технологического транспорта ОЗП=1,15; ЭМ=1,15 к расх.; ЗПМ=1,15; ТЗ=1,15; ТЗМ=1,15 | BN112: Производство работ осуществляется на территории действующего предприятия с наличием в зоне производства работ одного или нескольких из следующих факторов: - разветвленной сети транспортных и инженерных коммуникаций; - стесненных условий для складирования материалов; - действующего технологического оборудования; - движения технологического транспорта ОЗП=1,15; ЭМ=1,15 к расх.; ЗПМ=1,15; ТЗ=1,15; ТЗМ=1,15
B113: 1 | C113: ИНДЕКС К ПОЗИЦИИ: II кв. 2025 г. Минстрой письмо №29761-ИФ/09 от 23.05.2025 г. (ПРОЧИЕ, ТЕР-2001) ОЗП=29,1; ЭМ=11,55; ЗПМ=29,1; МАТ=8,66 | BO113: ИНДЕКС К ПОЗИЦИИ: II кв. 2025 г. Минстрой письмо №29761-ИФ/09 от 23.05.2025 г. (ПРОЧИЕ, ТЕР-2001) ОЗП=29,1; ЭМ=11,55; ЗПМ=29,1; МАТ=8,66
E114: Накладные расходы 93% ФОТ (от 90 826) | L114: 84468
E115: Сметная прибыль 62% ФОТ (от 90 826) | L115: 56312
A116: 27 | B116: ТЕРм38-01-002-03 Приказ Администрации ЛО от 20.10.15 №28 | C116: Монорельсы, балки и другие аналогичные конструкции промышленных зданий, сборка с помощью: лебедок электрических (с установкой и снятием их в процессе работы) | F116: 1 т конструкций | G116: 6.2418 | H116: 21358.36 | I116: 16969.1 | J116: 3922.06 | K116: 1644.47 | L116: 133315 | M116: 105918 | N116: 24481 | O116: 10264 | BM116: Монорельсы, балки и другие аналогичные конструкции промышленных зданий, сборка с помощью: лебедок электрических (с установкой и снятием их в процессе работы)
C117: 856,30 = 5 265,27 - 1,02 x 4 322,52 | BP117: 856,30 = 5 265,27 - 1,02 x 4 322,52
B118: 421/пр_2020_прил.10_т.1_п.2_гр.3 | C118: Производство работ осуществляется на территории действующего предприятия с наличием в зоне производства работ одного или нескольких из следующих факторов: - разветвленной сети транспортных и инженерных коммуникаций; - стесненных условий для складирования материалов; - действующего технологического оборудования; - движения технологического транспорта ОЗП=1,15; ЭМ=1,15 к расх.; ЗПМ=1,15; ТЗ=1,15; ТЗМ=1,15 | BN118: Производство работ осуществляется на территории действующего предприятия с наличием в зоне производства работ одного или нескольких из следующих факторов: - разветвленной сети транспортных и инженерных коммуникаций; - стесненных условий для складирования материалов; - действующего технологического оборудования; - движения технологического транспорта ОЗП=1,15; ЭМ=1,15 к расх.; ЗПМ=1,15; ТЗ=1,15; ТЗМ=1,15
B119: 1 | C119: ИНДЕКС К ПОЗИЦИИ: II кв. 2025 г. Минстрой письмо №29761-ИФ/09 от 23.05.2025 г. (ПРОЧИЕ, ТЕР-2001) ОЗП=29,1; ЭМ=11,55; ЗПМ=29,1; МАТ=8,66 | BO119: ИНДЕКС К ПОЗИЦИИ: II кв. 2025 г. Минстрой письмо №29761-ИФ/09 от 23.05.2025 г. (ПРОЧИЕ, ТЕР-2001) ОЗП=29,1; ЭМ=11,55; ЗПМ=29,1; МАТ=8,66
E120: Накладные расходы 90% ФОТ (от 116 182) | L120: 104564
E121: Сметная прибыль 45% ФОТ (от 116 182) | L121: 52282
A122: 28 | B122: Прайс | C122: Швеллер 20П | F122: т | G122: 4.99344 | H122: 74 945,03 74945,00/ИндМ225 | L122: 374234 | BM122: Швеллер 20П
C123: Цена МАТ=74945,00/ИндМ225 | BQ123: Цена МАТ=74945,00/ИндМ225
B124: 1 | C124: ИНДЕКС К ПОЗИЦИИ: II кв. 2025 г. Минстрой письмо №29761-ИФ/09 от 23.05.2025 г. (ПРОЧИЕ, ТЕР-2001) ОЗП=29,1; ЭМ=11,55; ЗПМ=29,1; МАТ=8,66 | BO124: ИНДЕКС К ПОЗИЦИИ: II кв. 2025 г. Минстрой письмо №29761-ИФ/09 от 23.05.2025 г. (ПРОЧИЕ, ТЕР-2001) ОЗП=29,1; ЭМ=11,55; ЗПМ=29,1; МАТ=8,66
A125: 29 | B125: Прайс | C125: Двутавр 25Б1 | F125: т | G125: 1.0403 | H125: 79 158,03 79158,00/ИндМ225 | L125: 82348 | BM125: Двутавр 25Б1
C126: Цена МАТ=79158,00/ИндМ225 | BQ126: Цена МАТ=79158,00/ИндМ225
B127: 1 | C127: ИНДЕКС К ПОЗИЦИИ: II кв. 2025 г. Минстрой письмо №29761-ИФ/09 от 23.05.2025 г. (ПРОЧИЕ, ТЕР-2001) ОЗП=29,1; ЭМ=11,55; ЗПМ=29,1; МАТ=8,66 | BO127: ИНДЕКС К ПОЗИЦИИ: II кв. 2025 г. Минстрой письмо №29761-ИФ/09 от 23.05.2025 г. (ПРОЧИЕ, ТЕР-2001) ОЗП=29,1; ЭМ=11,55; ЗПМ=29,1; МАТ=8,66
A128: 30 | B128: Прайс | C128: Уголок не равнополочный 140*90*8 | F128: т | G128: 0.10403 | H128: 96 880,03 96880,00/ИндМ225 | L128: 10078 | BM128: Уголок не равнополочный 140*90*8
C129: Цена МАТ=96880,00/ИндМ225 | BQ129: Цена МАТ=96880,00/ИндМ225
B130: 1 | C130: ИНДЕКС К ПОЗИЦИИ: II кв. 2025 г. Минстрой письмо №29761-ИФ/09 от 23.05.2025 г. (ПРОЧИЕ, ТЕР-2001) ОЗП=29,1; ЭМ=11,55; ЗПМ=29,1; МАТ=8,66 | BO130: ИНДЕКС К ПОЗИЦИИ: II кв. 2025 г. Минстрой письмо №29761-ИФ/09 от 23.05.2025 г. (ПРОЧИЕ, ТЕР-2001) ОЗП=29,1; ЭМ=11,55; ЗПМ=29,1; МАТ=8,66
A131: 31 | B131: Прайс | C131: Прокат листовой 8мм | F131: т | G131: 0.10403 | H131: 64 845,99 64846,00/ИндМ225 | L131: 6746 | BM131: Прокат листовой 8мм
C132: Цена МАТ=64846,00/ИндМ225 | BQ132: Цена МАТ=64846,00/ИндМ225
B133: 1 | C133: ИНДЕКС К ПОЗИЦИИ: II кв. 2025 г. Минстрой письмо №29761-ИФ/09 от 23.05.2025 г. (ПРОЧИЕ, ТЕР-2001) ОЗП=29,1; ЭМ=11,55; ЗПМ=29,1; МАТ=8,66 | BO133: ИНДЕКС К ПОЗИЦИИ: II кв. 2025 г. Минстрой письмо №29761-ИФ/09 от 23.05.2025 г. (ПРОЧИЕ, ТЕР-2001) ОЗП=29,1; ЭМ=11,55; ЗПМ=29,1; МАТ=8,66
A134: Перевозка материалов ( металл 140 км. ОП "МКМ-СПб") | BR134: Перевозка материалов ( металл 140 км. ОП "МКМ-СПб")
A135: 32 | C135: металлопрокат, трубопрокат и металлоконструкции | F135: т | G135: 6.2418 | BM135: металлопрокат, трубопрокат и металлоконструкции
B136: 3 | C136: ИНДЕКС К ПОЗИЦИИ: II кв. 2025 г. Минстрой письмо №29761-ИФ/09 от 23.05.2025 г. (авт_САМОСВ) ЭМ=17,63 | BO136: ИНДЕКС К ПОЗИЦИИ: II кв. 2025 г. Минстрой письмо №29761-ИФ/09 от 23.05.2025 г. (авт_САМОСВ) ЭМ=17,63
A137: 33 | B137: ТССЦпг-03-02-01-140 Приказ Администрации ЛО от 20.10.15 №28 | C137: Перевозка строительных грузов (кроме массовых навалочных, перевозимых автомобилями-самосвалами, а также бетонных и железобетонных изделий, стеновых и перегородочных материалов, лесоматериалов круглых и пиломатериалов, включенных в таблицу 03-01), бортовым автомобилем грузоподъемностью 5 т, на расстояние до 140 км I класс груза | F137: 1 т груза | G137: 6.2418 | H137: 139.38 | L137: 870 | BM137: Перевозка строительных грузов (кроме массовых навалочных, перевозимых автомобилями-самосвалами, а также бетонных и железобетонных изделий, стеновых и перегородочных материалов, лесоматериалов круглых и пиломатериалов, включенных в таблицу 03-01), бортовым автомобилем грузоподъемностью 5 т, на расстояние до 140 км I класс груза
B138: 4 | C138: ИНДЕКС К ПОЗИЦИИ: II кв. 2025 г. Минстрой письмо №29761-ИФ/09 от 23.05.2025 г. (авт_БОРТОВ) ЭМ=19,65 | BO138: ИНДЕКС К ПОЗИЦИИ: II кв. 2025 г. Минстрой письмо №29761-ИФ/09 от 23.05.2025 г. (авт_БОРТОВ) ЭМ=19,65
A139: 34 | B139: ТССЦпг-01-01-02-015 Приказ Администрации ЛО от 20.10.15 №28 | C139: Разгрузочные работы при автомобильных перевозках: металлических конструкций массой до 1 т | F139: 1 т груза | G139: 6.2418 | H139: 282.32 | L139: 1762 | BM139: Разгрузочные работы при автомобильных перевозках: металлических конструкций массой до 1 т
B140: 5 | C140: ИНДЕКС К ПОЗИЦИИ: II кв. 2025 г. Минстрой письмо №29761-ИФ/09 от 23.05.2025 г. (погрузка/разгрузка, ТЕР-2001) ОЗП=29,1; ЭМ=11,55; ЗПМ=29,1; МАТ=8,66 | BO140: ИНДЕКС К ПОЗИЦИИ: II кв. 2025 г. Минстрой письмо №29761-ИФ/09 от 23.05.2025 г. (погрузка/разгрузка, ТЕР-2001) ОЗП=29,1; ЭМ=11,55; ЗПМ=29,1; МАТ=8,66
A141: Итого по разделу 3 Балки и прогоны | L141: 1034285 | BS141: Итого по разделу 3 Балки и прогоны
A142: Раздел 4. Связи и распорки | BL142: Раздел 4. Связи и распорки
A143: 35 | B143: ТЕР09-03-014-01 Приказ Администрации ЛО от 20.10.15 №28 | C143: Монтаж связей и распорок из одиночных и парных уголков, гнутосварных профилей для пролетов: до 24 м при высоте здания до 25 м | F143: 1 т конструкций | G143: 4.1612 | H143: 46566.4 | I143: 36142.42 | J143: 7124.87 | K143: 3147.38 | L143: 193772 | M143: 150396 | N143: 29648 | O143: 13097 | BM143: Монтаж связей и распорок из одиночных и парных уголков, гнутосварных профилей для пролетов: до 24 м при высоте здания до 25 м
B144: Прил.9.3 п.6 | C144: Монтаж конструкций, окрашенных в заводских условиях или неокрашенных, поставляемых в пакетах ОЗП=1,03; ТЗ=1,03 | BN144: Монтаж конструкций, окрашенных в заводских условиях или неокрашенных, поставляемых в пакетах ОЗП=1,03; ТЗ=1,03
B145: 421/пр_2020_прил.10_т.1_п.2_гр.3 | C145: Производство работ осуществляется на территории действующего предприятия с наличием в зоне производства работ одного или нескольких из следующих факторов: - разветвленной сети транспортных и инженерных коммуникаций; - стесненных условий для складирования материалов; - действующего технологического оборудования; - движения технологического транспорта ОЗП=1,15; ЭМ=1,15 к расх.; ЗПМ=1,15; ТЗ=1,15; ТЗМ=1,15 | BN145: Производство работ осуществляется на территории действующего предприятия с наличием в зоне производства работ одного или нескольких из следующих факторов: - разветвленной сети транспортных и инженерных коммуникаций; - стесненных условий для складирования материалов; - действующего технологического оборудования; - движения технологического транспорта ОЗП=1,15; ЭМ=1,15 к расх.; ЗПМ=1,15; ТЗ=1,15; ТЗМ=1,15
B146: 1 | C146: ИНДЕКС К ПОЗИЦИИ: II кв. 2025 г. Минстрой письмо №29761-ИФ/09 от 23.05.2025 г. (ПРОЧИЕ, ТЕР-2001) ОЗП=29,1; ЭМ=11,55; ЗПМ=29,1; МАТ=8,66 | BO146: ИНДЕКС К ПОЗИЦИИ: II кв. 2025 г. Минстрой письмо №29761-ИФ/09 от 23.05.2025 г. (ПРОЧИЕ, ТЕР-2001) ОЗП=29,1; ЭМ=11,55; ЗПМ=29,1; МАТ=8,66
E147: Накладные расходы 93% ФОТ (от 163 493) | L147: 152048
E148: Сметная прибыль 62% ФОТ (от 163 493) | L148: 101366
A149: 36 | B149: ТЕРм38-01-003-03 Приказ Администрации ЛО от 20.10.15 №28 | C149: Решетчатые конструкции (стойки, опоры, фермы и пр.), сборка с помощью: лебедок электрических (с установкой и снятием их в процессе работы) | F149: 1 т конструкций | G149: 4.1612 | H149: 80023.8 | I149: 70806.59 | J149: 6452.77 | K149: 923.63 | L149: 332995 | M149: 294640 | N149: 26851 | O149: 3843 | BM149: Решетчатые конструкции (стойки, опоры, фермы и пр.), сборка с помощью: лебедок электрических (с установкой и снятием их в процессе работы)
C150: 2 920,87 = 8 047,73 - 1,032 x 4 967,89 | BP150: 2 920,87 = 8 047,73 - 1,032 x 4 967,89
B151: 421/пр_2020_прил.10_т.1_п.2_гр.3 | C151: Производство работ осуществляется на территории действующего предприятия с наличием в зоне производства работ одного или нескольких из следующих факторов: - разветвленной сети транспортных и инженерных коммуникаций; - стесненных условий для складирования материалов; - действующего технологического оборудования; - движения технологического транспорта ОЗП=1,15; ЭМ=1,15 к расх.; ЗПМ=1,15; ТЗ=1,15; ТЗМ=1,15 | BN151: Производство работ осуществляется на территории действующего предприятия с наличием в зоне производства работ одного или нескольких из следующих факторов: - разветвленной сети транспортных и инженерных коммуникаций; - стесненных условий для складирования материалов; - действующего технологического оборудования; - движения технологического транспорта ОЗП=1,15; ЭМ=1,15 к расх.; ЗПМ=1,15; ТЗ=1,15; ТЗМ=1,15
B152: 1 | C152: ИНДЕКС К ПОЗИЦИИ: II кв. 2025 г. Минстрой письмо №29761-ИФ/09 от 23.05.2025 г. (ПРОЧИЕ, ТЕР-2001) ОЗП=29,1; ЭМ=11,55; ЗПМ=29,1; МАТ=8,66 | BO152: ИНДЕКС К ПОЗИЦИИ: II кв. 2025 г. Минстрой письмо №29761-ИФ/09 от 23.05.2025 г. (ПРОЧИЕ, ТЕР-2001) ОЗП=29,1; ЭМ=11,55; ЗПМ=29,1; МАТ=8,66
E153: Накладные расходы 90% ФОТ (от 298 483) | L153: 268635
E154: Сметная прибыль 45% ФОТ (от 298 483) | L154: 134317
A155: 37 | B155: Прайс | C155: Профиль гн. 120*5 | F155: т | G155: 0.93627 | H155: 79 266,02 79266,00/ИндМ225 | L155: 74214 | BM155: Профиль гн. 120*5
C156: Цена МАТ=79266,00/ИндМ225 | BQ156: Цена МАТ=79266,00/ИндМ225
B157: 1 | C157: ИНДЕКС К ПОЗИЦИИ: II кв. 2025 г. Минстрой письмо №29761-ИФ/09 от 23.05.2025 г. (ПРОЧИЕ, ТЕР-2001) ОЗП=29,1; ЭМ=11,55; ЗПМ=29,1; МАТ=8,66 | BO157: ИНДЕКС К ПОЗИЦИИ: II кв. 2025 г. Минстрой письмо №29761-ИФ/09 от 23.05.2025 г. (ПРОЧИЕ, ТЕР-2001) ОЗП=29,1; ЭМ=11,55; ЗПМ=29,1; МАТ=8,66
A158: 38 | B158: Прайс | C158: Профиль гн. 100*5 | F158: т | G158: 3.01687 | H158: 76 418,96 76419,00/ИндМ225 | L158: 230546 | BM158: Профиль гн. 100*5
C159: Цена МАТ=76419,00/ИндМ225 | BQ159: Цена МАТ=76419,00/ИндМ225
B160: 1 | C160: ИНДЕКС К ПОЗИЦИИ: II кв. 2025 г. Минстрой письмо №29761-ИФ/09 от 23.05.2025 г. (ПРОЧИЕ, ТЕР-2001) ОЗП=29,1; ЭМ=11,55; ЗПМ=29,1; МАТ=8,66 | BO160: ИНДЕКС К ПОЗИЦИИ: II кв. 2025 г. Минстрой письмо №29761-ИФ/09 от 23.05.2025 г. (ПРОЧИЕ, ТЕР-2001) ОЗП=29,1; ЭМ=11,55; ЗПМ=29,1; МАТ=8,66
A161: 39 | B161: Прайс | C161: Прокат листовой 8мм | F161: т | G161: 0.10403 | H161: 64 845,99 64846,00/ИндМ225 | L161: 6746 | BM161: Прокат листовой 8мм
C162: Цена МАТ=64846,00/ИндМ225 | BQ162: Цена МАТ=64846,00/ИндМ225
B163: 1 | C163: ИНДЕКС К ПОЗИЦИИ: II кв. 2025 г. Минстрой письмо №29761-ИФ/09 от 23.05.2025 г. (ПРОЧИЕ, ТЕР-2001) ОЗП=29,1; ЭМ=11,55; ЗПМ=29,1; МАТ=8,66 | BO163: ИНДЕКС К ПОЗИЦИИ: II кв. 2025 г. Минстрой письмо №29761-ИФ/09 от 23.05.2025 г. (ПРОЧИЕ, ТЕР-2001) ОЗП=29,1; ЭМ=11,55; ЗПМ=29,1; МАТ=8,66
A164: 40 | B164: Прайс | C164: Прокат листовой 4мм | F164: т | G164: 0.10403 | H164: 53 206,00 53206,00/ИндМ225 | L164: 5535 | BM164: Прокат листовой 4мм
C165: Цена МАТ=53206,00/ИндМ225 | BQ165: Цена МАТ=53206,00/ИндМ225
B166: 1 | C166: ИНДЕКС К ПОЗИЦИИ: II кв. 2025 г. Минстрой письмо №29761-ИФ/09 от 23.05.2025 г. (ПРОЧИЕ, ТЕР-2001) ОЗП=29,1; ЭМ=11,55; ЗПМ=29,1; МАТ=8,66 | BO166: ИНДЕКС К ПОЗИЦИИ: II кв. 2025 г. Минстрой письмо №29761-ИФ/09 от 23.05.2025 г. (ПРОЧИЕ, ТЕР-2001) ОЗП=29,1; ЭМ=11,55; ЗПМ=29,1; МАТ=8,66
A167: Перевозка материалов ( металл 140 км. ОП "МКМ-СПб") | BR167: Перевозка материалов ( металл 140 км. ОП "МКМ-СПб")
A168: 41 | C168: металлопрокат, трубопрокат и металлоконструкции | F168: т | G168: 4.1612 | BM168: металлопрокат, трубопрокат и металлоконструкции
B169: 3 | C169: ИНДЕКС К ПОЗИЦИИ: II кв. 2025 г. Минстрой письмо №29761-ИФ/09 от 23.05.2025 г. (авт_САМОСВ) ЭМ=17,63 | BO169: ИНДЕКС К ПОЗИЦИИ: II кв. 2025 г. Минстрой письмо №29761-ИФ/09 от 23.05.2025 г. (авт_САМОСВ) ЭМ=17,63
A170: 42 | B170: ТССЦпг-03-02-01-140 Приказ Администрации ЛО от 20.10.15 №28 | C170: Перевозка строительных грузов (кроме массовых навалочных, перевозимых автомобилями-самосвалами, а также бетонных и железобетонных изделий, стеновых и перегородочных материалов, лесоматериалов круглых и пиломатериалов, включенных в таблицу 03-01), бортовым автомобилем грузоподъемностью 5 т, на расстояние до 140 км I класс груза | F170: 1 т груза | G170: 4.1612 | H170: 139.38 | L170: 580 | BM170: Перевозка строительных грузов (кроме массовых навалочных, перевозимых автомобилями-самосвалами, а также бетонных и железобетонных изделий, стеновых и перегородочных материалов, лесоматериалов круглых и пиломатериалов, включенных в таблицу 03-01), бортовым автомобилем грузоподъемностью 5 т, на расстояние до 140 км I класс груза
B171: 4 | C171: ИНДЕКС К ПОЗИЦИИ: II кв. 2025 г. Минстрой письмо №29761-ИФ/09 от 23.05.2025 г. (авт_БОРТОВ) ЭМ=19,65 | BO171: ИНДЕКС К ПОЗИЦИИ: II кв. 2025 г. Минстрой письмо №29761-ИФ/09 от 23.05.2025 г. (авт_БОРТОВ) ЭМ=19,65
A172: 43 | B172: ТССЦпг-01-01-02-015 Приказ Администрации ЛО от 20.10.15 №28 | C172: Разгрузочные работы при автомобильных перевозках: металлических конструкций массой до 1 т | F172: 1 т груза | G172: 4.1612 | H172: 282.32 | L172: 1175 | BM172: Разгрузочные работы при автомобильных перевозках: металлических конструкций массой до 1 т
B173: 5 | C173: ИНДЕКС К ПОЗИЦИИ: II кв. 2025 г. Минстрой письмо №29761-ИФ/09 от 23.05.2025 г. (погрузка/разгрузка, ТЕР-2001) ОЗП=29,1; ЭМ=11,55; ЗПМ=29,1; МАТ=8,66 | BO173: ИНДЕКС К ПОЗИЦИИ: II кв. 2025 г. Минстрой письмо №29761-ИФ/09 от 23.05.2025 г. (погрузка/разгрузка, ТЕР-2001) ОЗП=29,1; ЭМ=11,55; ЗПМ=29,1; МАТ=8,66
A174: Итого по разделу 4 Связи и распорки | L174: 1501929 | BS174: Итого по разделу 4 Связи и распорки
A175: Раздел 5. Фахверк | BL175: Раздел 5. Фахверк
A176: Таб.9-43. Монтаж фахверка – 10 кг/т м/к | BT176: Таб.9-43. Монтаж фахверка – 10 кг/т м/к
A177: 44 | B177: ТЕР09-04-006-01 Приказ Администрации ЛО от 20.10.15 №28 | C177: Монтаж фахверка | F177: 1 т конструкций | G177: 8.42643 | H177: 28465.17 | I177: 18085.82 | J177: 8318.7 | K177: 2400.44 | L177: 239860 | M177: 152399 | N177: 70097 | O177: 20227 | BM177: Монтаж фахверка
B178: 421/пр_2020_прил.10_т.1_п.2_гр.3 | C178: Производство работ осуществляется на территории действующего предприятия с наличием в зоне производства работ одного или нескольких из следующих факторов: - разветвленной сети транспортных и инженерных коммуникаций; - стесненных условий для складирования материалов; - действующего технологического оборудования; - движения технологического транспорта ОЗП=1,15; ЭМ=1,15 к расх.; ЗПМ=1,15; ТЗ=1,15; ТЗМ=1,15 | BN178: Производство работ осуществляется на территории действующего предприятия с наличием в зоне производства работ одного или нескольких из следующих факторов: - разветвленной сети транспортных и инженерных коммуникаций; - стесненных условий для складирования материалов; - действующего технологического оборудования; - движения технологического транспорта ОЗП=1,15; ЭМ=1,15 к расх.; ЗПМ=1,15; ТЗ=1,15; ТЗМ=1,15
B179: 1 | C179: ИНДЕКС К ПОЗИЦИИ: II кв. 2025 г. Минстрой письмо №29761-ИФ/09 от 23.05.2025 г. (ПРОЧИЕ, ТЕР-2001) ОЗП=29,1; ЭМ=11,55; ЗПМ=29,1; МАТ=8,66 | BO179: ИНДЕКС К ПОЗИЦИИ: II кв. 2025 г. Минстрой письмо №29761-ИФ/09 от 23.05.2025 г. (ПРОЧИЕ, ТЕР-2001) ОЗП=29,1; ЭМ=11,55; ЗПМ=29,1; МАТ=8,66
E180: Накладные расходы 93% ФОТ (от 172 626) | L180: 160542
E181: Сметная прибыль 62% ФОТ (от 172 626) | L181: 107028
A182: 45 | B182: ТССЦ-110-0009 Приказ Администрации ЛО от 20.10.15 №28 | C182: Болты сборочные с гайками и шайбами по классу прочности: 10.9 | F182: т | G182: 0.084264 | H182: 185749.21 | L182: 15652 | BM182: Болты сборочные с гайками и шайбами по классу прочности: 10.9
B183: 1 | C183: ИНДЕКС К ПОЗИЦИИ: II кв. 2025 г. Минстрой письмо №29761-ИФ/09 от 23.05.2025 г. (ПРОЧИЕ, ТЕР-2001) ОЗП=29,1; ЭМ=11,55; ЗПМ=29,1; МАТ=8,66 | BO183: ИНДЕКС К ПОЗИЦИИ: II кв. 2025 г. Минстрой письмо №29761-ИФ/09 от 23.05.2025 г. (ПРОЧИЕ, ТЕР-2001) ОЗП=29,1; ЭМ=11,55; ЗПМ=29,1; МАТ=8,66
A184: 46 | B184: ТЕРм38-01-003-03 Приказ Администрации ЛО от 20.10.15 №28 | C184: Решетчатые конструкции (стойки, опоры, фермы и пр.), сборка с помощью: лебедок электрических (с установкой и снятием их в процессе работы) | F184: 1 т конструкций | G184: 8.42643 | H184: 80023.8 | I184: 70806.59 | J184: 6452.77 | K184: 923.63 | L184: 674315 | M184: 596647 | N184: 54374 | O184: 7783 | BM184: Решетчатые конструкции (стойки, опоры, фермы и пр.), сборка с помощью: лебедок электрических (с установкой и снятием их в процессе работы)
C185: 2 920,87 = 8 047,73 - 1,032 x 4 967,89 | BP185: 2 920,87 = 8 047,73 - 1,032 x 4 967,89
B186: 421/пр_2020_прил.10_т.1_п.2_гр.3 | C186: Производство работ осуществляется на территории действующего предприятия с наличием в зоне производства работ одного или нескольких из следующих факторов: - разветвленной сети транспортных и инженерных коммуникаций; - стесненных условий для складирования материалов; - действующего технологического оборудования; - движения технологического транспорта ОЗП=1,15; ЭМ=1,15 к расх.; ЗПМ=1,15; ТЗ=1,15; ТЗМ=1,15 | BN186: Производство работ осуществляется на территории действующего предприятия с наличием в зоне производства работ одного или нескольких из следующих факторов: - разветвленной сети транспортных и инженерных коммуникаций; - стесненных условий для складирования материалов; - действующего технологического оборудования; - движения технологического транспорта ОЗП=1,15; ЭМ=1,15 к расх.; ЗПМ=1,15; ТЗ=1,15; ТЗМ=1,15
B187: 1 | C187: ИНДЕКС К ПОЗИЦИИ: II кв. 2025 г. Минстрой письмо №29761-ИФ/09 от 23.05.2025 г. (ПРОЧИЕ, ТЕР-2001) ОЗП=29,1; ЭМ=11,55; ЗПМ=29,1; МАТ=8,66 | BO187: ИНДЕКС К ПОЗИЦИИ: II кв. 2025 г. Минстрой письмо №29761-ИФ/09 от 23.05.2025 г. (ПРОЧИЕ, ТЕР-2001) ОЗП=29,1; ЭМ=11,55; ЗПМ=29,1; МАТ=8,66
E188: Накладные расходы 90% ФОТ (от 604 430) | L188: 543987
E189: Сметная прибыль 45% ФОТ (от 604 430) | L189: 271994
A190: 47 | B190: Прайс | C190: Профиль гн. 140*6 | F190: т | G190: 6.44986 | H190: 83 790,00 83790,00/ИндМ225 | L190: 540434 | BM190: Профиль гн. 140*6
C191: Цена МАТ=83790,00/ИндМ225 | BQ191: Цена МАТ=83790,00/ИндМ225
B192: 1 | C192: ИНДЕКС К ПОЗИЦИИ: II кв. 2025 г. Минстрой письмо №29761-ИФ/09 от 23.05.2025 г. (ПРОЧИЕ, ТЕР-2001) ОЗП=29,1; ЭМ=11,55; ЗПМ=29,1; МАТ=8,66 | BO192: ИНДЕКС К ПОЗИЦИИ: II кв. 2025 г. Минстрой письмо №29761-ИФ/09 от 23.05.2025 г. (ПРОЧИЕ, ТЕР-2001) ОЗП=29,1; ЭМ=11,55; ЗПМ=29,1; МАТ=8,66
A193: 48 | B193: Прайс | C193: Швеллер 14П | F193: т | G193: 0.52015 | H193: 69 676,02 69676,00/ИндМ225 | L193: 36242 | BM193: Швеллер 14П
C194: Цена МАТ=69676,00/ИндМ225 | BQ194: Цена МАТ=69676,00/ИндМ225
B195: 1 | C195: ИНДЕКС К ПОЗИЦИИ: II кв. 2025 г. Минстрой письмо №29761-ИФ/09 от 23.05.2025 г. (ПРОЧИЕ, ТЕР-2001) ОЗП=29,1; ЭМ=11,55; ЗПМ=29,1; МАТ=8,66 | BO195: ИНДЕКС К ПОЗИЦИИ: II кв. 2025 г. Минстрой письмо №29761-ИФ/09 от 23.05.2025 г. (ПРОЧИЕ, ТЕР-2001) ОЗП=29,1; ЭМ=11,55; ЗПМ=29,1; МАТ=8,66
A196: 49 | B196: Прайс | C196: Уголок не равнополочный 140*90*8 | F196: т | G196: 1.24836 | H196: 96 880,03 96880,00/ИндМ225 | L196: 120941 | BM196: Уголок не равнополочный 140*90*8
C197: Цена МАТ=96880,00/ИндМ225 | BQ197: Цена МАТ=96880,00/ИндМ225
B198: 1 | C198: ИНДЕКС К ПОЗИЦИИ: II кв. 2025 г. Минстрой письмо №29761-ИФ/09 от 23.05.2025 г. (ПРОЧИЕ, ТЕР-2001) ОЗП=29,1; ЭМ=11,55; ЗПМ=29,1; МАТ=8,66 | BO198: ИНДЕКС К ПОЗИЦИИ: II кв. 2025 г. Минстрой письмо №29761-ИФ/09 от 23.05.2025 г. (ПРОЧИЕ, ТЕР-2001) ОЗП=29,1; ЭМ=11,55; ЗПМ=29,1; МАТ=8,66
A199: 50 | B199: Прайс | C199: Прокат листовой 6мм | F199: т | G199: 0.10403 | H199: 63 371,97 63372,00/ИндМ225 | L199: 6593 | BM199: Прокат листовой 6мм
C200: Цена МАТ=63372,00/ИндМ225 | BQ200: Цена МАТ=63372,00/ИндМ225
B201: 1 | C201: ИНДЕКС К ПОЗИЦИИ: II кв. 2025 г. Минстрой письмо №29761-ИФ/09 от 23.05.2025 г. (ПРОЧИЕ, ТЕР-2001) ОЗП=29,1; ЭМ=11,55; ЗПМ=29,1; МАТ=8,66 | BO201: ИНДЕКС К ПОЗИЦИИ: II кв. 2025 г. Минстрой письмо №29761-ИФ/09 от 23.05.2025 г. (ПРОЧИЕ, ТЕР-2001) ОЗП=29,1; ЭМ=11,55; ЗПМ=29,1; МАТ=8,66
A202: 51 | B202: Прайс | C202: Прокат листовой 4мм | F202: т | G202: 0.10403 | H202: 53 206,00 53206,00/ИндМ225 | L202: 5535 | BM202: Прокат листовой 4мм
C203: Цена МАТ=53206,00/ИндМ225 | BQ203: Цена МАТ=53206,00/ИндМ225
B204: 1 | C204: ИНДЕКС К ПОЗИЦИИ: II кв. 2025 г. Минстрой письмо №29761-ИФ/09 от 23.05.2025 г. (ПРОЧИЕ, ТЕР-2001) ОЗП=29,1; ЭМ=11,55; ЗПМ=29,1; МАТ=8,66 | BO204: ИНДЕКС К ПОЗИЦИИ: II кв. 2025 г. Минстрой письмо №29761-ИФ/09 от 23.05.2025 г. (ПРОЧИЕ, ТЕР-2001) ОЗП=29,1; ЭМ=11,55; ЗПМ=29,1; МАТ=8,66
... 154 more rows

Sheet Смета_1632-2021-3.4-АР
A2: Терминал по перевалке минеральных удобрений в морском торговом порту Усть-Луга. Береговые объекты терминала | S2: Терминал по перевалке минеральных удобрений в морском торговом порту Усть-Луга. Береговые объекты терминала
A3: (наименование стройки)
A5: ЛОКАЛЬНАЯ СМЕТА № 1632-2021-3.4-АР_01.05.060-П-00-00
A6: (локальная смета)
A7: на Архитектурные решения, 07.06.060 Ангар для хранения ТМЦ (код SAP 01.05.019) код ГП 3.4 | AH7: на Архитектурные решения, 07.06.060 Ангар для хранения ТМЦ (код SAP 01.05.019) код ГП 3.4
A8: (наименование работ и затрат, наименование объекта)
B9: Основание: | C9: 1632-2021-3.4-АР_0_0_RU_IFС | AW9: 1632-2021-3.4-АР_0_0_RU_IFС
B10: Сметная стоимость | E10: 9727173.29 | F10: руб.
B11: строительных работ | E11: 5786133.24 | F11: руб.
B12: монтажных работ | E12: 1008485.97 | F12: руб.
B13: Средства на оплату труда | E13: 1153195.72 | F13: руб.
B14: Сметная трудоемкость | E14: 2232.1 | F14: чел.час
B15: Трудозатраты механизаторов | E15: 182.38 | F15: чел.час
B16: Составлен(а) в текущих (прогнозных) ценах по состоянию на | F16: 2 кв. 2023г. | BB16: 2 кв. 2023г.
A19: № п/п | B19: Обоснование | C19: Наименование работ и затрат | F19: Единица измерения | G19: Кол-во | H19: Стоимость единицы, руб. | L19: Общая стоимость, руб.
H20: Всего | I20: В том числе | L20: Всего | M20: В том числе
I21: Осн.З/п | J21: Эк.Маш | K21: З/пМех | M21: Осн.З/п | N21: Эк.Маш | O21: З/пМех
A22: 1 | B22: 2 | C22: 3 | F22: 4 | G22: 5 | H22: 6 | I22: 7 | J22: 8 | K22: 9 | L22: 10 | M22: 11 | N22: 12 | O22: 13
A23: Раздел 1. Кровля | BL23: Раздел 1. Кровля
A24: Устройство кровли из профлиста см. в разделе КМ | BM24: Устройство кровли из профлиста см. в разделе КМ
A25: 7 | B25: ТЕР12-01-009-02 Приказ Администрации ЛО от 20.10.15 №28 | C25: Устройство желобов: подвесных | F25: 100 м желобов | G25: 0.611 | H25: 2375.68 | I25: 584.09 | J25: 32.15 | K25: 4.51 | L25: 19921.65 | M25: 10385.09 | N25: 226.91 | O25: 80.15 | BN25: Устройство желобов: подвесных
C26: 2 295,30 = 6 678,24 - 0,452 x 9 696,76 | BO26: 2 295,30 = 6 678,24 - 0,452 x 9 696,76
B27: 421/пр_2020_прил.10_т.1_п.2_гр.3 | C27: Производство работ осуществляется на территории действующего предприятия с наличием в зоне производства работ одного или нескольких из следующих факторов: - разветвленной сети транспортных и инженерных коммуникаций; - стесненных условий для складирования материалов; - действующего технологического оборудования; - движения технологического транспорта ОЗП=1,15; ЭМ=1,15 к расх.; ЗПМ=1,15; ТЗ=1,15; ТЗМ=1,15 | BP27: Производство работ осуществляется на территории действующего предприятия с наличием в зоне производства работ одного или нескольких из следующих факторов: - разветвленной сети транспортных и инженерных коммуникаций; - стесненных условий для складирования материалов; - действующего технологического оборудования; - движения технологического транспорта ОЗП=1,15; ЭМ=1,15 к расх.; ЗПМ=1,15; ТЗ=1,15; ТЗМ=1,15
B28: 1 | C28: ИНДЕКС К ПОЗИЦИИ: II кв. 2025 г. Минстрой письмо №29761-ИФ/09 от 23.05.2025 г. (ПРОЧИЕ, ТЕР-2001) ОЗП=29,1; ЭМ=11,55; ЗПМ=29,1; МАТ=8,66 | BQ28: ИНДЕКС К ПОЗИЦИИ: II кв. 2025 г. Минстрой письмо №29761-ИФ/09 от 23.05.2025 г. (ПРОЧИЕ, ТЕР-2001) ОЗП=29,1; ЭМ=11,55; ЗПМ=29,1; МАТ=8,66
E29: Накладные расходы 109% ФОТ (от 10 465,24) | L29: 11407.11
E30: Сметная прибыль 57% ФОТ (от 10 465,24) | L30: 5965.19
A31: 8 | B31: ТЦ_12.1.01.00_78_7804606806_25.01.2024_02 Аналог ТССЦ-203-0960 5219,18/5114,28=2% | C31: Желоб водосточный D185х3000 | F31: шт | G31: 20 | H31: 140,16 1428/ндс/ИндМ225*1,02 | L31: 24275.71 | BN31: Желоб водосточный D185х3000
C32: Цена МАТ=1428/ндс/ИндМ225*1,02 | BR32: Цена МАТ=1428/ндс/ИндМ225*1,02
B33: 1 | C33: ИНДЕКС К ПОЗИЦИИ: II кв. 2025 г. Минстрой письмо №29761-ИФ/09 от 23.05.2025 г. (ПРОЧИЕ, ТЕР-2001) ОЗП=29,1; ЭМ=11,55; ЗПМ=29,1; МАТ=8,66 | BQ33: ИНДЕКС К ПОЗИЦИИ: II кв. 2025 г. Минстрой письмо №29761-ИФ/09 от 23.05.2025 г. (ПРОЧИЕ, ТЕР-2001) ОЗП=29,1; ЭМ=11,55; ЗПМ=29,1; МАТ=8,66
A34: 9 | B34: ТЕР12-01-008-01 Приказ Администрации ЛО от 20.10.15 №28 | C34: Устройство обделок на фасадах (наружные подоконники, пояски, балконы и др.): включая водосточные трубы, с изготовлением элементов труб// прим. | F34: 100 м2фасада (без вычета проемов) | G34: 6.9984 | H34: 431.18 | I34: 249.18 | J34: 4.14 | L34: 61860.82 | M34: 50746.77 | N34: 334.64 | BN34: Устройство обделок на фасадах (наружные подоконники, пояски, балконы и др.): включая водосточные трубы, с изготовлением элементов труб// прим.
C35: 398,14 = 1 096,31 - 0,072 x 9 696,76 | BO35: 398,14 = 1 096,31 - 0,072 x 9 696,76
B36: 421/пр_2020_прил.10_т.1_п.2_гр.3 | C36: Производство работ осуществляется на территории действующего предприятия с наличием в зоне производства работ одного или нескольких из следующих факторов: - разветвленной сети транспортных и инженерных коммуникаций; - стесненных условий для складирования материалов; - действующего технологического оборудования; - движения технологического транспорта ОЗП=1,15; ЭМ=1,15 к расх.; ЗПМ=1,15; ТЗ=1,15; ТЗМ=1,15 | BP36: Производство работ осуществляется на территории действующего предприятия с наличием в зоне производства работ одного или нескольких из следующих факторов: - разветвленной сети транспортных и инженерных коммуникаций; - стесненных условий для складирования материалов; - действующего технологического оборудования; - движения технологического транспорта ОЗП=1,15; ЭМ=1,15 к расх.; ЗПМ=1,15; ТЗ=1,15; ТЗМ=1,15
B37: 1 | C37: ИНДЕКС К ПОЗИЦИИ: II кв. 2025 г. Минстрой письмо №29761-ИФ/09 от 23.05.2025 г. (ПРОЧИЕ, ТЕР-2001) ОЗП=29,1; ЭМ=11,55; ЗПМ=29,1; МАТ=8,66 | BQ37: ИНДЕКС К ПОЗИЦИИ: II кв. 2025 г. Минстрой письмо №29761-ИФ/09 от 23.05.2025 г. (ПРОЧИЕ, ТЕР-2001) ОЗП=29,1; ЭМ=11,55; ЗПМ=29,1; МАТ=8,66
E38: Накладные расходы 109% ФОТ (от 50 746,77) | L38: 55313.98
E39: Сметная прибыль 57% ФОТ (от 50 746,77) | L39: 28925.66
A40: 4 | B40: ТЕР12-01-008-02 Приказ Администрации ЛО от 20.10.15 №28 | C40: Устройство обделок на фасадах (наружные подоконники, пояски, балконы и др.): без водосточных труб | F40: 100 м2фасада (без вычета проемов) | G40: -6.9984 | H40: 105.74 | I40: 91.11 | J40: 1.38 | L40: -19470.36 | M40: -18555.78 | N40: -111.55 | BN40: Устройство обделок на фасадах (наружные подоконники, пояски, балконы и др.): без водосточных труб
C41: 93,68 = 394,28 - 0,031 x 9 696,76 | BO41: 93,68 = 394,28 - 0,031 x 9 696,76
B42: 421/пр_2020_прил.10_т.1_п.2_гр.3 | C42: Производство работ осуществляется на территории действующего предприятия с наличием в зоне производства работ одного или нескольких из следующих факторов: - разветвленной сети транспортных и инженерных коммуникаций; - стесненных условий для складирования материалов; - действующего технологического оборудования; - движения технологического транспорта ОЗП=1,15; ЭМ=1,15 к расх.; ЗПМ=1,15; ТЗ=1,15; ТЗМ=1,15 | BP42: Производство работ осуществляется на территории действующего предприятия с наличием в зоне производства работ одного или нескольких из следующих факторов: - разветвленной сети транспортных и инженерных коммуникаций; - стесненных условий для складирования материалов; - действующего технологического оборудования; - движения технологического транспорта ОЗП=1,15; ЭМ=1,15 к расх.; ЗПМ=1,15; ТЗ=1,15; ТЗМ=1,15
B43: 1 | C43: ИНДЕКС К ПОЗИЦИИ: II кв. 2025 г. Минстрой письмо №29761-ИФ/09 от 23.05.2025 г. (ПРОЧИЕ, ТЕР-2001) ОЗП=29,1; ЭМ=11,55; ЗПМ=29,1; МАТ=8,66 | BQ43: ИНДЕКС К ПОЗИЦИИ: II кв. 2025 г. Минстрой письмо №29761-ИФ/09 от 23.05.2025 г. (ПРОЧИЕ, ТЕР-2001) ОЗП=29,1; ЭМ=11,55; ЗПМ=29,1; МАТ=8,66
E44: Накладные расходы 109% ФОТ (от -18 555,78) | L44: -20225.8
E45: Сметная прибыль 57% ФОТ (от -18 555,78) | L45: -10576.79
A46: 10 | B46: ТЦ_12.1.01.00_78_7804606806_25.01.2024_02 Аналог ТССЦ-301-5867 217,71/213,27=2% | C46: Труба водосточная D150х3000мм | F46: шт | G46: 15 | H46: 170,88 1741/ндс/ИндМ225*1,02 | L46: 22197.31 | BN46: Труба водосточная D150х3000мм
C47: Цена МАТ=1741/ндс/ИндМ225*1,02 | BR47: Цена МАТ=1741/ндс/ИндМ225*1,02
B48: 1 | C48: ИНДЕКС К ПОЗИЦИИ: II кв. 2025 г. Минстрой письмо №29761-ИФ/09 от 23.05.2025 г. (ПРОЧИЕ, ТЕР-2001) ОЗП=29,1; ЭМ=11,55; ЗПМ=29,1; МАТ=8,66 | BQ48: ИНДЕКС К ПОЗИЦИИ: II кв. 2025 г. Минстрой письмо №29761-ИФ/09 от 23.05.2025 г. (ПРОЧИЕ, ТЕР-2001) ОЗП=29,1; ЭМ=11,55; ЗПМ=29,1; МАТ=8,66
A49: 11 | B49: ТЦ_12.1.01.00_78_7804606806_25.01.2024_02 Аналог ТССЦ-115-0931 8,37/8,08=3% | C49: Воронки выпускные D185/150 | F49: шт | G49: 4 | H49: 66,25 675/ндс/ИндМ225*1,02 | L49: 2294.9 | BN49: Воронки выпускные D185/150
C50: Цена МАТ=675/ндс/ИндМ225*1,02 | BR50: Цена МАТ=675/ндс/ИндМ225*1,02
B51: 1 | C51: ИНДЕКС К ПОЗИЦИИ: II кв. 2025 г. Минстрой письмо №29761-ИФ/09 от 23.05.2025 г. (ПРОЧИЕ, ТЕР-2001) ОЗП=29,1; ЭМ=11,55; ЗПМ=29,1; МАТ=8,66 | BQ51: ИНДЕКС К ПОЗИЦИИ: II кв. 2025 г. Минстрой письмо №29761-ИФ/09 от 23.05.2025 г. (ПРОЧИЕ, ТЕР-2001) ОЗП=29,1; ЭМ=11,55; ЗПМ=29,1; МАТ=8,66
A52: 12 | B52: ТЕР12-01-012-01 Приказ Администрации ЛО от 20.10.15 №28 | C52: Ограждение кровель перилами // прим. | F52: 100 м ограждения | G52: 0.611 | H52: 234.86 | I52: 128.79 | J52: 73.75 | K52: 8.18 | L52: 2981.33 | M52: 2289.87 | N52: 520.45 | O52: 145.38 | BN52: Ограждение кровель перилами // прим.
C53: 208,44 = 4 134,92 - 0,3 x 13 088,27 | BO53: 208,44 = 4 134,92 - 0,3 x 13 088,27
B54: 421/пр_2020_прил.10_т.1_п.2_гр.3 | C54: Производство работ осуществляется на территории действующего предприятия с наличием в зоне производства работ одного или нескольких из следующих факторов: - разветвленной сети транспортных и инженерных коммуникаций; - стесненных условий для складирования материалов; - действующего технологического оборудования; - движения технологического транспорта ОЗП=1,15; ЭМ=1,15 к расх.; ЗПМ=1,15; ТЗ=1,15; ТЗМ=1,15 | BP54: Производство работ осуществляется на территории действующего предприятия с наличием в зоне производства работ одного или нескольких из следующих факторов: - разветвленной сети транспортных и инженерных коммуникаций; - стесненных условий для складирования материалов; - действующего технологического оборудования; - движения технологического транспорта ОЗП=1,15; ЭМ=1,15 к расх.; ЗПМ=1,15; ТЗ=1,15; ТЗМ=1,15
B55: 1 | C55: ИНДЕКС К ПОЗИЦИИ: II кв. 2025 г. Минстрой письмо №29761-ИФ/09 от 23.05.2025 г. (ПРОЧИЕ, ТЕР-2001) ОЗП=29,1; ЭМ=11,55; ЗПМ=29,1; МАТ=8,66 | BQ55: ИНДЕКС К ПОЗИЦИИ: II кв. 2025 г. Минстрой письмо №29761-ИФ/09 от 23.05.2025 г. (ПРОЧИЕ, ТЕР-2001) ОЗП=29,1; ЭМ=11,55; ЗПМ=29,1; МАТ=8,66
E56: Накладные расходы 109% ФОТ (от 2 435,25) | L56: 2654.42
E57: Сметная прибыль 57% ФОТ (от 2 435,25) | L57: 1388.09
A58: 13 | B58: ТЦ_12.1.01.00_78_7804606806_25.01.2024_02 Аналог ТССЦ-101-7317 128,60/126,01=2% | C58: Снегозадержатель трубчатый (L=3 м. в комплекте с креплением) | F58: шт | G58: 20 | H58: 197,38 2011/ндс/ИндМ225*1,02 | L58: 34186.22 | BN58: Снегозадержатель трубчатый (L=3 м. в комплекте с креплением)
C59: Цена МАТ=2011/ндс/ИндМ225*1,02 | BR59: Цена МАТ=2011/ндс/ИндМ225*1,02
B60: 1 | C60: ИНДЕКС К ПОЗИЦИИ: II кв. 2025 г. Минстрой письмо №29761-ИФ/09 от 23.05.2025 г. (ПРОЧИЕ, ТЕР-2001) ОЗП=29,1; ЭМ=11,55; ЗПМ=29,1; МАТ=8,66 | BQ60: ИНДЕКС К ПОЗИЦИИ: II кв. 2025 г. Минстрой письмо №29761-ИФ/09 от 23.05.2025 г. (ПРОЧИЕ, ТЕР-2001) ОЗП=29,1; ЭМ=11,55; ЗПМ=29,1; МАТ=8,66
A61: Итого по разделу 1 Кровля | L61: 223099.43 | BS61: Итого по разделу 1 Кровля
A62: Раздел 2. Окна | BL62: Раздел 2. Окна
A63: 14 | B63: ТЕР09-04-010-02 Приказ Администрации ЛО от 20.10.15 №28 | C63: Монтаж витражей, витрин: с одинарным остеклением в одноэтажных зданиях | F63: 1 т конструкций | G63: 0.209 | H63: 9614.57 | I63: 8837.19 | J63: 549.83 | K63: 3.38 | L63: 55486 | M63: 53746.88 | N63: 1327.25 | O63: 20.56 | BN63: Монтаж витражей, витрин: с одинарным остеклением в одноэтажных зданиях
B64: 421/пр_2020_прил.10_т.1_п.2_гр.3 | C64: Производство работ осуществляется на территории действующего предприятия с наличием в зоне производства работ одного или нескольких из следующих факторов: - разветвленной сети транспортных и инженерных коммуникаций; - стесненных условий для складирования материалов; - действующего технологического оборудования; - движения технологического транспорта ОЗП=1,15; ЭМ=1,15 к расх.; ЗПМ=1,15; ТЗ=1,15; ТЗМ=1,15 | BP64: Производство работ осуществляется на территории действующего предприятия с наличием в зоне производства работ одного или нескольких из следующих факторов: - разветвленной сети транспортных и инженерных коммуникаций; - стесненных условий для складирования материалов; - действующего технологического оборудования; - движения технологического транспорта ОЗП=1,15; ЭМ=1,15 к расх.; ЗПМ=1,15; ТЗ=1,15; ТЗМ=1,15
B65: 1 | C65: ИНДЕКС К ПОЗИЦИИ: II кв. 2025 г. Минстрой письмо №29761-ИФ/09 от 23.05.2025 г. (ПРОЧИЕ, ТЕР-2001) ОЗП=29,1; ЭМ=11,55; ЗПМ=29,1; МАТ=8,66 | BQ65: ИНДЕКС К ПОЗИЦИИ: II кв. 2025 г. Минстрой письмо №29761-ИФ/09 от 23.05.2025 г. (ПРОЧИЕ, ТЕР-2001) ОЗП=29,1; ЭМ=11,55; ЗПМ=29,1; МАТ=8,66
E66: Накладные расходы 93% ФОТ (от 53 767,44) | L66: 50003.72
E67: Сметная прибыль 62% ФОТ (от 53 767,44) | L67: 33335.81
A68: 15 | B68: ТЦ_09.1.01.01_78_7820318146_25.01.2024_02 | C68: Витражи из алюминиевого комбинированного профиля | F68: м2 | G68: 38 | H68: 933,41 9700,00/ндс/ИндМ225 | L68: 307166.56 | BN68: Витражи из алюминиевого комбинированного профиля
C69: Цена МАТ=9700,00/ндс/ИндМ225 | BR69: Цена МАТ=9700,00/ндс/ИндМ225
B70: 1 | C70: ИНДЕКС К ПОЗИЦИИ: II кв. 2025 г. Минстрой письмо №29761-ИФ/09 от 23.05.2025 г. (ПРОЧИЕ, ТЕР-2001) ОЗП=29,1; ЭМ=11,55; ЗПМ=29,1; МАТ=8,66 | BQ70: ИНДЕКС К ПОЗИЦИИ: II кв. 2025 г. Минстрой письмо №29761-ИФ/09 от 23.05.2025 г. (ПРОЧИЕ, ТЕР-2001) ОЗП=29,1; ЭМ=11,55; ЗПМ=29,1; МАТ=8,66
A71: Итого по разделу 2 Окна | L71: 445992.09 | BS71: Итого по разделу 2 Окна
A72: Раздел 3. Дверные проемы и ворота | BL72: Раздел 3. Дверные проемы и ворота
A73: 16 | B73: ТЕР09-04-012-01 Приказ Администрации ЛО от 20.10.15 №28 | C73: Установка металлических дверных блоков в готовые проемы | F73: 1 м2 проема | G73: 3.69 | H73: 106.67 | I73: 51.89 | J73: 28.44 | L73: 7625.47 | M73: 5571.68 | N73: 1212.08 | BN73: Установка металлических дверных блоков в готовые проемы
B74: 421/пр_2020_прил.10_т.1_п.2_гр.3 | C74: Производство работ осуществляется на территории действующего предприятия с наличием в зоне производства работ одного или нескольких из следующих факторов: - разветвленной сети транспортных и инженерных коммуникаций; - стесненных условий для складирования материалов; - действующего технологического оборудования; - движения технологического транспорта ОЗП=1,15; ЭМ=1,15 к расх.; ЗПМ=1,15; ТЗ=1,15; ТЗМ=1,15 | BP74: Производство работ осуществляется на территории действующего предприятия с наличием в зоне производства работ одного или нескольких из следующих факторов: - разветвленной сети транспортных и инженерных коммуникаций; - стесненных условий для складирования материалов; - действующего технологического оборудования; - движения технологического транспорта ОЗП=1,15; ЭМ=1,15 к расх.; ЗПМ=1,15; ТЗ=1,15; ТЗМ=1,15
B75: 1 | C75: ИНДЕКС К ПОЗИЦИИ: II кв. 2025 г. Минстрой письмо №29761-ИФ/09 от 23.05.2025 г. (ПРОЧИЕ, ТЕР-2001) ОЗП=29,1; ЭМ=11,55; ЗПМ=29,1; МАТ=8,66 | BQ75: ИНДЕКС К ПОЗИЦИИ: II кв. 2025 г. Минстрой письмо №29761-ИФ/09 от 23.05.2025 г. (ПРОЧИЕ, ТЕР-2001) ОЗП=29,1; ЭМ=11,55; ЗПМ=29,1; МАТ=8,66
E76: Накладные расходы 93% ФОТ (от 5 571,68) | L76: 5181.66
E77: Сметная прибыль 62% ФОТ (от 5 571,68) | L77: 3454.44
A78: 17 | B78: ТЦ_07.1.01.03_66_665801467545_25.01.2024_02 | C78: ДСН, Оп, Прг, Пр, Н, М2 (дверь стальная, наружная, однопольная, с порогом 50мм(h), правого открывания наружу, класс прочности - 2) 900х2050 | F78: шт | G78: 2 | H78: 3 270,11 33983/ндс/ИндМ225 | L78: 56638.31 | BN78: ДСН, Оп, Прг, Пр, Н, М2 (дверь стальная, наружная, однопольная, с порогом 50мм(h), правого открывания наружу, класс прочности - 2) 900х2050
C79: Цена МАТ=33983/ндс/ИндМ225 | BR79: Цена МАТ=33983/ндс/ИндМ225
B80: 1 | C80: ИНДЕКС К ПОЗИЦИИ: II кв. 2025 г. Минстрой письмо №29761-ИФ/09 от 23.05.2025 г. (ПРОЧИЕ, ТЕР-2001) ОЗП=29,1; ЭМ=11,55; ЗПМ=29,1; МАТ=8,66 | BQ80: ИНДЕКС К ПОЗИЦИИ: II кв. 2025 г. Минстрой письмо №29761-ИФ/09 от 23.05.2025 г. (ПРОЧИЕ, ТЕР-2001) ОЗП=29,1; ЭМ=11,55; ЗПМ=29,1; МАТ=8,66
A81: Ворота | BM81: Ворота
A82: 18 | B82: ТЕР09-04-011-01 Приказ Администрации ЛО от 20.10.15 №28 | C82: Монтаж каркасов ворот большепролетных зданий, ангаров и др. без механизмов открывания | F82: 1 т конструкций | G82: 0.73 | H82: 4714.05 | I82: 1016.92 | J82: 2977.64 | K82: 254.14 | L82: 51256.89 | M82: 21602.47 | N82: 25105.95 | O82: 5398.66 | BN82: Монтаж каркасов ворот большепролетных зданий, ангаров и др. без механизмов открывания
B83: 421/пр_2020_прил.10_т.1_п.2_гр.3 | C83: Производство работ осуществляется на территории действующего предприятия с наличием в зоне производства работ одного или нескольких из следующих факторов: - разветвленной сети транспортных и инженерных коммуникаций; - стесненных условий для складирования материалов; - действующего технологического оборудования; - движения технологического транспорта ОЗП=1,15; ЭМ=1,15 к расх.; ЗПМ=1,15; ТЗ=1,15; ТЗМ=1,15 | BP83: Производство работ осуществляется на территории действующего предприятия с наличием в зоне производства работ одного или нескольких из следующих факторов: - разветвленной сети транспортных и инженерных коммуникаций; - стесненных условий для складирования материалов; - действующего технологического оборудования; - движения технологического транспорта ОЗП=1,15; ЭМ=1,15 к расх.; ЗПМ=1,15; ТЗ=1,15; ТЗМ=1,15
B84: 1 | C84: ИНДЕКС К ПОЗИЦИИ: II кв. 2025 г. Минстрой письмо №29761-ИФ/09 от 23.05.2025 г. (ПРОЧИЕ, ТЕР-2001) ОЗП=29,1; ЭМ=11,55; ЗПМ=29,1; МАТ=8,66 | BQ84: ИНДЕКС К ПОЗИЦИИ: II кв. 2025 г. Минстрой письмо №29761-ИФ/09 от 23.05.2025 г. (ПРОЧИЕ, ТЕР-2001) ОЗП=29,1; ЭМ=11,55; ЗПМ=29,1; МАТ=8,66
E85: Накладные расходы 93% ФОТ (от 27 001,13) | L85: 25111.05
E86: Сметная прибыль 62% ФОТ (от 27 001,13) | L86: 16740.7
A87: 19 | B87: ТЕРм11-05-001-01 Приказ Администрации ЛО от 20.10.15 №28 | C87: Механизм исполнительный, масса: до 20 кг | F87: 1 шт. | G87: 2 | H87: 64.59 | I87: 10.97 | J87: 44.92 | K87: 6.49 | L87: 1826.82 | M87: 638.51 | N87: 1037.63 | O87: 377.49 | BN87: Механизм исполнительный, масса: до 20 кг
B88: 421/пр_2020_прил.10_т.1_п.2_гр.3 | C88: Производство работ осуществляется на территории действующего предприятия с наличием в зоне производства работ одного или нескольких из следующих факторов: - разветвленной сети транспортных и инженерных коммуникаций; - стесненных условий для складирования материалов; - действующего технологического оборудования; - движения технологического транспорта ОЗП=1,15; ЭМ=1,15 к расх.; ЗПМ=1,15; ТЗ=1,15; ТЗМ=1,15 | BP88: Производство работ осуществляется на территории действующего предприятия с наличием в зоне производства работ одного или нескольких из следующих факторов: - разветвленной сети транспортных и инженерных коммуникаций; - стесненных условий для складирования материалов; - действующего технологического оборудования; - движения технологического транспорта ОЗП=1,15; ЭМ=1,15 к расх.; ЗПМ=1,15; ТЗ=1,15; ТЗМ=1,15
B89: 1 | C89: ИНДЕКС К ПОЗИЦИИ: II кв. 2025 г. Минстрой письмо №29761-ИФ/09 от 23.05.2025 г. (ПРОЧИЕ, ТЕР-2001) ОЗП=29,1; ЭМ=11,55; ЗПМ=29,1; МАТ=8,66 | BQ89: ИНДЕКС К ПОЗИЦИИ: II кв. 2025 г. Минстрой письмо №29761-ИФ/09 от 23.05.2025 г. (ПРОЧИЕ, ТЕР-2001) ОЗП=29,1; ЭМ=11,55; ЗПМ=29,1; МАТ=8,66
E90: Накладные расходы 90% ФОТ (от 1 016,00) | L90: 914.4
E91: Сметная прибыль 46% ФОТ (от 1 016,00) | L91: 467.36
A92: 2 | B92: ТЦ_08.1.06.01_54_5404314837_28.06.2024_02 | C92: Ворота складчатые, металлические 5000х4500мм (вес 13,5 кг/м2) | F92: шт | G92: 2 | H92: 58 041,42 ТЦ/ИндМ225*1,02 | L92: 1005277.39 | BN92: Ворота складчатые, металлические 5000х4500мм (вес 13,5 кг/м2)
C93: Цена МАТ=ТЦ/ИндМ225*1,02 | BR93: Цена МАТ=ТЦ/ИндМ225*1,02
B94: 1 | C94: ИНДЕКС К ПОЗИЦИИ: II кв. 2025 г. Минстрой письмо №29761-ИФ/09 от 23.05.2025 г. (ПРОЧИЕ, ТЕР-2001) ОЗП=29,1; ЭМ=11,55; ЗПМ=29,1; МАТ=8,66 | BQ94: ИНДЕКС К ПОЗИЦИИ: II кв. 2025 г. Минстрой письмо №29761-ИФ/09 от 23.05.2025 г. (ПРОЧИЕ, ТЕР-2001) ОЗП=29,1; ЭМ=11,55; ЗПМ=29,1; МАТ=8,66
A95: Итого по разделу 3 Дверные проемы и ворота | L95: 1174494.49 | BS95: Итого по разделу 3 Дверные проемы и ворота
A96: Раздел 4. Полы | BL96: Раздел 4. Полы
A97: 21 | B97: ТЕР11-01-011-03 Приказ Администрации ЛО от 20.10.15 №28 | C97: Устройство стяжек: бетонных толщиной 20 мм | F97: 100 м2 стяжки | G97: 5.602 | H97: 762.62 | I97: 691.39 | J97: 63.66 | K97: 35.82 | L97: 117195.42 | M97: 112709.4 | N97: 4119.26 | O97: 5839.72 | BN97: Устройство стяжек: бетонных толщиной 20 мм
C98: 664,13 = 1 456,22 - 2,04 x 388,28 | BO98: 664,13 = 1 456,22 - 2,04 x 388,28
B99: 421/пр_2020_прил.10_т.1_п.2_гр.3 | C99: Производство работ осуществляется на территории действующего предприятия с наличием в зоне производства работ одного или нескольких из следующих факторов: - разветвленной сети транспортных и инженерных коммуникаций; - стесненных условий для складирования материалов; - действующего технологического оборудования; - движения технологического транспорта ОЗП=1,15; ЭМ=1,15 к расх.; ЗПМ=1,15; ТЗ=1,15; ТЗМ=1,15 | BP99: Производство работ осуществляется на территории действующего предприятия с наличием в зоне производства работ одного или нескольких из следующих факторов: - разветвленной сети транспортных и инженерных коммуникаций; - стесненных условий для складирования материалов; - действующего технологического оборудования; - движения технологического транспорта ОЗП=1,15; ЭМ=1,15 к расх.; ЗПМ=1,15; ТЗ=1,15; ТЗМ=1,15
B100: 1 | C100: ИНДЕКС К ПОЗИЦИИ: II кв. 2025 г. Минстрой письмо №29761-ИФ/09 от 23.05.2025 г. (ПРОЧИЕ, ТЕР-2001) ОЗП=29,1; ЭМ=11,55; ЗПМ=29,1; МАТ=8,66 | BQ100: ИНДЕКС К ПОЗИЦИИ: II кв. 2025 г. Минстрой письмо №29761-ИФ/09 от 23.05.2025 г. (ПРОЧИЕ, ТЕР-2001) ОЗП=29,1; ЭМ=11,55; ЗПМ=29,1; МАТ=8,66
E101: Накладные расходы 112% ФОТ (от 118 549,12) | L101: 132775.01
E102: Сметная прибыль 65% ФОТ (от 118 549,12) | L102: 77056.93
A103: 22 | B103: ТЕР11-01-011-04 Приказ Администрации ЛО от 20.10.15 №28 | C103: Устройство стяжек: на каждые 5 мм изменения толщины стяжки добавлять или исключать к расценке 11-01-011-03 // до толщ. 30 мм | F103: 100 м2 стяжки | G103: 5.602 | H103: 39.88 | I103: 17.02 | J103: 22.86 | K103: 11.85 | L103: 4253.81 | M103: 2774.57 | N103: 1479.24 | O103: 1930.95 | BN103: Устройство стяжек: на каждые 5 мм изменения толщины стяжки добавлять или исключать к расценке 11-01-011-03 // до толщ. 30 мм
C104: 17,34 = 215,36 - 0,51 x 388,28 | BO104: 17,34 = 215,36 - 0,51 x 388,28
C105: толщ. 30 мм ПЗ=2 (ОЗП=2; ЭМ=2 к расх.; ЗПМ=2; МАТ=2 к расх.; ТЗ=2; ТЗМ=2) | BP105: толщ. 30 мм ПЗ=2 (ОЗП=2; ЭМ=2 к расх.; ЗПМ=2; МАТ=2 к расх.; ТЗ=2; ТЗМ=2)
B106: 421/пр_2020_прил.10_т.1_п.2_гр.3 | C106: Производство работ осуществляется на территории действующего предприятия с наличием в зоне производства работ одного или нескольких из следующих факторов: - разветвленной сети транспортных и инженерных коммуникаций; - стесненных условий для складирования материалов; - действующего технологического оборудования; - движения технологического транспорта ОЗП=1,15; ЭМ=1,15 к расх.; ЗПМ=1,15; ТЗ=1,15; ТЗМ=1,15 | BP106: Производство работ осуществляется на территории действующего предприятия с наличием в зоне производства работ одного или нескольких из следующих факторов: - разветвленной сети транспортных и инженерных коммуникаций; - стесненных условий для складирования материалов; - действующего технологического оборудования; - движения технологического транспорта ОЗП=1,15; ЭМ=1,15 к расх.; ЗПМ=1,15; ТЗ=1,15; ТЗМ=1,15
B107: 1 | C107: ИНДЕКС К ПОЗИЦИИ: II кв. 2025 г. Минстрой письмо №29761-ИФ/09 от 23.05.2025 г. (ПРОЧИЕ, ТЕР-2001) ОЗП=29,1; ЭМ=11,55; ЗПМ=29,1; МАТ=8,66 | BQ107: ИНДЕКС К ПОЗИЦИИ: II кв. 2025 г. Минстрой письмо №29761-ИФ/09 от 23.05.2025 г. (ПРОЧИЕ, ТЕР-2001) ОЗП=29,1; ЭМ=11,55; ЗПМ=29,1; МАТ=8,66
E108: Накладные расходы 112% ФОТ (от 4 705,52) | L108: 5270.18
E109: Сметная прибыль 65% ФОТ (от 4 705,52) | L109: 3058.59
A110: 23 | B110: ТЦ_59.1.04.01_78_4707009037_08.02.2024_02 | C110: Бетон В30 | F110: м3 | G110: 17.142 | H110: 798,73 (5292+1625)/ИндМ225 | L110: 118571.24 | BN110: Бетон В30
C111: Цена МАТ=(5292+1625)/ИндМ225 | BR111: Цена МАТ=(5292+1625)/ИндМ225
B112: 1 | C112: ИНДЕКС К ПОЗИЦИИ: II кв. 2025 г. Минстрой письмо №29761-ИФ/09 от 23.05.2025 г. (ПРОЧИЕ, ТЕР-2001) ОЗП=29,1; ЭМ=11,55; ЗПМ=29,1; МАТ=8,66 | BQ112: ИНДЕКС К ПОЗИЦИИ: II кв. 2025 г. Минстрой письмо №29761-ИФ/09 от 23.05.2025 г. (ПРОЧИЕ, ТЕР-2001) ОЗП=29,1; ЭМ=11,55; ЗПМ=29,1; МАТ=8,66
A113: 24 | B113: ТЕР11-01-020-03 Приказ Администрации ЛО от 20.10.15 №28 | C113: Устройство покрытий поливинилацетатных: толщиной 3 мм // прим. покрытие полимерное | F113: 100 м2 покрытия | G113: 5.602 | H113: 13519.64 | I113: 1411.81 | J113: 266.62 | K113: 163.86 | L113: 821857.85 | M113: 230150.56 | N113: 17250.88 | O113: 26712.73 | BN113: Устройство покрытий поливинилацетатных: толщиной 3 мм // прим. покрытие полимерное
B114: 421/пр_2020_прил.10_т.1_п.2_гр.3 | C114: Производство работ осуществляется на территории действующего предприятия с наличием в зоне производства работ одного или нескольких из следующих факторов: - разветвленной сети транспортных и инженерных коммуникаций; - стесненных условий для складирования материалов; - действующего технологического оборудования; - движения технологического транспорта ОЗП=1,15; ЭМ=1,15 к расх.; ЗПМ=1,15; ТЗ=1,15; ТЗМ=1,15 | BP114: Производство работ осуществляется на территории действующего предприятия с наличием в зоне производства работ одного или нескольких из следующих факторов: - разветвленной сети транспортных и инженерных коммуникаций; - стесненных условий для складирования материалов; - действующего технологического оборудования; - движения технологического транспорта ОЗП=1,15; ЭМ=1,15 к расх.; ЗПМ=1,15; ТЗ=1,15; ТЗМ=1,15
B115: 1 | C115: ИНДЕКС К ПОЗИЦИИ: II кв. 2025 г. Минстрой письмо №29761-ИФ/09 от 23.05.2025 г. (ПРОЧИЕ, ТЕР-2001) ОЗП=29,1; ЭМ=11,55; ЗПМ=29,1; МАТ=8,66 | BQ115: ИНДЕКС К ПОЗИЦИИ: II кв. 2025 г. Минстрой письмо №29761-ИФ/09 от 23.05.2025 г. (ПРОЧИЕ, ТЕР-2001) ОЗП=29,1; ЭМ=11,55; ЗПМ=29,1; МАТ=8,66
E116: Накладные расходы 112% ФОТ (от 256 863,29) | L116: 287686.88
E117: Сметная прибыль 65% ФОТ (от 256 863,29) | L117: 166961.14
A118: 1 | B118: ТЕР11-01-020-04 Приказ Администрации ЛО от 20.10.15 №28 | C118: Устройство покрытий поливинилацетатных: на каждый 1 мм изменения толщины добавлять или исключать к расценке 11-01-020-03 | F118: 100 м2 покрытия | G118: 5.602 | H118: 26797.57 | I118: 1839.43 | J118: 570.99 | K118: 345.51 | L118: 1519906.45 | M118: 299859.75 | N118: 36944.6 | O118: 56323.77 | BN118: Устройство покрытий поливинилацетатных: на каждый 1 мм изменения толщины добавлять или исключать к расценке 11-01-020-03
C119: Кпз=7 (до 10 мм) ПЗ=7 (ОЗП=7; ЭМ=7 к расх.; ЗПМ=7; МАТ=7 к расх.; ТЗ=7; ТЗМ=7) | BP119: Кпз=7 (до 10 мм) ПЗ=7 (ОЗП=7; ЭМ=7 к расх.; ЗПМ=7; МАТ=7 к расх.; ТЗ=7; ТЗМ=7)
B120: 421/пр_2020_прил.10_т.1_п.2_гр.3 | C120: Производство работ осуществляется на территории действующего предприятия с наличием в зоне производства работ одного или нескольких из следующих факторов: - разветвленной сети транспортных и инженерных коммуникаций; - стесненных условий для складирования материалов; - действующего технологического оборудования; - движения технологического транспорта ОЗП=1,15; ЭМ=1,15 к расх.; ЗПМ=1,15; ТЗ=1,15; ТЗМ=1,15 | BP120: Производство работ осуществляется на территории действующего предприятия с наличием в зоне производства работ одного или нескольких из следующих факторов: - разветвленной сети транспортных и инженерных коммуникаций; - стесненных условий для складирования материалов; - действующего технологического оборудования; - движения технологического транспорта ОЗП=1,15; ЭМ=1,15 к расх.; ЗПМ=1,15; ТЗ=1,15; ТЗМ=1,15
B121: 1 | C121: ИНДЕКС К ПОЗИЦИИ: II кв. 2025 г. Минстрой письмо №29761-ИФ/09 от 23.05.2025 г. (ПРОЧИЕ, ТЕР-2001) ОЗП=29,1; ЭМ=11,55; ЗПМ=29,1; МАТ=8,66 | BQ121: ИНДЕКС К ПОЗИЦИИ: II кв. 2025 г. Минстрой письмо №29761-ИФ/09 от 23.05.2025 г. (ПРОЧИЕ, ТЕР-2001) ОЗП=29,1; ЭМ=11,55; ЗПМ=29,1; МАТ=8,66
E122: Накладные расходы 112% ФОТ (от 356 183,52) | L122: 398925.54
E123: Сметная прибыль 65% ФОТ (от 356 183,52) | L123: 231519.29
A124: Итого по разделу 4 Полы | L124: 3885038.33 | BS124: Итого по разделу 4 Полы
A125: Раздел 5. Отделка | BL125: Раздел 5. Отделка
A126: Цоколь | BM126: Цоколь
A127: 3 | B127: ТЕР13-06-003-01 Приказ Администрации ЛО от 20.10.15 №28 | C127: Очистка поверхности щетками | F127: 1 м2 очищаемой поверхности | G127: 57.6 | H127: 16.73 | I127: 16.73 | L127: 28046.35 | M127: 28046.35 | BN127: Очистка поверхности щетками
B128: 421/пр_2020_прил.10_т.1_п.2_гр.3 | C128: Производство работ осуществляется на территории действующего предприятия с наличием в зоне производства работ одного или нескольких из следующих факторов: - разветвленной сети транспортных и инженерных коммуникаций; - стесненных условий для складирования материалов; - действующего технологического оборудования; - движения технологического транспорта ОЗП=1,15; ЭМ=1,15 к расх.; ЗПМ=1,15; ТЗ=1,15; ТЗМ=1,15 | BP128: Производство работ осуществляется на территории действующего предприятия с наличием в зоне производства работ одного или нескольких из следующих факторов: - разветвленной сети транспортных и инженерных коммуникаций; - стесненных условий для складирования материалов; - действующего технологического оборудования; - движения технологического транспорта ОЗП=1,15; ЭМ=1,15 к расх.; ЗПМ=1,15; ТЗ=1,15; ТЗМ=1,15
B129: 1 | C129: ИНДЕКС К ПОЗИЦИИ: II кв. 2025 г. Минстрой письмо №29761-ИФ/09 от 23.05.2025 г. (ПРОЧИЕ, ТЕР-2001) ОЗП=29,1; ЭМ=11,55; ЗПМ=29,1; МАТ=8,66 | BQ129: ИНДЕКС К ПОЗИЦИИ: II кв. 2025 г. Минстрой письмо №29761-ИФ/09 от 23.05.2025 г. (ПРОЧИЕ, ТЕР-2001) ОЗП=29,1; ЭМ=11,55; ЗПМ=29,1; МАТ=8,66
E130: Накладные расходы 94% ФОТ (от 28 046,35) | L130: 26363.57
E131: Сметная прибыль 51% ФОТ (от 28 046,35) | L131: 14303.64
A132: 5 | B132: ТЕР13-06-004-01 Приказ Администрации ЛО от 20.10.15 №28 | C132: Обеспыливание поверхности | F132: 1 м2 обеспыливаемой поверхности | G132: 57.6 | H132: 2.17 | I132: 1.86 | J132: 0.31 | L132: 3329.26 | M132: 3122.69 | N132: 206.57 | BN132: Обеспыливание поверхности
B133: 421/пр_2020_прил.10_т.1_п.2_гр.3 | C133: Производство работ осуществляется на территории действующего предприятия с наличием в зоне производства работ одного или нескольких из следующих факторов: - разветвленной сети транспортных и инженерных коммуникаций; - стесненных условий для складирования материалов; - действующего технологического оборудования; - движения технологического транспорта ОЗП=1,15; ЭМ=1,15 к расх.; ЗПМ=1,15; ТЗ=1,15; ТЗМ=1,15 | BP133: Производство работ осуществляется на территории действующего предприятия с наличием в зоне производства работ одного или нескольких из следующих факторов: - разветвленной сети транспортных и инженерных коммуникаций; - стесненных условий для складирования материалов; - действующего технологического оборудования; - движения технологического транспорта ОЗП=1,15; ЭМ=1,15 к расх.; ЗПМ=1,15; ТЗ=1,15; ТЗМ=1,15
B134: 1 | C134: ИНДЕКС К ПОЗИЦИИ: II кв. 2025 г. Минстрой письмо №29761-ИФ/09 от 23.05.2025 г. (ПРОЧИЕ, ТЕР-2001) ОЗП=29,1; ЭМ=11,55; ЗПМ=29,1; МАТ=8,66 | BQ134: ИНДЕКС К ПОЗИЦИИ: II кв. 2025 г. Минстрой письмо №29761-ИФ/09 от 23.05.2025 г. (ПРОЧИЕ, ТЕР-2001) ОЗП=29,1; ЭМ=11,55; ЗПМ=29,1; МАТ=8,66
E135: Накладные расходы 94% ФОТ (от 3 122,69) | L135: 2935.33
E136: Сметная прибыль 51% ФОТ (от 3 122,69) | L136: 1592.57
A137: 6 | B137: ТЕР13-03-003-14 Приказ Администрации ЛО от 20.10.15 №28 | C137: Окраска огрунтованных бетонных и оштукатуренных поверхностей: лаком ХП-734 | F137: 100 м2 окрашиваемой поверхности | G137: 0.576 | H137: 1099.79 | I137: 147.36 | J137: 9.09 | K137: 0.21 | L137: 7235.98 | M137: 2470.01 | N137: 60.44 | O137: 3.47 | BN137: Окраска огрунтованных бетонных и оштукатуренных поверхностей: лаком ХП-734
B138: 421/пр_2020_прил.10_т.1_п.2_гр.3 | C138: Производство работ осуществляется на территории действующего предприятия с наличием в зоне производства работ одного или нескольких из следующих факторов: - разветвленной сети транспортных и инженерных коммуникаций; - стесненных условий для складирования материалов; - действующего технологического оборудования; - движения технологического транспорта ОЗП=1,15; ЭМ=1,15 к расх.; ЗПМ=1,15; ТЗ=1,15; ТЗМ=1,15 | BP138: Производство работ осуществляется на территории действующего предприятия с наличием в зоне производства работ одного или нескольких из следующих факторов: - разветвленной сети транспортных и инженерных коммуникаций; - стесненных условий для складирования материалов; - действующего технологического оборудования; - движения технологического транспорта ОЗП=1,15; ЭМ=1,15 к расх.; ЗПМ=1,15; ТЗ=1,15; ТЗМ=1,15
B139: 1 | C139: ИНДЕКС К ПОЗИЦИИ: II кв. 2025 г. Минстрой письмо №29761-ИФ/09 от 23.05.2025 г. (ПРОЧИЕ, ТЕР-2001) ОЗП=29,1; ЭМ=11,55; ЗПМ=29,1; МАТ=8,66 | BQ139: ИНДЕКС К ПОЗИЦИИ: II кв. 2025 г. Минстрой письмо №29761-ИФ/09 от 23.05.2025 г. (ПРОЧИЕ, ТЕР-2001) ОЗП=29,1; ЭМ=11,55; ЗПМ=29,1; МАТ=8,66
E140: Накладные расходы 94% ФОТ (от 2 473,48) | L140: 2325.07
E141: Сметная прибыль 51% ФОТ (от 2 473,48) | L141: 1261.47
A142: 20 | B142: ТЕР13-03-003-15 Приказ Администрации ЛО от 20.10.15 №28 | C142: Окраска огрунтованных бетонных и оштукатуренных поверхностей: эмалью ХП-799 | F142: 100 м2 окрашиваемой поверхности | G142: 0.576 | H142: 863.67 | I142: 64.09 | J142: 9.09 | K142: 0.21 | L142: 5077.82 | M142: 1074.24 | N142: 60.44 | O142: 3.47 | BN142: Окраска огрунтованных бетонных и оштукатуренных поверхностей: эмалью ХП-799
B143: 421/пр_2020_прил.10_т.1_п.2_гр.3 | C143: Производство работ осуществляется на территории действующего предприятия с наличием в зоне производства работ одного или нескольких из следующих факторов: - разветвленной сети транспортных и инженерных коммуникаций; - стесненных условий для складирования материалов; - действующего технологического оборудования; - движения технологического транспорта ОЗП=1,15; ЭМ=1,15 к расх.; ЗПМ=1,15; ТЗ=1,15; ТЗМ=1,15 | BP143: Производство работ осуществляется на территории действующего предприятия с наличием в зоне производства работ одного или нескольких из следующих факторов: - разветвленной сети транспортных и инженерных коммуникаций; - стесненных условий для складирования материалов; - действующего технологического оборудования; - движения технологического транспорта ОЗП=1,15; ЭМ=1,15 к расх.; ЗПМ=1,15; ТЗ=1,15; ТЗМ=1,15
B144: 1 | C144: ИНДЕКС К ПОЗИЦИИ: II кв. 2025 г. Минстрой письмо №29761-ИФ/09 от 23.05.2025 г. (ПРОЧИЕ, ТЕР-2001) ОЗП=29,1; ЭМ=11,55; ЗПМ=29,1; МАТ=8,66 | BQ144: ИНДЕКС К ПОЗИЦИИ: II кв. 2025 г. Минстрой письмо №29761-ИФ/09 от 23.05.2025 г. (ПРОЧИЕ, ТЕР-2001) ОЗП=29,1; ЭМ=11,55; ЗПМ=29,1; МАТ=8,66
E145: Накладные расходы 94% ФОТ (от 1 077,71) | L145: 1013.05
E146: Сметная прибыль 51% ФОТ (от 1 077,71) | L146: 549.63
A147: Окраска конструкций стен и потолков из профлиста, учтена в сметах к разделу КМ | BM147: Окраска конструкций стен и потолков из профлиста, учтена в сметах к разделу КМ
A148: Итого по разделу 5 Отделка | L148: 94033.75 | BS148: Итого по разделу 5 Отделка
A149: Раздел 6. Отмостка | BL149: Раздел 6. Отмостка
A150: 27 | B150: ТЕР27-04-001-04 Приказ Администрации ЛО от 20.10.15 №28 | C150: Устройство подстилающих и выравнивающих слоев оснований: из щебня | F150: 100 м3 материала основания (в плотном теле) | G150: 0.0864 | H150: 4657.64 | I150: 426.45 | J150: 4216.06 | K150: 582.06 | L150: 5290.81 | M150: 1072.21 | N150: 4207.29 | O150: 1463.44 | BN150: Устройство подстилающих и выравнивающих слоев оснований: из щебня
B151: 421/пр_2020_прил.10_т.1_п.2_гр.3 | C151: Производство работ осуществляется на территории действующего предприятия с наличием в зоне производства работ одного или нескольких из следующих факторов: - разветвленной сети транспортных и инженерных коммуникаций; - стесненных условий для складирования материалов; - действующего технологического оборудования; - движения технологического транспорта ОЗП=1,15; ЭМ=1,15 к расх.; ЗПМ=1,15; ТЗ=1,15; ТЗМ=1,15 | BP151: Производство работ осуществляется на территории действующего предприятия с наличием в зоне производства работ одного или нескольких из следующих факторов: - разветвленной сети транспортных и инженерных коммуникаций; - стесненных условий для складирования материалов; - действующего технологического оборудования; - движения технологического транспорта ОЗП=1,15; ЭМ=1,15 к расх.; ЗПМ=1,15; ТЗ=1,15; ТЗМ=1,15
B152: 1 | C152: ИНДЕКС К ПОЗИЦИИ: II кв. 2025 г. Минстрой письмо №29761-ИФ/09 от 23.05.2025 г. (ПРОЧИЕ, ТЕР-2001) ОЗП=29,1; ЭМ=11,55; ЗПМ=29,1; МАТ=8,66 | BQ152: ИНДЕКС К ПОЗИЦИИ: II кв. 2025 г. Минстрой письмо №29761-ИФ/09 от 23.05.2025 г. (ПРОЧИЕ, ТЕР-2001) ОЗП=29,1; ЭМ=11,55; ЗПМ=29,1; МАТ=8,66
E153: Накладные расходы 147% ФОТ (от 2 535,65) | L153: 3727.41
E154: Сметная прибыль 134% ФОТ (от 2 535,65) | L154: 3397.77
A155: 26 | B155: ТЦ_02.2.05.00_78_7811628889_18.07.2024_02 | C155: Щебень из природного камня для строительных работ марка: 800, фракция 20-40 мм | F155: м3 | G155: 10.8864 | H155: 307,93 ТЦ/ИндМ225 | L155: 29030.48 | BN155: Щебень из природного камня для строительных работ марка: 800, фракция 20-40 мм
C156: Цена МАТ=ТЦ/ИндМ225 | BR156: Цена МАТ=ТЦ/ИндМ225
B157: 1 | C157: ИНДЕКС К ПОЗИЦИИ: II кв. 2025 г. Минстрой письмо №29761-ИФ/09 от 23.05.2025 г. (ПРОЧИЕ, ТЕР-2001) ОЗП=29,1; ЭМ=11,55; ЗПМ=29,1; МАТ=8,66 | BQ157: ИНДЕКС К ПОЗИЦИИ: II кв. 2025 г. Минстрой письмо №29761-ИФ/09 от 23.05.2025 г. (ПРОЧИЕ, ТЕР-2001) ОЗП=29,1; ЭМ=11,55; ЗПМ=29,1; МАТ=8,66
A158: 29 | B158: ТЕР27-04-001-01 Приказ Администрации ЛО от 20.10.15 №28 | C158: Устройство подстилающих и выравнивающих слоев оснований: из песка | F158: 100 м3 материала основания (в плотном теле) | G158: 0.144 | H158: 2999.71 | I158: 274.78 | J158: 2714.13 | K158: 370.96 | L158: 5679.05 | M158: 1151.44 | N158: 4514.14 | O158: 1554.45 | BN158: Устройство подстилающих и выравнивающих слоев оснований: из песка
B159: 421/пр_2020_прил.10_т.1_п.2_гр.3 | C159: Производство работ осуществляется на территории действующего предприятия с наличием в зоне производства работ одного или нескольких из следующих факторов: - разветвленной сети транспортных и инженерных коммуникаций; - стесненных условий для складирования материалов; - действующего технологического оборудования; - движения технологического транспорта ОЗП=1,15; ЭМ=1,15 к расх.; ЗПМ=1,15; ТЗ=1,15; ТЗМ=1,15 | BP159: Производство работ осуществляется на территории действующего предприятия с наличием в зоне производства работ одного или нескольких из следующих факторов: - разветвленной сети транспортных и инженерных коммуникаций; - стесненных условий для складирования материалов; - действующего технологического оборудования; - движения технологического транспорта ОЗП=1,15; ЭМ=1,15 к расх.; ЗПМ=1,15; ТЗ=1,15; ТЗМ=1,15
B160: 1 | C160: ИНДЕКС К ПОЗИЦИИ: II кв. 2025 г. Минстрой письмо №29761-ИФ/09 от 23.05.2025 г. (ПРОЧИЕ, ТЕР-2001) ОЗП=29,1; ЭМ=11,55; ЗПМ=29,1; МАТ=8,66 | BQ160: ИНДЕКС К ПОЗИЦИИ: II кв. 2025 г. Минстрой письмо №29761-ИФ/09 от 23.05.2025 г. (ПРОЧИЕ, ТЕР-2001) ОЗП=29,1; ЭМ=11,55; ЗПМ=29,1; МАТ=8,66
E161: Накладные расходы 147% ФОТ (от 2 705,89) | L161: 3977.66
E162: Сметная прибыль 134% ФОТ (от 2 705,89) | L162: 3625.89
A163: 30 | B163: ТЦ_02.3.01.00_77_7734465669_15.02.2024_02 | C163: Песок средний для строительных работ | F163: м3 | G163: 15.84 | H163: 51,96 450,0/ИндМ225 | L163: 7127.58 | BN163: Песок средний для строительных работ
C164: Цена МАТ=450,0/ИндМ225 | BR164: Цена МАТ=450,0/ИндМ225
B165: 1 | C165: ИНДЕКС К ПОЗИЦИИ: II кв. 2025 г. Минстрой письмо №29761-ИФ/09 от 23.05.2025 г. (ПРОЧИЕ, ТЕР-2001) ОЗП=29,1; ЭМ=11,55; ЗПМ=29,1; МАТ=8,66 | BQ165: ИНДЕКС К ПОЗИЦИИ: II кв. 2025 г. Минстрой письмо №29761-ИФ/09 от 23.05.2025 г. (ПРОЧИЕ, ТЕР-2001) ОЗП=29,1; ЭМ=11,55; ЗПМ=29,1; МАТ=8,66
A166: 31 | B166: ТЕР06-01-013-01 Приказ Администрации ЛО от 20.10.15 №28 | C166: Устройство подливки толщиной 20 мм // прим. бетонное основание | F166: 100 м2 подливки под оборудование | G166: 0.96 | H166: 1135.4 | I166: 895 | J166: 19.9 | K166: 2.25 | L166: 27056.52 | M166: 25002.69 | N166: 220.6 | O166: 62.97 | BN166: Устройство подливки толщиной 20 мм // прим. бетонное основание
C167: 1 016,07 = 1 940,48 - 2,04 x 453,14 | BO167: 1 016,07 = 1 940,48 - 2,04 x 453,14
B168: 421/пр_2020_прил.10_т.1_п.2_гр.3 | C168: Производство работ осуществляется на территории действующего предприятия с наличием в зоне производства работ одного или нескольких из следующих факторов: - разветвленной сети транспортных и инженерных коммуникаций; - стесненных условий для складирования материалов; - действующего технологического оборудования; - движения технологического транспорта ОЗП=1,15; ЭМ=1,15 к расх.; ЗПМ=1,15; ТЗ=1,15; ТЗМ=1,15 | BP168: Производство работ осуществляется на территории действующего предприятия с наличием в зоне производства работ одного или нескольких из следующих факторов: - разветвленной сети транспортных и инженерных коммуникаций; - стесненных условий для складирования материалов; - действующего технологического оборудования; - движения технологического транспорта ОЗП=1,15; ЭМ=1,15 к расх.; ЗПМ=1,15; ТЗ=1,15; ТЗМ=1,15
B169: 1 | C169: ИНДЕКС К ПОЗИЦИИ: II кв. 2025 г. Минстрой письмо №29761-ИФ/09 от 23.05.2025 г. (ПРОЧИЕ, ТЕР-2001) ОЗП=29,1; ЭМ=11,55; ЗПМ=29,1; МАТ=8,66 | BQ169: ИНДЕКС К ПОЗИЦИИ: II кв. 2025 г. Минстрой письмо №29761-ИФ/09 от 23.05.2025 г. (ПРОЧИЕ, ТЕР-2001) ОЗП=29,1; ЭМ=11,55; ЗПМ=29,1; МАТ=8,66
E170: Накладные расходы 102% ФОТ (от 25 065,66) | L170: 25566.97
E171: Сметная прибыль 58% ФОТ (от 25 065,66) | L171: 14538.08
A172: 32 | B172: ТЕР06-01-013-02 Приказ Администрации ЛО от 20.10.15 №28 | C172: На каждые 10 мм изменения толщины добавлять или исключать к расценке 06-01-013-01 // до 100 мм | F172: 100 м2 подливки под оборудование | G172: 0.96 | H172: 2548.42 | I172: 2045.71 | J172: 71.67 | K172: 9.02 | L172: 61527.15 | M172: 57149.01 | N172: 794.65 | O172: 251.87 | BN172: На каждые 10 мм изменения толщины добавлять или исключать к расценке 06-01-013-01 // до 100 мм
C173: 284,03 = 746,23 - 1,02 x 453,14 | BO173: 284,03 = 746,23 - 1,02 x 453,14
C174: толщ. 100 мм ПЗ=8 (ОЗП=8; ЭМ=8 к расх.; ЗПМ=8; МАТ=8 к расх.; ТЗ=8; ТЗМ=8) | BP174: толщ. 100 мм ПЗ=8 (ОЗП=8; ЭМ=8 к расх.; ЗПМ=8; МАТ=8 к расх.; ТЗ=8; ТЗМ=8)
B175: 421/пр_2020_прил.10_т.1_п.2_гр.3 | C175: Производство работ осуществляется на территории действующего предприятия с наличием в зоне производства работ одного или нескольких из следующих факторов: - разветвленной сети транспортных и инженерных коммуникаций; - стесненных условий для складирования материалов; - действующего технологического оборудования; - движения технологического транспорта ОЗП=1,15; ЭМ=1,15 к расх.; ЗПМ=1,15; ТЗ=1,15; ТЗМ=1,15 | BP175: Производство работ осуществляется на территории действующего предприятия с наличием в зоне производства работ одного или нескольких из следующих факторов: - разветвленной сети транспортных и инженерных коммуникаций; - стесненных условий для складирования материалов; - действующего технологического оборудования; - движения технологического транспорта ОЗП=1,15; ЭМ=1,15 к расх.; ЗПМ=1,15; ТЗ=1,15; ТЗМ=1,15
B176: 1 | C176: ИНДЕКС К ПОЗИЦИИ: II кв. 2025 г. Минстрой письмо №29761-ИФ/09 от 23.05.2025 г. (ПРОЧИЕ, ТЕР-2001) ОЗП=29,1; ЭМ=11,55; ЗПМ=29,1; МАТ=8,66 | BQ176: ИНДЕКС К ПОЗИЦИИ: II кв. 2025 г. Минстрой письмо №29761-ИФ/09 от 23.05.2025 г. (ПРОЧИЕ, ТЕР-2001) ОЗП=29,1; ЭМ=11,55; ЗПМ=29,1; МАТ=8,66
E177: Накладные расходы 102% ФОТ (от 57 400,88) | L177: 58548.9
E178: Сметная прибыль 58% ФОТ (от 57 400,88) | L178: 33292.51
A179: 33 | B179: ТЦ_59.1.04.01_78_4707009037_08.02.2024_02 | C179: Бетон В15 | F179: м3 | G179: 9.792 | H179: 706,81 (4496+1625)/ИндМ225 | L179: 59936.58 | BN179: Бетон В15
C180: Цена МАТ=(4496+1625)/ИндМ225 | BR180: Цена МАТ=(4496+1625)/ИндМ225
B181: 1 | C181: ИНДЕКС К ПОЗИЦИИ: II кв. 2025 г. Минстрой письмо №29761-ИФ/09 от 23.05.2025 г. (ПРОЧИЕ, ТЕР-2001) ОЗП=29,1; ЭМ=11,55; ЗПМ=29,1; МАТ=8,66 | BQ181: ИНДЕКС К ПОЗИЦИИ: II кв. 2025 г. Минстрой письмо №29761-ИФ/09 от 23.05.2025 г. (ПРОЧИЕ, ТЕР-2001) ОЗП=29,1; ЭМ=11,55; ЗПМ=29,1; МАТ=8,66
A182: 34 | B182: ТЕР06-01-015-10 Приказ Администрации ЛО от 20.10.15 №28 | C182: Армирование подстилающих слоев и набетонок | F182: 1 т | G182: 0.3331 | H182: 539.47 | I182: 244.06 | J182: 53.49 | K182: 4.51 | L182: 3269.4 | M182: 2365.77 | N182: 205.78 | O182: 43.7 | BN182: Армирование подстилающих слоев и набетонок
C183: 500,66 = 5 580,38 - 1 x 5 079,72 | BO183: 500,66 = 5 580,38 - 1 x 5 079,72
B184: 421/пр_2020_прил.10_т.1_п.2_гр.3 | C184: Производство работ осуществляется на территории действующего предприятия с наличием в зоне производства работ одного или нескольких из следующих факторов: - разветвленной сети транспортных и инженерных коммуникаций; - стесненных условий для складирования материалов; - действующего технологического оборудования; - движения технологического транспорта ОЗП=1,15; ЭМ=1,15 к расх.; ЗПМ=1,15; ТЗ=1,15; ТЗМ=1,15 | BP184: Производство работ осуществляется на территории действующего предприятия с наличием в зоне производства работ одного или нескольких из следующих факторов: - разветвленной сети транспортных и инженерных коммуникаций; - стесненных условий для складирования материалов; - действующего технологического оборудования; - движения технологического транспорта ОЗП=1,15; ЭМ=1,15 к расх.; ЗПМ=1,15; ТЗ=1,15; ТЗМ=1,15
B185: 1 | C185: ИНДЕКС К ПОЗИЦИИ: II кв. 2025 г. Минстрой письмо №29761-ИФ/09 от 23.05.2025 г. (ПРОЧИЕ, ТЕР-2001) ОЗП=29,1; ЭМ=11,55; ЗПМ=29,1; МАТ=8,66 | BQ185: ИНДЕКС К ПОЗИЦИИ: II кв. 2025 г. Минстрой письмо №29761-ИФ/09 от 23.05.2025 г. (ПРОЧИЕ, ТЕР-2001) ОЗП=29,1; ЭМ=11,55; ЗПМ=29,1; МАТ=8,66
E186: Накладные расходы 102% ФОТ (от 2 409,47) | L186: 2457.66
E187: Сметная прибыль 58% ФОТ (от 2 409,47) | L187: 1397.49
A188: 35 | B188: ТЦ_08.4.02.05_78_7816723705_16.02.2024_02 Аналог ТССЦ-101-3891 21,17/20,58=2% | C188: Сетка арм. 100х100 6Вр1 | F188: м2 | G188: 96 | H188: 47,85 487,5/ндс/ИндМ225*1,02 | L188: 39780.58 | BN188: Сетка арм. 100х100 6Вр1
C189: Цена МАТ=487,5/ндс/ИндМ225*1,02 | BR189: Цена МАТ=487,5/ндс/ИндМ225*1,02
B190: 1 | C190: ИНДЕКС К ПОЗИЦИИ: II кв. 2025 г. Минстрой письмо №29761-ИФ/09 от 23.05.2025 г. (ПРОЧИЕ, ТЕР-2001) ОЗП=29,1; ЭМ=11,55; ЗПМ=29,1; МАТ=8,66 | BQ190: ИНДЕКС К ПОЗИЦИИ: II кв. 2025 г. Минстрой письмо №29761-ИФ/09 от 23.05.2025 г. (ПРОЧИЕ, ТЕР-2001) ОЗП=29,1; ЭМ=11,55; ЗПМ=29,1; МАТ=8,66
A191: 36 | B191: ТЕР06-01-013-01 Приказ Администрации ЛО от 20.10.15 №28 | C191: Устройство подливки толщиной 20 мм // прим. бетонное покрытие отмостки | F191: 100 м2 подливки под оборудование | G191: 0.96 | H191: 1135.4 | I191: 895 | J191: 19.9 | K191: 2.25 | L191: 27056.52 | M191: 25002.69 | N191: 220.6 | O191: 62.97 | BN191: Устройство подливки толщиной 20 мм // прим. бетонное покрытие отмостки
C192: 1 016,07 = 1 940,48 - 2,04 x 453,14 | BO192: 1 016,07 = 1 940,48 - 2,04 x 453,14
B193: 421/пр_2020_прил.10_т.1_п.2_гр.3 | C193: Производство работ осуществляется на территории действующего предприятия с наличием в зоне производства работ одного или нескольких из следующих факторов: - разветвленной сети транспортных и инженерных коммуникаций; - стесненных условий для складирования материалов; - действующего технологического оборудования; - движения технологического транспорта ОЗП=1,15; ЭМ=1,15 к расх.; ЗПМ=1,15; ТЗ=1,15; ТЗМ=1,15 | BP193: Производство работ осуществляется на территории действующего предприятия с наличием в зоне производства работ одного или нескольких из следующих факторов: - разветвленной сети транспортных и инженерных коммуникаций; - стесненных условий для складирования материалов; - действующего технологического оборудования; - движения технологического транспорта ОЗП=1,15; ЭМ=1,15 к расх.; ЗПМ=1,15; ТЗ=1,15; ТЗМ=1,15
B194: 1 | C194: ИНДЕКС К ПОЗИЦИИ: II кв. 2025 г. Минстрой письмо №29761-ИФ/09 от 23.05.2025 г. (ПРОЧИЕ, ТЕР-2001) ОЗП=29,1; ЭМ=11,55; ЗПМ=29,1; МАТ=8,66 | BQ194: ИНДЕКС К ПОЗИЦИИ: II кв. 2025 г. Минстрой письмо №29761-ИФ/09 от 23.05.2025 г. (ПРОЧИЕ, ТЕР-2001) ОЗП=29,1; ЭМ=11,55; ЗПМ=29,1; МАТ=8,66
E195: Накладные расходы 102% ФОТ (от 25 065,66) | L195: 25566.97
E196: Сметная прибыль 58% ФОТ (от 25 065,66) | L196: 14538.08
A197: 37 | B197: ТЕР06-01-013-02 Приказ Администрации ЛО от 20.10.15 №28 | C197: На каждые 10 мм изменения толщины добавлять или исключать к расценке 06-01-013-01 // до 50-110 мм | F197: 100 м2 подливки под оборудование | G197: 0.96 | H197: 1911.32 | I197: 1534.28 | J197: 53.75 | K197: 6.76 | L197: 46145.37 | M197: 42861.76 | N197: 595.99 | O197: 188.9 | BN197: На каждые 10 мм изменения толщины добавлять или исключать к расценке 06-01-013-01 // до 50-110 мм
C198: 284,03 = 746,23 - 1,02 x 453,14 | BO198: 284,03 = 746,23 - 1,02 x 453,14
C199: толщ. 30-130 мм ПЗ=6 (ОЗП=6; ЭМ=6 к расх.; ЗПМ=6; МАТ=6 к расх.; ТЗ=6; ТЗМ=6) | BP199: толщ. 30-130 мм ПЗ=6 (ОЗП=6; ЭМ=6 к расх.; ЗПМ=6; МАТ=6 к расх.; ТЗ=6; ТЗМ=6)
B200: 421/пр_2020_прил.10_т.1_п.2_гр.3 | C200: Производство работ осуществляется на территории действующего предприятия с наличием в зоне производства работ одного или нескольких из следующих факторов: - разветвленной сети транспортных и инженерных коммуникаций; - стесненных условий для складирования материалов; - действующего технологического оборудования; - движения технологического транспорта ОЗП=1,15; ЭМ=1,15 к расх.; ЗПМ=1,15; ТЗ=1,15; ТЗМ=1,15 | BP200: Производство работ осуществляется на территории действующего предприятия с наличием в зоне производства работ одного или нескольких из следующих факторов: - разветвленной сети транспортных и инженерных коммуникаций; - стесненных условий для складирования материалов; - действующего технологического оборудования; - движения технологического транспорта ОЗП=1,15; ЭМ=1,15 к расх.; ЗПМ=1,15; ТЗ=1,15; ТЗМ=1,15
B201: 1 | C201: ИНДЕКС К ПОЗИЦИИ: II кв. 2025 г. Минстрой письмо №29761-ИФ/09 от 23.05.2025 г. (ПРОЧИЕ, ТЕР-2001) ОЗП=29,1; ЭМ=11,55; ЗПМ=29,1; МАТ=8,66 | BQ201: ИНДЕКС К ПОЗИЦИИ: II кв. 2025 г. Минстрой письмо №29761-ИФ/09 от 23.05.2025 г. (ПРОЧИЕ, ТЕР-2001) ОЗП=29,1; ЭМ=11,55; ЗПМ=29,1; МАТ=8,66
E202: Накладные расходы 102% ФОТ (от 43 050,66) | L202: 43911.67
E203: Сметная прибыль 58% ФОТ (от 43 050,66) | L203: 24969.38
A204: 38 | B204: ТЦ_59.1.04.01_78_4707009037_08.02.2024_02 | C204: Бетон В15 | F204: м3 | G204: 7.834 | H204: 706,81 (4496+1625)/ИндМ225 | L204: 47951.72 | BN204: Бетон В15
... 103 more rows
